Workbook

Sheet Coversheet
C3: Basic Economic Model
C5: Process Technology & Consulting
C7: Model Name | E7: BEIS - Levelised Cost Evaluation Model | O7: REV | Q7: 1A
C8: Client | E8: UK Department for Business, Energy and Industrial Strategy | O8: Prepared by | Q8: AMT
C9: Project | E9: Novel (Next Generation) UK Carbon Capture Technology Study | O9: Approved by
C10: Project No. | E10: 13333 | O10: Date | Q10: 2018-07-31
C11: Location | E11: Generic UK | O11: Printed | Q11: =NOW() -> 2018-09-03T16:17:42.660
C13: Model Key Assumptions
C14: Benchmark cases are as defined in Report 13333-8820-RP-001, 'Assessing the Cost Reduction Potential and Competitiveness of Novel (Next Generation) UK Carbon Capture Technology, Benchmarking State-of-the-art and Next Generation Technologies', Rev 3A, 20th July 2018. Price sets used in this analysis are those published before the start of the assessment (15th March 2017). The latest price sets can be found at: https://www.gov.uk/government/publications/valuation-of-energy-use-and-greenhouse-gas-emissions-for-appraisal All costs presented are in GBP, as of Q1 2017.
C21: Model Notes
C22: Users should only use the unprotected 'Novel' cases with strong green headers. Benchmark cases are presented for comparison (cases with pale green headers). Novel power cases should be entered in columns H, K, or Q in the 'LCOE Calculation' worksheet. Novel hydrogen cases should be entered in column H in the 'LCOH Calculation' worksheet. All required user inputs for novel cases are highlighted in strong blue. By default these cells typically have inputs of 1 or 0. All worksheets are protected to allow users only to edit cells requiring their input. Passwords are required to change security settings. Several 'global' input cells in column C can be modified. Note that changes to these cells will also affect the LCOE / LCOH results for the benchmark cases. Simple macros are used to goal seek the LCOE / LCOH values to a Net Present Value of zero for each case. Macros must be enabled to allow these to work.
C32: Disclaimer
C34: ="This model ("&E7&") was prepared by Wood for use on the " & E8&" website for companies / organisations seeking to compare performance of their technologies against the benchmark cases developed by Wood. The model may not be copied, or used for other purposes, without Wood’s prior written permission." -> This model (BEIS - Levelised Cost Evaluation Model) was prepared by Wood for use on the UK Department for Business, Energy and Industrial Strategy website for companies / organisations seeking to compare performance of their technologies against the benchmark cases developed by Wood. The model may not be copied, or used for other purposes, without Wood’s prior written permission. | K34: No representation or warranty, express or implied, is made by Wood as to the accuracy, completeness or fairness of any information contained in this Model and, so far as is permitted by law and except in the case of fraud by the party concerned, no responsibility or liability whatsoever is accepted for the accuracy or sufficiency thereof or for errors, omissions or misstatements negligent or otherwise, relating thereto. In particular, but without limitation, no representation or warranty, express or implied, is given as to the achievement or reasonableness of, and no reliance may be placed for any purpose on the accuracy or completeness of, any estimates, projections or targets and nothing in this Model should be relied upon as a promise or representation as to the future.
C39: The financial projections contained in this Model are based on assumptions derived from a number of sources. They are illustrative only and do not constitute a forecast. The financial projections contained in this Model are not and should not be considered a recommendation by Wood that any recipient should invest in or lend to a project.
K43: Furthermore, for the avoidance of doubt, no third party shall place any reliance on the Model or its contents for any purpose. Third parties must not treat the Model as a substitute for their own investigations and analysis. None of Wood or its Affiliates shall have any liability to any person in relation to the Model or the services provided by Wood to the Companies in relation to the preparation of the Model, whether in contract, tort (including, without limitation, negligence and breach of statutory duty) or otherwise howsoever arising.
C44: In preparing this Model, Wood has assumed and relied upon the accuracy and completeness of the information reviewed by it for the purpose of this Model and has not assumed any responsibility for independent verification of such information. The projections contained in this Model involve significant assumptions and subjective judgments which may or may not prove to be correct and there can be no assurance that any estimates, projections, targets or forecasts are attainable or will be realised.
C50: ="The contents of this Model are based upon conditions as they existed and could be evaluated as of " & +TEXT(Q10,"mmmm") &" "& +TEXT(Q10,"yyyy") &". Wood does not undertake any obligation to update any of the information or the conclusions contained herein or to correct any inaccuracies which may become apparent." -> The contents of this Model are based upon conditions as they existed and could be evaluated as of July 2018. Wood does not undertake any obligation to update any of the information or the conclusions contained herein or to correct any inaccuracies which may become apparent.

Sheet LCOE Calculation
B1: This spreadsheet contains macros … please ensure that macros are enabled on your machine.
F3: Reference Case Unabated CCGT | G3: Benchmark 1 Post-Combustion on Gas | H3: Novel Technology Based on Gas | I3: Benchmark 2 Pre-Combustion on Gas (IRCC) | J3: Benchmark 3 Post-Combustion on Coal | K3: Novel Technology Based on Coal | L3: Benchmark 4 Oxy-Combustion on Coal | M3: Benchmark 5 Pre-Combustion on Coal (IGCC) | N3: Benchmark 6 Allam Cycle on Gas | O3: Benchmark 7 MC Fuel Cell on Gas | P3: Benchmark 8 Post-Combustion on Biomass | Q3: Novel Technology Based on Biomass | R3: Benchmark 9 Oxy-Combustion on Biomass | S3: Benchmark 10 Pre-Combustion on Biomass (IGCC)
E4: Units | F4: 0 | G4: 1 | H4: 1a | I4: 2 | J4: 3 | K4: 3a | L4: 4 | M4: 5 | N4: 6 | O4: 7 | P4: 8 | Q4: 8a | R4: 9 | S4: 10
B5: Power Plant Technical Performance
C6: Total gross installed capacity | E6: MWe | F6: =SUM(F7:F9) -> 1229.372 | G6: =SUM(G7:G9) -> 1144.252 | H6: =SUM(H7:H9) -> 1 | I6: =SUM(I7:I9) -> 919.132 | J6: 953.5 | K6: =SUM(K7:K9) -> 1 | L6: 1112.8 | M6: =SUM(M7:M9) -> 1062.75 | N6: 1263.9 | O6: 1644.98 | P6: 498.041 | Q6: =SUM(Q7:Q9) -> 1 | R6: =SUM(R7:R9) -> 598 | S6: =SUM(S7:S9) -> 493.294
D7: Gas Turbine (s) | E7: MWe | F7: 823.452 | G7: 823.452 | H7: 0 | I7: 554.444 | J7: 0 | K7: 0 | L7: 0 | M7: 671.027 | N7: 1263.9 | O7: 823.5 | P7: 0 | Q7: 0 | R7: 0 | S7: 302.896
D8: Steam Turbine | E8: MWe | F8: 405.92 | G8: 320.8 | H8: 1 | I8: 364.688 | J8: 953.5 | K8: 1 | L8: 1097.7 | M8: 391.723 | N8: 0 | O8: 381.48 | P8: 498.041 | Q8: 1 | R8: 598 | S8: 190.398
D9: Others | E9: MWe | F9: 0 | G9: 0 | H9: 0 | I9: 0 | J9: 0 | K9: 0 | L9: 15.1 | M9: 0 | N9: 0 | O9: 440 | P9: 0 | Q9: 0 | R9: 0 | S9: 0
C10: Total auxiliary loads | E10: MWe | F10: =SUM(F11:F16) -> 20.88 | G10: 79.6610687 | H10: =SUM(H11:H16) -> 0 | I10: =SUM(I11:I16) -> 101.257 | J10: 139.35 | K10: =SUM(K11:K16) -> 0 | L10: 280.18 | M10: =SUM(M11:M16) -> 262.951 | N10: 415.52 | O10: 136.38 | P10: 101.803 | Q10: =SUM(Q11:Q16) -> 0 | R10: =SUM(R11:R16) -> 195.934 | S10: =SUM(S11:S16) -> 137.181
D11: Feedstock Handling | E11: MWe | F11: 0 | G11: 0 | H11: 0 | I11: 0 | J11: 3.4 | K11: 0 | L11: 3.26 | M11: 0.37 | N11: 0 | O11: 0 | P11: 1.78 | Q11: 0 | R11: 1.78 | S11: 0.265
D12: Power Island | E12: MWe | F12: 14.68 | G12: 14.68 | H12: 0 | I12: 10.44 | J12: 31.19 | K12: 0 | L12: 20.92 | M12: 12.915 | N12: 13.86 | O12: 14.68 | P12: 25.2 | Q12: 0 | R12: =3.68+22.6 -> 26.28 | S12: 6.305
D13: Air Separation Unit | E13: MWe | F13: 0 | G13: 0 | H13: 0 | I13: 0 | J13: 0 | K13: 0 | L13: 213.5 | M13: =106440/1000 -> 106.44 | N13: 170.9 | O13: 0 | P13: 0 | Q13: 0 | R13: 88.9 | S13: =48949/1000 -> 48.949
D14: CO2 Capture | E14: MWe | F14: 0 | G14: =50.649*1.0263 -> 51.9810687 | H14: 0 | I14: 45.83 | J14: 88.3 | K14: 0 | L14: 26.8 | M14: 86.952 | N14: 220.4 | O14: 48.1 | P14: 63.8 | Q14: 0 | R14: 67.951 | S14: 51.295
D15: CO2 Compression | E15: MWe | F15: 0 | G15: 0 | H15: 0 | I15: 34.74 | J15: 0 | K15: 0 | L15: 0 | M15: 45.673 | N15: 0 | O15: 64.5 | P15: 0 | Q15: 0 | R15: 0 | S15: 24.049
D16: Utilities | E16: MWe | F16: 6.2 | G16: 13 | H16: 0 | I16: 10.247 | J16: 16.46 | K16: 0 | L16: 15.7 | M16: 10.601 | N16: 10.36 | O16: 9.1 | P16: 11.023 | Q16: 0 | R16: 11.023 | S16: 6.318
C17: Net Power Export | E17: MWe | F17: =F6-F10 -> 1208.492 | G17: =G6-G10 -> 1064.590931 | H17: =H6-H10 -> 1 | I17: =I6-I10 -> 817.875 | J17: 814.15 | K17: =K6-K10 -> 1 | L17: 832.62 | M17: =M6-M10 -> 799.799 | N17: 848.38 | O17: 1508.6 | P17: 396.238 | Q17: =Q6-Q10 -> 1 | R17: =R6-R10 -> 402.066 | S17: =S6-S10 -> 356.113
C18: Fuel Flow Rate | E18: kg/h | F18: =SUM(F19:F22) -> 150296 | G18: 150296 | H18: =SUM(H19:H22) -> 1 | I18: 147539 | J18: 325000 | K18: =SUM(K19:K22) -> 1 | L18: 325000 | M18: =SUM(M19:M22) -> 314899.2 | N18: 118940 | O18: 195722 | P18: =SUM(P19:P22) -> 635178.1 | Q18: =SUM(Q19:Q22) -> 1 | R18: =SUM(R19:R22) -> 635178.1 | S18: 225416.68
D19: Natural Gas | E19: kg/h | F19: 150296 | G19: 150296 | H19: 1 | I19: 147539 | J19: 0 | K19: 0 | L19: 0 | M19: 0 | N19: 118940 | O19: =97861*2 -> 195722 | P19: 0 | Q19: 0 | R19: 0 | S19: 0
D20: Coal | E20: kg/h | F20: 0 | G20: 0 | H20: 0 | I20: 0 | J20: 325000 | K20: 1 | L20: 325000 | M20: =157449.6*2 -> 314899.2 | N20: 0 | O20: 0 | P20: 0 | Q20: 0 | R20: 0 | S20: 0
D21: Biomass | E21: kg/h | F21: 0 | G21: 0 | H21: 0 | I21: 0 | J21: 0 | K21: 0 | L21: 0 | M21: 0 | N21: 0 | O21: 0 | P21: 635178.1 | Q21: 1 | R21: 635178.1 | S21: 0
D22: Torrefied Wood | E22: kg/h | F22: 0 | G22: 0 | H22: 0 | I22: 0 | J22: 0 | K22: 0 | L22: 0 | M22: 0 | N22: 0 | O22: 0 | P22: 0 | Q22: 0 | R22: 0 | S22: 225416.68
C23: Fuel Flow Rate (LHV) | E23: MWth | F23: =SUM(F24:F27) -> 1940.239 | G23: 1940.239 | H23: =SUM(H24:H27) -> 1 | I23: =SUM(I24:I27) -> 1906.5 | J23: 2335.5 | K23: =SUM(K24:K27) -> 1 | L23: 2335.5 | M23: =SUM(M24:M27) -> 2262.88 | N23: 1536.308 | O23: 2526.7 | P23: =SUM(P24:P27) -> 1288 | Q23: =SUM(Q24:Q27) -> 1 | R23: =SUM(R24:R27) -> 1288 | S23: 1051.94
D24: Natural Gas | E24: MWth | F24: 1940.239 | G24: 1940.239 | H24: 1 | I24: 1906.5 | J24: 0 | K24: 0 | L24: 0 | M24: 0 | N24: 1536.308 | O24: 2526.7 | P24: 0 | Q24: 0 | R24: 0 | S24: 0
D25: Coal | E25: MWth | F25: 0 | G25: 0 | H25: 0 | I25: 0 | J25: 2335.5 | K25: 1 | L25: 2335.5 | M25: 2262.88 | N25: 0 | O25: 0 | P25: 0 | Q25: 0 | R25: 0 | S25: 0
D26: Biomass | E26: MWth | F26: 0 | G26: 0 | H26: 0 | I26: 0 | J26: 0 | K26: 0 | L26: 0 | M26: 0 | N26: 0 | O26: 0 | P26: 1288 | Q26: 1 | R26: 1288 | S26: 0
D27: Torrefied Wood | E27: MWth | F27: 0 | G27: 0 | H27: 0 | I27: 0 | J27: 0 | K27: 0 | L27: 0 | M27: 0 | N27: 0 | O27: 0 | P27: 0 | Q27: 0 | R27: 0 | S27: 1051.94
C28: Fuel Flow Rate (HHV) | E28: MWth | F28: =SUM(F29:F32) -> 2149.107553 | G28: 2149.107553 | H28: =SUM(H29:H32) -> 1 | I28: 2096.5 | J28: 2442.9 | K28: =SUM(K29:K32) -> 1 | L28: 2442.9 | M28: =SUM(M29:M32) -> 2367 | N28: 1690.11 | O28: 2798.661498 | U28: HHV applies at feed supply conditions
D29: Natural Gas | E29: MWth | F29: =F19/3600*51.477 -> 2149.107553 | G29: =G19/3600*51.477 -> 2149.107553 | H29: 1 | I29: 2096.5 | J29: 0 | K29: 0 | L29: 0 | M29: 0 | N29: 1690.11 | O29: =O19/3600*51.477 -> 2798.661498
D30: Coal | E30: MWth | F30: 0 | G30: 0 | H30: 0 | I30: 0 | J30: 2442.9 | K30: 1 | L30: 2442.9 | M30: 2367 | N30: 0 | O30: 0
D31: Biomass | E31: MWth | F31: 0 | G31: 0 | H31: 0 | I31: 0 | J31: 0 | K31: 0 | L31: 0 | M31: 0 | N31: 0 | O31: 0
D32: Torrefied Wood | E32: MWth | F32: 0 | G32: 0 | H32: 0 | I32: 0 | J32: 0 | K32: 0 | L32: 0 | M32: 0 | N32: 0 | O32: 0
C33: Net Efficiency - Year 1 (LHV) | E33: % | F33: =$F$17/F23 -> 0.6228572872 | G33: =$G$17/G23 -> 0.5486906156 | H33: =$H$17/H23 -> 1 | I33: =$I$17/I23 -> 0.428992919 | J33: =J17/J23 -> 0.3485977307 | K33: =$H$17/K23 -> 1 | L33: 0.3565061015 | M33: =$M$17/M23 -> 0.3534429576 | N33: =$N$17/N23 -> 0.5522199976 | O33: =$O$17/O23 -> 0.5970633633 | P33: =P17/P23 -> 0.3076381988 | Q33: =$H$17/Q23 -> 1 | R33: =R17/R23 -> 0.3121630435 | S33: 0.3385297641
C34: Net Efficiency - Year 1 (HHV) | E34: % | F34: =$F$17/F28 -> 0.5623227177 | G34: =$G$17/G28 -> 0.4953641942 | H34: =$H$17/H28 -> 1 | I34: =$I$17/I28 -> 0.3901144765 | J34: =$J$17/J28 -> 0.3332719309 | K34: =$H$17/K28 -> 1 | L34: =$L$17/L28 -> 0.340832617 | M34: =$M$17/M28 -> 0.3378956485 | N34: =$N$17/N28 -> 0.5019673276 | O34: =$F$17/O28 -> 0.4318107069
C35: Plant availability | E35: % | F35: 0.93 | G35: =IF(G19=0,0.85,0.9) -> 0.9 | H35: 0.9 | I35: 0.85 | J35: 0.9 | K35: 0.9 | L35: 0.9 | M35: 0.85 | N35: 0.9 | O35: 0.9 | P35: 0.9 | Q35: 0.9 | R35: 0.9 | S35: 0.85 | U35: 93% unabated; 90% for conventional combustion; 85% for gasification cases
C36: Plant load factor | E36: % | F36: 1 | G36: 1 | H36: 1 | I36: 1 | J36: 1 | K36: 1 | L36: 1 | M36: 1 | N36: 1 | O36: 1 | P36: 1 | Q36: 1 | R36: 1 | S36: 1 | U36: Load Factor is % of available power output
C37: Overall plant operating factor | E37: % | F37: =F35*F36 -> 0.93 | G37: =G35*G36 -> 0.9 | H37: =H35*H36 -> 0.9 | I37: =I35*I36 -> 0.85 | J37: 0.9 | K37: =K35*K36 -> 0.9 | L37: 0.9 | M37: =M35*M36 -> 0.85 | N37: 0.9 | O37: 0.9 | P37: 0.9 | Q37: =Q35*Q36 -> 0.9 | R37: =R35*R36 -> 0.9 | S37: 0.85
C38: Power degradation profile | F38: CCGT H-Class | G38: CCGT H-Class | H38: CCGT H-Class | I38: CCGT H-Class | J38: Oxy-Coal | K38: Oxy-Coal | L38: Oxy-Coal | M38: CCGT H-Class | N38: CCGT H-Class | O38: CCGT H-Class | P38: Oxy-Coal | Q38: Oxy-Coal | R38: Oxy-Coal | S38: CCGT H-Class
B39: 0.6 | C39: First year reduced production rate | E39: % | F39: =$B$39 -> 0.6 | G39: =$B$39 -> 0.6 | H39: 0.6 | I39: 0.6 | J39: 0.6 | K39: 0.6 | L39: 0.6 | M39: 0.6 | N39: 0.6 | O39: 0.6 | P39: 0.6 | Q39: 0.6 | R39: 0.6 | S39: 0.6
B40: Carbon Balance
B41: 0.72284 | C41: Carbon mass fraction in Natural Gas feed | E41: - | F41: =$B41 -> 0.72284 | G41: =$B41 -> 0.72284 | H41: 0.72284 | I41: =$B41 -> 0.72284 | J41: 0.72284 | K41: 0.72284 | L41: 0.72284 | M41: 0.72284 | N41: 0.72284 | O41: 0.72284 | P41: 0.72284 | Q41: 0.72284 | R41: 0.72284 | S41: 0.72284
B42: 0.646 | C42: Carbon mass fraction in Coal feed | E42: - | F42: =$B42 -> 0.646 | G42: 0.646 | H42: 0.646 | I42: =$B42 -> 0.646 | J42: 0.646 | K42: 0.646 | L42: 0.646 | M42: 0.646 | N42: 0.646 | O42: 0.646 | P42: 0.646 | Q42: 0.646 | R42: 0.646 | S42: 0.646
B43: 0.25 | C43: Carbon mass fraction in Biomass feed | E43: - | F43: 0.25 | G43: 0.25 | H43: 0.25 | I43: =$B43 -> 0.25 | J43: 0.25 | K43: 0.25 | L43: 0.25 | M43: 0.25 | N43: 0.25 | O43: 0.25 | P43: 0.25 | Q43: 0.25 | R43: 0.25 | S43: 0.25
B44: 0.4751 | C44: Carbon mass fraction in Torrefied Wood feed | E44: - | F44: 0.4751 | G44: 0.4751 | H44: 0.4751 | I44: =$B44 -> 0.4751 | J44: 0.4751 | K44: 0.4751 | L44: 0.4751 | M44: 0.4751 | N44: 0.4751 | O44: 0.4751 | P44: 0.4751 | Q44: 0.4751 | R44: 0.4751 | S44: 0.4751
C45: Total carbon in feeds | E45: kg/h | F45: =F19*F41+F20*F42+F21*F43+F22*F44 -> 108639.9606 | G45: =G19*G41+G20*G42+G21*G43+G22*G44 -> 108639.9606 | H45: =H19*H41+H20*H42+H21*H43+H22*H44 -> 0.72284 | I45: 106647.0908 | J45: 209950 | K45: =K19*K41+K20*K42+K21*K43+K22*K44 -> 0.646 | L45: 209950 | M45: 203424.8832 | N45: 85974.5896 | O45: =O19*O41+O20*O42+O21*O43+O22*O44 -> 141475.6905 | P45: =P19*P41+P20*P42+P21*P43+P22*P44 -> 158794.525 | Q45: =Q19*Q41+Q20*Q42+Q21*Q43+Q22*Q44 -> 0.25 | R45: =R19*R41+R20*R42+R21*R43+R22*R44 -> 158794.525 | S45: =S19*S41+S20*S42+S21*S43+S22*S44 -> 107095.4647
C46: Total carbon captured | E46: kg/h | F46: =F47/44.01*12.01 -> 0 | G46: =G47/44.01*12.01 -> 98661.2375 | H46: =H47/44.01*12.01 -> 0 | I46: =I47/44.01*12.01 -> 96418.16842 | J46: =J47/44.01*12.01 -> 188926.2236 | K46: =K47/44.01*12.01 -> 0 | L46: =L47/44.01*12.01 -> 187175.85 | M46: =M47/44.01*12.01 -> 183696.7841 | N46: =N47/44.01*12.01 -> 77377.52915 | O46: =O47/44.01*12.01 -> 130332.52 | P46: =P47/44.01*12.01 -> 142954.3396 | Q46: =Q47/44.01*12.01 -> 0 | R46: =R47/44.01*12.01 -> 142748.2239 | S46: 97194.05644
C47: Total CO2 captured | E47: kg/h | F47: 0 | G47: =352274*1.0263 -> 361538.8062 | H47: 0 | I47: =176659.6*2 -> 353319.2 | J47: 692310 | K47: 0 | L47: =15585*44.01 -> 685895.85 | M47: 673147 | N47: 283545.8 | O47: =5426*44.01*2 -> 477596.52 | P47: 523848.5 | Q47: 0 | R47: 523093.2 | S47: 356162.4
C48: Total CO2 emissions | E48: kg/h | F48: =(F45/12.01*44.01)-F47 -> 398105.3012 | G48: =(G45-G46)/12.01*44.01 -> 36566.49503 | H48: =(H45-H46)/12.01*44.01 -> 2.64880836 | I48: =(I45-I46)/12.01*44.01 -> 37483.33658 | J48: =(J45-J46)/12.01*44.01 -> 77040.49958 | K48: =(K45-K46)/12.01*44.01 -> 2.367232306 | L48: =(L45-L46)/12.01*44.01 -> 83454.64958 | M48: =(M45-M46)/12.01*44.01 -> 72292.5595 | N48: 31503.4663 | O48: =(O45-O46)/12.01*44.01 -> 40833.54978 | P48: =(P45-P46)/12.01*44.01 -> 58045.50876 | Q48: =(Q45-Q46)/12.01*44.01 -> 0.9161115737 | R48: =(R45-R46)/12.01*44.01 -> 58800.80876 | S48: 36283.17869
C49: Carbon capture rate | E49: % | F49: =F46/F45 -> 0 | G49: =G46/G45 -> 0.908148686 | H49: =H46/H45 -> 0 | I49: =I46/I45 -> 0.9040862505 | J49: 0.8998629368 | K49: =K46/K45 -> 0 | L49: =L46/L45 -> 0.8915258395 | M49: =M46/M45 -> 0.9030202267 | N49: 0.9000046352 | O49: =O46/O45 -> 0.9212361471 | P49: =P46/P45 -> 0.9002472823 | Q49: =Q46/Q45 -> 0 | R49: =R46/R45 -> 0.8989492796 | S49: 0.9075459614
C50: Carbon Footprint | E50: kg CO2/MWh | F50: =F48/F17 -> 329.4231995 | G50: =G48/G17 -> 34.34793023 | H50: =H48/H17 -> 2.64880836 | I50: =I48/I17 -> 45.83015324 | J50: 94.62691099 | K50: =K48/K17 -> 2.367232306 | L50: =L48/L17 -> 100.2313776 | M50: =M48/M17 -> 90.38840947 | N50: 37.13367395 | O50: =O48/O17 -> 27.06718135 | P50: =P48/P17 -> 146.4915247 | Q50: =Q48/Q17 -> 0.9161115737 | R50: 146.2466579 | S50: 101.8867008
B51: Capital Costs (2017 basis)
C52: Total Project Cost | E52: £M | F52: =F55+F56+F57+F65+F66 -> 672.174 | G52: =G55+G56+G57+G65+G66 -> 968.217 | H52: =H55+H56+H57+H65+H66 -> 0 | I52: =I55+I56+I57+I65+I66 -> 1256.275 | J52: 1732.184 | K52: =K55+K56+K57+K65+K66 -> 0 | L52: 1901.85 | M52: 2396.299 | N52: 1213.178 | O52: 1569.624 | P52: 1247.578 | Q52: =Q55+Q56+Q57+Q65+Q66 -> 0 | R52: 1449.502 | S52: 1465.416
C53: Specifc Total Project Cost | E53: £/kW | F53: =F52*1000/F17 -> 556.2088951 | G53: =G52*1000/G17 -> 909.4732742 | H53: 0 | I53: 1536.023231 | J53: 2127.598108 | K53: =K52*1000/K17 -> 0 | L53: 2284.175254 | M53: 2996.126527 | N53: 1429.993635 | O53: 1040.450749 | P53: 3148.55718 | Q53: 0 | R53: 3605.13448 | S53: 4115.030903
C54: Pre-Development Costs
D55: Pre-Licensing, Technical & Design | E55: £M | F55: 5.836 | G55: 8.453 | H55: 0 | I55: 11.07 | J55: 15.473 | K55: 0 | L55: 17.015 | M55: 21.51 | N55: 10.679 | O55: 13.919 | P55: 11.067 | Q55: 0 | R55: 12.903 | S55: 13.047
D56: Regulatory, Licensing & Public Enquiry | E56: £M | F56: 12.9 | G56: 18.4 | H56: 0 | I56: 23.601 | J56: 32.1 | K56: 0 | L56: 35.2 | M56: 44.204 | N56: 22.9 | O56: 29.301 | P56: 23.299 | Q56: 0 | R56: 26.999 | S56: 27.296
C57: EPC Contract Cost | E57: £M | F57: =SUM(F58:F63) -> 583.587 | G57: 845.2 | H57: =SUM(H58:H63) -> 0 | I57: =SUM(I58:I63) -> 1107.106 | J57: 1547.3 | K57: =SUM(K58:K63) -> 0 | L57: 1701.527 | M57: =SUM(M58:M63) -> 2151.014 | N57: 1067.85 | O57: 1391.966 | P57: 1106.74 | Q57: =SUM(Q58:Q63) -> 0 | R57: =SUM(R58:R63) -> 1290.281 | S57: 1304.741
D58: Feedstock Handling | E58: £M | F58: 0 | H58: 0 | I58: 0 | K58: 0 | L58: 109.069 | M58: 71.148 | N58: 0 | O58: 0 | Q58: 0 | R58: 86.282 | S58: 43.836
D59: Power Island | E59: £M | F59: 583.587 | H59: 0 | I59: 785.541 | K59: 0 | L59: 774.523 | M59: 1349.552 | N59: 565.768 | O59: 571.496 | Q59: 0 | R59: 594.218 | S59: 829.24
D60: Air Separation Unit | E60: £M | F60: 0 | H60: 0 | I60: 0 | K60: 0 | L60: 353.41 | M60: 240.389 | N60: 284.307 | O60: 0 | Q60: 0 | R60: 240.319 | S60: 125.099
D61: CO2 Capture | E61: £M | F61: 0 | H61: 0 | I61: 78.201 | K61: 0 | L61: 197.509 | M61: 82.423 | N61: 45.816 | O61: 714.541 | Q61: 0 | R61: 167.258 | S61: 54.419
D62: CO2 Compression | E62: £M | F62: 0 | H62: 0 | I62: 51.424 | K62: 0 | L62: 0 | M62: 67.073 | N62: 0 | O62: 105.929 | Q62: 0 | R62: 0 | S62: 45.527
D63: Utilities | E63: £M | F63: 0 | H63: 0 | I63: 191.94 | K63: 0 | L63: 267.016 | M63: 340.429 | N63: 171.959 | O63: 0 | Q63: 0 | R63: 202.204 | S63: 206.62
C64: Other Costs
D65: Infrastructure Connections | E65: £M | F65: 29 | G65: 37 | H65: 0 | I65: 37 | J65: 29 | K65: 0 | L65: 29 | M65: 29 | N65: 37 | O65: 37 | P65: 29 | Q65: 0 | R65: 29 | S65: 29
D66: Owner's Costs | E66: £M | F66: 40.851 | G66: 59.164 | H66: 0 | I66: 77.498 | J66: 108.311 | K66: 0 | L66: 119.108 | M66: 150.571 | N66: 74.749 | O66: 97.438 | P66: 77.472 | Q66: 0 | R66: 90.319 | S66: 91.332
C67: Overall CAPEX Impact (vs Reference Case) | E67: £M | F67: - | G67: =(G52-$F$52) -> 296.043 | H67: =(H52-$F$52) -> -672.174 | I67: =(I52-$F$52) -> 584.101 | J67: 1060.01 | K67: =(K52-$F$52) -> -672.174 | L67: 1229.676 | M67: 1724.125 | N67: 541.004 | O67: 897.45 | P67: =(P52-$F$52) -> 575.404 | Q67: =(Q52-$F$52) -> -672.174 | R67: 777.328 | S67: 793.242
C68: Overall CAPEX Impact (vs Reference Case) | E68: % | F68: - | G68: =G67/$F$52 -> 0.4404261397 | H68: =H67/$F$52 -> -1 | I68: =I67/$F$52 -> 0.8689729148 | J68: 1.576987506 | K68: =K67/$F$52 -> -1 | L68: 1.829401316 | M68: 2.564998051 | N68: 0.8048570757 | O68: 1.335145364 | P68: =P67/$F$52 -> 0.8560343006 | Q68: =Q67/$F$52 -> -1 | R68: 1.15643866 | S68: 1.180114078
B69: Operating Costs (2017 basis)
C70: Total Operating Cost (excl. Fuel & Carbon) | E70: £M pa | F70: =F71+F80 -> 36.39190379 | G70: =G71+G80 -> 109.7737957 | H70: =H71+H80 -> 0.00328 | I70: =I71+I80 -> 118.5293162 | J70: 188.5693792 | K70: =K71+K80 -> 0.00328 | L70: 195.1313329 | M70: =M71+M80 -> 215.6133075 | N70: 98.82133143 | O70: 180.4047413 | P70: 140.1244843 | Q70: =Q71+Q80 -> 0.00328 | R70: =R71+R80 -> 147.5583456 | S70: 124.671091
C71: Total Fixed OPEX | E71: £M pa | F71: =SUM(F74:F79) -> 36.21484376 | G71: =SUM(G74:G79) -> 47.51212825 | H71: =SUM(H74:H79) -> 0.00328 | I71: 60.33727 | J71: 80.602672 | K71: =SUM(K74:K79) -> 0.00328 | L71: 86.8184236 | M71: 112.1556307 | N71: 54.9939164 | O71: 71.926608 | P71: 57.98339064 | Q71: =SUM(Q74:Q79) -> 0.00328 | R71: 66.01791648 | S71: 70.46565064
D72: Number of personnel | E72: # | F72: 44 | G72: 67 | H72: 0 | I72: 79 | J72: 96 | K72: 0 | L72: 103 | M72: 133 | N72: 55 | O72: 80 | P72: 83 | Q72: 0 | R72: 90 | S72: 120
C73: 53700 | D73: Average Salary £ pa | F73: =$C73 -> 53700 | G73: =$C73 -> 53700 | H73: =$C73 -> 53700 | I73: =$C$73 -> 53700 | J73: 53700 | K73: =$C73 -> 53700 | L73: 53700 | M73: 53700 | N73: 53700 | O73: 53700 | P73: 53700 | Q73: =$C73 -> 53700 | R73: 53700 | S73: 53700
D74: Direct Labour | E74: £M pa | F74: =(F72*F73)*1.3/1000000 -> 3.07164 | G74: =(G72*G73)*1.3/1000000 -> 4.67727 | H74: =(H72*H73)*1.3/1000000 -> 0 | I74: =(I72*I73)*1.3/1000000 -> 5.51499 | J74: 6.70176 | K74: =(K72*K73)*1.3/1000000 -> 0 | L74: 7.19043 | M74: =(M72*M73)*1.3/1000000 -> 9.28473 | N74: 3.83955 | O74: 5.5848 | P74: 5.79423 | Q74: =(Q72*Q73)*1.3/1000000 -> 0 | R74: =(R72*R73)*1.3/1000000 -> 6.2829 | S74: 8.3772 | U74: Includes allowance for 30% payroll burden
C75: 0.005 | D75: General Overheads | E75: £M pa | F75: =F57*$C75 -> 2.917935 | G75: =G57*$C75 -> 4.226 | H75: =H57*$C75 -> 0 | I75: 5.53553 | J75: 7.7365 | K75: =K57*$C75 -> 0 | L75: 8.507635 | M75: 10.75507 | N75: 5.33925 | O75: 6.95983 | P75: 5.5337 | Q75: =Q57*$C75 -> 0 | R75: 6.451405 | S75: 6.523705
C76: 0.02 | D76: Insurance and Local Taxes | E76: £M pa | F76: =F57*$C76 -> 11.67174 | G76: 16.904 | H76: =H57*$C76 -> 0 | I76: 22.14212 | J76: 30.946 | K76: =K57*$C76 -> 0 | L76: 34.03054 | M76: 43.02028 | N76: 21.357 | O76: 27.83932 | P76: 22.1348 | Q76: =Q57*$C76 -> 0 | R76: 25.80562 | S76: 26.09482
C77: 0.025 | D77: Power Island Maintenance | E77: £M pa | F77: =$C77*(F58+F59) -> 14.589675 | G77: 13.837 | H77: =$C77*(H58+H59) -> 0 | I77: =$C77*(I58+I59) -> 19.638525 | J77: 23.346 | K77: =$C77*(K58+K59) -> 0 | L77: 22.0898 | M77: 35.5175 | N77: 14.1442 | O77: =$C77*(O58+O59) -> 14.2874 | P77: 16.551 | Q77: =$C77*(Q58+Q59) -> 0 | R77: 17.0125 | S77: 21.8269 | U77: Power Island rate also applies to Feedstock Handling Unit
C78: 0.015 | D78: Other Units Maintenance | E78: £M pa | F78: =$C78*SUM(F60:F63) -> 0 | G78: 4.376 | H78: =$C78*SUM(H60:H63) -> 0 | I78: =$C78*SUM(I60:I63) -> 4.823475 | J78: 9.202 | K78: =$C78*SUM(K60:K63) -> 0 | L78: =$C78*SUM(L60:L63) -> 12.269025 | M78: =$C78*SUM(M60:M63) -> 10.95471 | N78: =$C78*SUM(N60:N63) -> 7.53123 | O78: =$C78*SUM(O60:O63) -> 12.30705 | P78: 6.67 | Q78: =$C78*SUM(Q60:Q63) -> 0 | R78: =$C78*SUM(R60:R63) -> 9.146715 | S78: =$C78*SUM(S60:S63) -> 6.474975
C79: 3280 | D79: Connection & Use of System (£/MW/y) | E79: £M pa | F79: =F17*$C79/1000000 -> 3.96385376 | G79: =G17*$C79/1000000 -> 3.491858255 | H79: =H17*$C79/1000000 -> 0.00328 | I79: 2.68263 | J79: 2.670412 | K79: =K17*$C79/1000000 -> 0.00328 | L79: 2.7309936 | M79: 2.62334072 | N79: 2.7826864 | O79: 4.948208 | P79: 1.29966064 | Q79: =Q17*$C79/1000000 -> 0.00328 | R79: 1.31877648 | S79: 1.16805064 | U79: Based on Leigh-Fisher Renewables Report 2016
C80: Total Variable OPEX (excl. Fuel) | E80: £M pa | F80: =SUM(F82:F85) -> 0.1770600325 | G80: =SUM(G82:G85) -> 62.26166743 | H80: =SUM(H82:H85) -> 0 | I80: 58.19204618 | J80: 107.9667072 | K80: =SUM(K82:K85) -> 0 | L80: 108.3129093 | M80: 103.4576768 | N80: 43.82741503 | O80: 108.4781333 | P80: 82.1410937 | Q80: =SUM(Q82:Q85) -> 0 | R80: 81.54042914 | S80: 54.20544039
C81: Central | D81: Fuel Price Set | F81: =$C$81 -> Central | G81: =$C$81 -> Central | H81: Central | I81: Central | J81: Central | K81: Central | L81: Central | M81: =$C$81 -> Central | N81: Central | O81: Central | P81: Central | Q81: Central | R81: Central | S81: Central
C82: 19 | D82: CO2 Storage Cost £/tonne CO2 | E82: £M pa | F82: =$C$82*F47*24*365*F37/1000/1000000 -> 0 | G82: 54.15706701 | H82: =$C$82*H47*24*365*H37/1000/1000000 -> 0 | I82: 49.9854805 | J82: 103.7052688 | K82: =$C$82*K47*24*365*K37/1000/1000000 -> 0 | L82: 102.7444547 | M82: 95.23279868 | N82: 42.47402666 | O82: 71.54204831 | P82: 78.47040991 | Q82: =$C$82*Q47*24*365*Q37/1000/1000000 -> 0 | R82: 78.35726899 | S82: 50.38771938 | U82: Based on Leigh-Fisher Renewables Report 2016
D83: Solvent Make-up Cost | E83: £M pa | F83: 0 | G83: =10.5/'Price Sets'!N6 -> 7.753655295 | H83: 0 | I83: 0 | J83: =5.5/'Price Sets'!N6 -> 4.061438488 | K83: 0 | L83: =0.4536/1.1 -> 0.4123636364 | M83: =3252950*'Price Sets'!X6/10^6 -> 2.65915965 | N83: 0 | O83: 0 | P83: =4.7/'Price Sets'!N6 -> 3.470683799 | Q83: 0 | R83: =L83 -> 0.4123636364 | S83: =S6/M6*M83 -> 1.23429546
D84: Cats & Chems Consumption | E84: £M pa | F84: 0 | G84: 0.2 | H84: 0 | I84: =((1.4473*'Price Sets'!X6*I6)*24*365*I37)/10^6 -> 8.097044103 | J84: 0.2 | K84: 0 | L84: =5.6717/1.1 -> 5.156090909 | M84: =4332450*'Price Sets'!X6/10^6 -> 3.541608763 | N84: 0 | O84: =0.2/1.25 -> 0.16 | P84: 0.2 | Q84: 0 | R84: =R6/L6*L84 -> 2.770796517 | S84: =S6/M6*M84 -> 1.64389965 | U84: Mostly TEG or mol sieve and water make-up
D85: Other | E85: £M pa | F85: =0.022*F17*24*365*F37*'Price Sets'!$X$6/1000000 -> 0.1770600325 | G85: =0.022*G17*24*365*G37*'Price Sets'!$X$6/1000000 -> 0.1509451221 | H85: 0 | I85: =0.022*I17*24*365*I37*'Price Sets'!$X$6/1000000 -> 0.1095215724 | J85: 0 | K85: 0 | L85: 0 | M85: 2.024109663 | N85: =1655600*'Price Sets'!X6/10^6 -> 1.353388376 | O85: =0.022*(O17-O9)*24*365*O37*'Price Sets'!$X$6/1000000+256.372/7 -> 36.77608498 | P85: 0 | Q85: 0 | R85: 0 | S85: =S6/M6*M85 -> 0.9395259018
B86: Income Estimates (2017 basis)
D87: Income from Elec Export | E87: £M pa | F87: =F17*24*365*F37*F101/1000000 -> 730.6271787 | G87: 586.8503442 | H87: =H17*24*365*H37*H101/1000000 -> 0.5510916 | I87: 609.2491064 | J87: 598.8126222 | K87: =K17*24*365*K37*K101/1000000 -> 0.7355772 | L87: 630.2479776 | M87: 719.6424742 | N87: 535.4871552 | O87: 840.4001704 | P87: 531.3172357 | Q87: =Q17*24*365*Q37*Q101/1000000 -> 1.3410684 | R87: 563.9665736 | S87: 541.728912
B88: Start-up Costs & Working Capital (2017 basis)
C89: Total Start-up Cost (excl. Fuel) | E89: £M | F89: =(F90*F74+F91*SUM(F77:F78)+F92*SUM(F83:F85))/12 -> 4.459593758 | G89: 7.748717604 | H89: =(H90*H74+H91*SUM(H77:H78)+H92*SUM(H83:H85))/12 -> 0 | I89: 10.00547142 | J89: 10.87779962 | K89: =(K90*K74+K91*SUM(K77:K78)+K92*SUM(K83:K85))/12 -> 0 | L89: 11.77942739 | M89: 16.76918202 | N89: 7.037054594 | O89: 17.74423375 | P89: 8.17147845 | Q89: =(Q90*Q74+Q91*SUM(Q77:Q78)+Q92*SUM(Q83:Q85))/12 -> 0 | R89: 8.906318788 | S89: 10.822299
D90: Start-up Labour | E90: Months | F90: 3 | G90: 3 | H90: 3 | I90: 4 | J90: 3 | K90: 3 | L90: 3 | M90: 4 | N90: 4 | O90: 4 | P90: 3 | Q90: 3 | R90: 3 | S90: 4 | U90: 3 months (simple); 4 months (complex)
C91: 3 | D91: Start-up Maintenance | E91: Months | F91: =$C91 -> 3 | G91: =$C91 -> 3 | H91: 3 | I91: 3 | J91: 3 | K91: 3 | L91: 3 | M91: 3 | N91: 3 | O91: 3 | P91: 3 | Q91: 3 | R91: 3 | S91: 3
C92: 3 | D92: Start-up Consumables | E92: Months | F92: =$C92 -> 3 | G92: 3 | H92: 3 | I92: 3 | J92: 3 | K92: 3 | L92: 3 | M92: 3 | N92: 3 | O92: 3 | P92: 3 | Q92: 3 | R92: 3 | S92: 3
C93: 1 | D93: Start-up Fuel | E93: Months | F93: 1 | G93: 1 | H93: 1 | I93: 1 | J93: 1 | K93: 1 | L93: 1 | M93: 1 | N93: 1 | O93: 1 | P93: 1 | Q93: 1 | R93: 1 | S93: 1
C94: 1 | D94: Working Capital Allowance | E94: Months | F94: =$C94 -> 1 | G94: =$C94 -> 1 | H94: =$C94 -> 1 | I94: =$C94 -> 1 | J94: 1 | K94: =$C94 -> 1 | L94: 1 | M94: 1 | N94: 1 | O94: 1 | P94: 1 | Q94: =$C94 -> 1 | R94: 1 | S94: 1 | U94: Apllies to Fuel & Consumables
B95: Simplified NPV Estimate
D96: Annual Cash Flow Income | E96: £M pa | F96: =SUM(F87:F87)-F70 -> 694.2352749 | G96: 477.0765485 | H96: =SUM(H87:H87)-H70 -> 0.5478116 | I96: 490.7197902 | J96: 410.2432429 | K96: =SUM(K87:K87)-K70 -> 0.7322972 | L96: 435.1166447 | M96: 504.0291668 | N96: 436.6658238 | O96: 659.9954292 | P96: 391.1927514 | Q96: =SUM(Q87:Q87)-Q70 -> 1.3377884 | R96: 416.408228 | S96: 417.0578209
C97: 25 | D97: Project Life | E97: years | F97: =$C97 -> 25 | G97: =$C97 -> 25 | H97: =$C97 -> 25 | I97: 25 | J97: 25 | K97: =$C97 -> 25 | L97: 25 | M97: 25 | N97: 25 | O97: 25 | P97: 25 | Q97: =$C97 -> 25 | R97: 25 | S97: 25
C98: 0 | D98: Cost Escalation Rate | E98: % / year | F98: =$C98 -> 0 | G98: =$C98 -> 0 | H98: 0 | I98: 0 | J98: 0 | K98: 0 | L98: 0 | M98: 0 | N98: 0 | O98: 0 | P98: 0 | Q98: 0 | R98: 0 | S98: 0
C99: 0.089 | D99: Discount Rate | E99: % / year | F99: 0.078 | G99: 0.089 | H99: 0.089 | I99: 0.089 | J99: 0.089 | K99: 0.089 | L99: 0.089 | M99: 0.089 | N99: 0.089 | O99: 0.089 | P99: 0.089 | Q99: 0.089 | R99: 0.089 | S99: 0.089
D100: NPV | E100: £M | F100: =F573 -> -7.318590178e-13 | G100: =G573 -> 1.945110739e-13 | H100: =H573 -> 1.90655901 | I100: =I573 -> -3.783640068e-13 | J100: 2.039257652e-12 | K100: =K573 -> 3.81596852 | L100: -7.922551504e-13 | M100: =M573 -> 4.369837825e-13 | N100: 2.575717417e-13 | O100: -1.953992523e-14 | P100: 7.451816941e-13 | Q100: =Q573 -> 6.186408919 | R100: =R573 -> 1.771027769e-12 | S100: =S573 -> -4.121147867e-13 | U100: Use "Update LCOE" button to Goal Seek this row to zero by varying LCOE in the line below
B101: Levelised Cost of Electricity | E101: £/MWh | F101: 74.210437 | G101: 69.91944715 | H101: 69.9 | I101: 100.0425921 | J101: 93.29103328 | K101: 93.3 | L101: 96.01033973 | M101: 120.8406073 | N101: 80.05934276 | O101: 70.65866257 | P101: 170.079185 | Q101: 170.1 | R101: 177.9137031 | S101: 204.3013115 | U101: Electricity sales price is set in order to achieve an NPV=0 over the lifetime of the project
B102: Cost of CO2 Avoided | E102: £/tCO2 | F102: 0 | G102: =(G101-$F$101)/(($F$50-G50)/1000) -> -14.54201792 | H102: =(H101-$F$101)/(($F$50-H50)/1000) -> -13.19086538 | I102: =(I101-$F$101)/(($F$50-I50)/1000) -> 91.08881693 | J102: 81.26447142 | K102: =(K101-$F$101)/(($F$50-K50)/1000) -> 58.36787862 | L102: 95.11640748 | M102: 195.0769189 | N102: 20.01065808 | O102: -11.74699434 | P102: 524.0686068 | Q102: 291.8949591 | R102: 566.1383558 | S102: 571.7362938 | U102: Consistent with definition on P145 (section 11.1.3) of IEAGHG 2012 report:
D103: NPV (excl. Carbon Price) | E103: £M | F103: =F672 -> -5.329070518e-14 | G103: =G672 -> 3.677058658e-13 | H103: -2.892651396e-16 | I103: -3.907985047e-13 | J103: 3.403499704e-12 | K103: =K672 -> -3.917781491e-17 | L103: -2.291500323e-13 | M103: 3.836930773e-13 | N103: -1.740829703e-13 | O103: 6.892264537e-13 | P103: -2.247091402e-12 | Q103: 2.949029909e-17 | R103: -3.087308187e-12 | S103: -1.41042733e-12
B104: Levelised Cost of Electricity (excl. Carbon Price) | E104: £/MWh | F104: 45.50540469 | G104: 67.06680482 | H104: 21.42748919 | I104: 96.23633551 | J104: 85.75404461 | K104: 0.490121021 | L104: 88.02695795 | M104: 113.333727 | N104: 76.97534063 | O104: 68.41069634 | P104: 158.4112044 | Q104: 19.87028445 | R104: 166.265226 | S104: 195.8394824 | U104: This is calculated the same as the above lines, except that Carbon Price is excluded.
B105: Cost of CO2 Avoided (excl. Carbon Price) | E105: £/tCO2 | F105: 0 | G105: =(G104-$F$104)/(($F$50-G50)/1000) -> 73.07084793 | H105: =(H104-$F$104)/(($F$50-H50)/1000) -> -73.68360605 | I105: 178.8863707 | J105: 171.4194043 | K105: =(K104-$F$104)/(($F$50-K50)/1000) -> -137.6378607 | L105: 185.5282309 | M105: 283.7592063 | N105: 107.6669986 | O105: 75.75603022 | P105: 617.2020225 | Q105: -78.03521198 | R105: 659.2537465 | S105: 660.7031336
B107: Fuel Cost - Natural Gas (£ M)
E108: year of Operation
B109: 2021 | E109: -4
B110: 2022 | E110: -3
B111: 2023 | E111: -2
B112: 2024 | D112: Start-up Fuel | E112: -1 | F112: =-F$24*'Price Sets'!$C15*F$93/12*24*365/1000000 -> -20.94991039 | G112: =-G$24*'Price Sets'!$C15*G$93/12*24*365/1000000 -> -20.94991039 | H112: =-H$24*'Price Sets'!$C15*H$93/12*24*365/1000000 -> -0.01079759266 | I112: =-I$24*'Price Sets'!$C15*I$93/12*24*365/1000000 -> -20.58561041 | J112: =-J$24*'Price Sets'!$C15*J$93/12*24*365/1000000 -> 0 | K112: =-K$24*'Price Sets'!$C15*K$93/12*24*365/1000000 -> 0 | L112: =-L$24*'Price Sets'!$C15*L$93/12*24*365/1000000 -> 0 | M112: =-M$24*'Price Sets'!$C15*M$93/12*24*365/1000000 -> 0 | N112: =-N$24*'Price Sets'!$C15*N$93/12*24*365/1000000 -> -16.58842799 | O112: =-O$24*'Price Sets'!$C15*O$93/12*24*365/1000000 -> -27.28227738 | P112: =-P$24*'Price Sets'!$C15*P$93/12*24*365/1000000 -> 0 | Q112: =-Q$24*'Price Sets'!$C15*Q$93/12*24*365/1000000 -> 0 | R112: =-R$24*'Price Sets'!$C15*R$93/12*24*365/1000000 -> 0 | S112: =-S$24*'Price Sets'!$C15*S$93/12*24*365/1000000 -> 0
B113: 2025 | D113: First year of Operation (reduced rate) | E113: 1 | F113: =-F$24*'Price Sets'!$C16*F$37*F$39*24*365/1000000 -> -149.8451863 | G113: =-G$24*'Price Sets'!$C16*G$37*G$39*24*365/1000000 -> -145.0114706 | H113: =-H$24*'Price Sets'!$C16*H$37*H$39*24*365/1000000 -> -0.0747389732 | I113: =-I$24*'Price Sets'!$C16*I$37*I$39*24*365/1000000 -> -134.5737495 | J113: =-J$24*'Price Sets'!$C16*J$37*J$39*24*365/1000000 -> 0 | K113: =-K$24*'Price Sets'!$C16*K$37*K$39*24*365/1000000 -> 0 | L113: =-L$24*'Price Sets'!$C16*L$37*L$39*24*365/1000000 -> 0 | M113: =-M$24*'Price Sets'!$C16*M$37*M$39*24*365/1000000 -> 0 | N113: =-N$24*'Price Sets'!$C16*N$37*N$39*24*365/1000000 -> -114.8220824 | O113: =-O$24*'Price Sets'!$C16*O$37*O$39*24*365/1000000 -> -188.8429636 | P113: =-P$24*'Price Sets'!$C16*P$37*P$39*24*365/1000000 -> 0 | Q113: =-Q$24*'Price Sets'!$C16*Q$37*Q$39*24*365/1000000 -> 0 | R113: =-R$24*'Price Sets'!$C16*R$37*R$39*24*365/1000000 -> 0 | S113: =-S$24*'Price Sets'!$C16*S$37*S$39*24*365/1000000 -> 0
B114: 2026 | D114: Full availability from second year | E114: 2 | F114: =-F$24*'Price Sets'!$C17*F$37*24*365/1000000 -> -265.6829545 | G114: =-G$24*'Price Sets'!$C17*G$37*24*365/1000000 -> -257.1125366 | H114: =-H$24*'Price Sets'!$C17*H$37*24*365/1000000 -> -0.1325159099 | I114: =-I$24*'Price Sets'!$C17*I$37*24*365/1000000 -> -238.6059388 | J114: =-J$24*'Price Sets'!$C17*J$37*24*365/1000000 -> 0 | K114: =-K$24*'Price Sets'!$C17*K$37*24*365/1000000 -> 0 | L114: =-L$24*'Price Sets'!$C17*L$37*24*365/1000000 -> 0 | M114: =-M$24*'Price Sets'!$C17*M$37*24*365/1000000 -> 0 | N114: =-N$24*'Price Sets'!$C17*N$37*24*365/1000000 -> -203.5852526 | O114: =-O$24*'Price Sets'!$C17*O$37*24*365/1000000 -> -334.8279496 | P114: =-P$24*'Price Sets'!$C17*P$37*24*365/1000000 -> 0 | Q114: =-Q$24*'Price Sets'!$C17*Q$37*24*365/1000000 -> 0 | R114: =-R$24*'Price Sets'!$C17*R$37*24*365/1000000 -> 0 | S114: =-S$24*'Price Sets'!$C17*S$37*24*365/1000000 -> 0
B115: 2027 | E115: 3 | F115: =-F$24*'Price Sets'!$C18*F$37*24*365/1000000 -> -281.6239317 | G115: =-G$24*'Price Sets'!$C18*G$37*24*365/1000000 -> -272.5392888 | H115: =-H$24*'Price Sets'!$C18*H$37*24*365/1000000 -> -0.1404668645 | I115: =-I$24*'Price Sets'!$C18*I$37*24*365/1000000 -> -252.9222952 | J115: =-J$24*'Price Sets'!$C18*J$37*24*365/1000000 -> 0 | K115: =-K$24*'Price Sets'!$C18*K$37*24*365/1000000 -> 0 | L115: =-L$24*'Price Sets'!$C18*L$37*24*365/1000000 -> 0 | M115: =-M$24*'Price Sets'!$C18*M$37*24*365/1000000 -> 0 | N115: =-N$24*'Price Sets'!$C18*N$37*24*365/1000000 -> -215.8003677 | O115: =-O$24*'Price Sets'!$C18*O$37*24*365/1000000 -> -354.9176266 | P115: =-P$24*'Price Sets'!$C18*P$37*24*365/1000000 -> 0 | Q115: =-Q$24*'Price Sets'!$C18*Q$37*24*365/1000000 -> 0 | R115: =-R$24*'Price Sets'!$C18*R$37*24*365/1000000 -> 0 | S115: =-S$24*'Price Sets'!$C18*S$37*24*365/1000000 -> 0
B116: 2028 | E116: 4 | F116: =-F$24*'Price Sets'!$C19*F$37*24*365/1000000 -> -297.564909 | G116: =-G$24*'Price Sets'!$C19*G$37*24*365/1000000 -> -287.966041 | H116: =-H$24*'Price Sets'!$C19*H$37*24*365/1000000 -> -0.1484178191 | I116: =-I$24*'Price Sets'!$C19*I$37*24*365/1000000 -> -267.2386515 | J116: =-J$24*'Price Sets'!$C19*J$37*24*365/1000000 -> 0 | K116: =-K$24*'Price Sets'!$C19*K$37*24*365/1000000 -> 0 | L116: =-L$24*'Price Sets'!$C19*L$37*24*365/1000000 -> 0 | M116: =-M$24*'Price Sets'!$C19*M$37*24*365/1000000 -> 0 | N116: =-N$24*'Price Sets'!$C19*N$37*24*365/1000000 -> -228.0154829 | O116: =-O$24*'Price Sets'!$C19*O$37*24*365/1000000 -> -375.0073036 | P116: =-P$24*'Price Sets'!$C19*P$37*24*365/1000000 -> 0 | Q116: =-Q$24*'Price Sets'!$C19*Q$37*24*365/1000000 -> 0 | R116: =-R$24*'Price Sets'!$C19*R$37*24*365/1000000 -> 0 | S116: =-S$24*'Price Sets'!$C19*S$37*24*365/1000000 -> 0
B117: 2029 | E117: 5 | F117: =-F$24*'Price Sets'!$C20*F$37*24*365/1000000 -> -313.5058863 | G117: =-G$24*'Price Sets'!$C20*G$37*24*365/1000000 -> -303.3927932 | H117: =-H$24*'Price Sets'!$C20*H$37*24*365/1000000 -> -0.1563687737 | I117: =-I$24*'Price Sets'!$C20*I$37*24*365/1000000 -> -281.5550078 | J117: =-J$24*'Price Sets'!$C20*J$37*24*365/1000000 -> 0 | K117: =-K$24*'Price Sets'!$C20*K$37*24*365/1000000 -> 0 | L117: =-L$24*'Price Sets'!$C20*L$37*24*365/1000000 -> 0 | M117: =-M$24*'Price Sets'!$C20*M$37*24*365/1000000 -> 0 | N117: =-N$24*'Price Sets'!$C20*N$37*24*365/1000000 -> -240.230598 | O117: =-O$24*'Price Sets'!$C20*O$37*24*365/1000000 -> -395.0969806 | P117: =-P$24*'Price Sets'!$C20*P$37*24*365/1000000 -> 0 | Q117: =-Q$24*'Price Sets'!$C20*Q$37*24*365/1000000 -> 0 | R117: =-R$24*'Price Sets'!$C20*R$37*24*365/1000000 -> 0 | S117: =-S$24*'Price Sets'!$C20*S$37*24*365/1000000 -> 0
B118: 2030 | E118: 6 | F118: =-F$24*'Price Sets'!$C21*F$37*24*365/1000000 -> -329.4468635 | G118: =-G$24*'Price Sets'!$C21*G$37*24*365/1000000 -> -318.8195453 | H118: =-H$24*'Price Sets'!$C21*H$37*24*365/1000000 -> -0.1643197283 | I118: =-I$24*'Price Sets'!$C21*I$37*24*365/1000000 -> -295.8713641 | J118: =-J$24*'Price Sets'!$C21*J$37*24*365/1000000 -> 0 | K118: =-K$24*'Price Sets'!$C21*K$37*24*365/1000000 -> 0 | L118: =-L$24*'Price Sets'!$C21*L$37*24*365/1000000 -> 0 | M118: =-M$24*'Price Sets'!$C21*M$37*24*365/1000000 -> 0 | N118: =-N$24*'Price Sets'!$C21*N$37*24*365/1000000 -> -252.4457132 | O118: =-O$24*'Price Sets'!$C21*O$37*24*365/1000000 -> -415.1866575 | P118: =-P$24*'Price Sets'!$C21*P$37*24*365/1000000 -> 0 | Q118: =-Q$24*'Price Sets'!$C21*Q$37*24*365/1000000 -> 0 | R118: =-R$24*'Price Sets'!$C21*R$37*24*365/1000000 -> 0 | S118: =-S$24*'Price Sets'!$C21*S$37*24*365/1000000 -> 0
B119: 2031 | E119: 7 | F119: =-F$24*'Price Sets'!$C22*F$37*24*365/1000000 -> -329.4468635 | G119: =-G$24*'Price Sets'!$C22*G$37*24*365/1000000 -> -318.8195453 | H119: =-H$24*'Price Sets'!$C22*H$37*24*365/1000000 -> -0.1643197283 | I119: =-I$24*'Price Sets'!$C22*I$37*24*365/1000000 -> -295.8713641 | J119: =-J$24*'Price Sets'!$C22*J$37*24*365/1000000 -> 0 | K119: =-K$24*'Price Sets'!$C22*K$37*24*365/1000000 -> 0 | L119: =-L$24*'Price Sets'!$C22*L$37*24*365/1000000 -> 0 | M119: =-M$24*'Price Sets'!$C22*M$37*24*365/1000000 -> 0 | N119: =-N$24*'Price Sets'!$C22*N$37*24*365/1000000 -> -252.4457132 | O119: =-O$24*'Price Sets'!$C22*O$37*24*365/1000000 -> -415.1866575 | P119: =-P$24*'Price Sets'!$C22*P$37*24*365/1000000 -> 0 | Q119: =-Q$24*'Price Sets'!$C22*Q$37*24*365/1000000 -> 0 | R119: =-R$24*'Price Sets'!$C22*R$37*24*365/1000000 -> 0 | S119: =-S$24*'Price Sets'!$C22*S$37*24*365/1000000 -> 0
B120: 2032 | E120: 8 | F120: =-F$24*'Price Sets'!$C23*F$37*24*365/1000000 -> -329.4468635 | G120: =-G$24*'Price Sets'!$C23*G$37*24*365/1000000 -> -318.8195453 | H120: =-H$24*'Price Sets'!$C23*H$37*24*365/1000000 -> -0.1643197283 | I120: =-I$24*'Price Sets'!$C23*I$37*24*365/1000000 -> -295.8713641 | J120: =-J$24*'Price Sets'!$C23*J$37*24*365/1000000 -> 0 | K120: =-K$24*'Price Sets'!$C23*K$37*24*365/1000000 -> 0 | L120: =-L$24*'Price Sets'!$C23*L$37*24*365/1000000 -> 0 | M120: =-M$24*'Price Sets'!$C23*M$37*24*365/1000000 -> 0 | N120: =-N$24*'Price Sets'!$C23*N$37*24*365/1000000 -> -252.4457132 | O120: =-O$24*'Price Sets'!$C23*O$37*24*365/1000000 -> -415.1866575 | P120: =-P$24*'Price Sets'!$C23*P$37*24*365/1000000 -> 0 | Q120: =-Q$24*'Price Sets'!$C23*Q$37*24*365/1000000 -> 0 | R120: =-R$24*'Price Sets'!$C23*R$37*24*365/1000000 -> 0 | S120: =-S$24*'Price Sets'!$C23*S$37*24*365/1000000 -> 0
B121: 2033 | E121: 9 | F121: =-F$24*'Price Sets'!$C24*F$37*24*365/1000000 -> -329.4468635 | G121: =-G$24*'Price Sets'!$C24*G$37*24*365/1000000 -> -318.8195453 | H121: =-H$24*'Price Sets'!$C24*H$37*24*365/1000000 -> -0.1643197283 | I121: =-I$24*'Price Sets'!$C24*I$37*24*365/1000000 -> -295.8713641 | J121: =-J$24*'Price Sets'!$C24*J$37*24*365/1000000 -> 0 | K121: =-K$24*'Price Sets'!$C24*K$37*24*365/1000000 -> 0 | L121: =-L$24*'Price Sets'!$C24*L$37*24*365/1000000 -> 0 | M121: =-M$24*'Price Sets'!$C24*M$37*24*365/1000000 -> 0 | N121: =-N$24*'Price Sets'!$C24*N$37*24*365/1000000 -> -252.4457132 | O121: =-O$24*'Price Sets'!$C24*O$37*24*365/1000000 -> -415.1866575 | P121: =-P$24*'Price Sets'!$C24*P$37*24*365/1000000 -> 0 | Q121: =-Q$24*'Price Sets'!$C24*Q$37*24*365/1000000 -> 0 | R121: =-R$24*'Price Sets'!$C24*R$37*24*365/1000000 -> 0 | S121: =-S$24*'Price Sets'!$C24*S$37*24*365/1000000 -> 0
B122: 2034 | E122: 10 | F122: =-F$24*'Price Sets'!$C25*F$37*24*365/1000000 -> -329.4468635 | G122: =-G$24*'Price Sets'!$C25*G$37*24*365/1000000 -> -318.8195453 | H122: =-H$24*'Price Sets'!$C25*H$37*24*365/1000000 -> -0.1643197283 | I122: =-I$24*'Price Sets'!$C25*I$37*24*365/1000000 -> -295.8713641 | J122: =-J$24*'Price Sets'!$C25*J$37*24*365/1000000 -> 0 | K122: =-K$24*'Price Sets'!$C25*K$37*24*365/1000000 -> 0 | L122: =-L$24*'Price Sets'!$C25*L$37*24*365/1000000 -> 0 | M122: =-M$24*'Price Sets'!$C25*M$37*24*365/1000000 -> 0 | N122: =-N$24*'Price Sets'!$C25*N$37*24*365/1000000 -> -252.4457132 | O122: =-O$24*'Price Sets'!$C25*O$37*24*365/1000000 -> -415.1866575 | P122: =-P$24*'Price Sets'!$C25*P$37*24*365/1000000 -> 0 | Q122: =-Q$24*'Price Sets'!$C25*Q$37*24*365/1000000 -> 0 | R122: =-R$24*'Price Sets'!$C25*R$37*24*365/1000000 -> 0 | S122: =-S$24*'Price Sets'!$C25*S$37*24*365/1000000 -> 0
B123: 2035 | E123: 11 | F123: =-F$24*'Price Sets'!$C26*F$37*24*365/1000000 -> -329.4468635 | G123: =-G$24*'Price Sets'!$C26*G$37*24*365/1000000 -> -318.8195453 | H123: =-H$24*'Price Sets'!$C26*H$37*24*365/1000000 -> -0.1643197283 | I123: =-I$24*'Price Sets'!$C26*I$37*24*365/1000000 -> -295.8713641 | J123: =-J$24*'Price Sets'!$C26*J$37*24*365/1000000 -> 0 | K123: =-K$24*'Price Sets'!$C26*K$37*24*365/1000000 -> 0 | L123: =-L$24*'Price Sets'!$C26*L$37*24*365/1000000 -> 0 | M123: =-M$24*'Price Sets'!$C26*M$37*24*365/1000000 -> 0 | N123: =-N$24*'Price Sets'!$C26*N$37*24*365/1000000 -> -252.4457132 | O123: =-O$24*'Price Sets'!$C26*O$37*24*365/1000000 -> -415.1866575 | P123: =-P$24*'Price Sets'!$C26*P$37*24*365/1000000 -> 0 | Q123: =-Q$24*'Price Sets'!$C26*Q$37*24*365/1000000 -> 0 | R123: =-R$24*'Price Sets'!$C26*R$37*24*365/1000000 -> 0 | S123: =-S$24*'Price Sets'!$C26*S$37*24*365/1000000 -> 0
B124: 2036 | E124: 12 | F124: =-F$24*'Price Sets'!$C27*F$37*24*365/1000000 -> -329.4468635 | G124: =-G$24*'Price Sets'!$C27*G$37*24*365/1000000 -> -318.8195453 | H124: =-H$24*'Price Sets'!$C27*H$37*24*365/1000000 -> -0.1643197283 | I124: =-I$24*'Price Sets'!$C27*I$37*24*365/1000000 -> -295.8713641 | J124: =-J$24*'Price Sets'!$C27*J$37*24*365/1000000 -> 0 | K124: =-K$24*'Price Sets'!$C27*K$37*24*365/1000000 -> 0 | L124: =-L$24*'Price Sets'!$C27*L$37*24*365/1000000 -> 0 | M124: =-M$24*'Price Sets'!$C27*M$37*24*365/1000000 -> 0 | N124: =-N$24*'Price Sets'!$C27*N$37*24*365/1000000 -> -252.4457132 | O124: =-O$24*'Price Sets'!$C27*O$37*24*365/1000000 -> -415.1866575 | P124: =-P$24*'Price Sets'!$C27*P$37*24*365/1000000 -> 0 | Q124: =-Q$24*'Price Sets'!$C27*Q$37*24*365/1000000 -> 0 | R124: =-R$24*'Price Sets'!$C27*R$37*24*365/1000000 -> 0 | S124: =-S$24*'Price Sets'!$C27*S$37*24*365/1000000 -> 0
B125: 2037 | E125: 13 | F125: =-F$24*'Price Sets'!$C28*F$37*24*365/1000000 -> -329.4468635 | G125: =-G$24*'Price Sets'!$C28*G$37*24*365/1000000 -> -318.8195453 | H125: =-H$24*'Price Sets'!$C28*H$37*24*365/1000000 -> -0.1643197283 | I125: =-I$24*'Price Sets'!$C28*I$37*24*365/1000000 -> -295.8713641 | J125: =-J$24*'Price Sets'!$C28*J$37*24*365/1000000 -> 0 | K125: =-K$24*'Price Sets'!$C28*K$37*24*365/1000000 -> 0 | L125: =-L$24*'Price Sets'!$C28*L$37*24*365/1000000 -> 0 | M125: =-M$24*'Price Sets'!$C28*M$37*24*365/1000000 -> 0 | N125: =-N$24*'Price Sets'!$C28*N$37*24*365/1000000 -> -252.4457132 | O125: =-O$24*'Price Sets'!$C28*O$37*24*365/1000000 -> -415.1866575 | P125: =-P$24*'Price Sets'!$C28*P$37*24*365/1000000 -> 0 | Q125: =-Q$24*'Price Sets'!$C28*Q$37*24*365/1000000 -> 0 | R125: =-R$24*'Price Sets'!$C28*R$37*24*365/1000000 -> 0 | S125: =-S$24*'Price Sets'!$C28*S$37*24*365/1000000 -> 0
B126: 2038 | E126: 14 | F126: =-F$24*'Price Sets'!$C29*F$37*24*365/1000000 -> -329.4468635 | G126: =-G$24*'Price Sets'!$C29*G$37*24*365/1000000 -> -318.8195453 | H126: =-H$24*'Price Sets'!$C29*H$37*24*365/1000000 -> -0.1643197283 | I126: =-I$24*'Price Sets'!$C29*I$37*24*365/1000000 -> -295.8713641 | J126: =-J$24*'Price Sets'!$C29*J$37*24*365/1000000 -> 0 | K126: =-K$24*'Price Sets'!$C29*K$37*24*365/1000000 -> 0 | L126: =-L$24*'Price Sets'!$C29*L$37*24*365/1000000 -> 0 | M126: =-M$24*'Price Sets'!$C29*M$37*24*365/1000000 -> 0 | N126: =-N$24*'Price Sets'!$C29*N$37*24*365/1000000 -> -252.4457132 | O126: =-O$24*'Price Sets'!$C29*O$37*24*365/1000000 -> -415.1866575 | P126: =-P$24*'Price Sets'!$C29*P$37*24*365/1000000 -> 0 | Q126: =-Q$24*'Price Sets'!$C29*Q$37*24*365/1000000 -> 0 | R126: =-R$24*'Price Sets'!$C29*R$37*24*365/1000000 -> 0 | S126: =-S$24*'Price Sets'!$C29*S$37*24*365/1000000 -> 0
B127: 2039 | E127: 15 | F127: =-F$24*'Price Sets'!$C30*F$37*24*365/1000000 -> -329.4468635 | G127: =-G$24*'Price Sets'!$C30*G$37*24*365/1000000 -> -318.8195453 | H127: =-H$24*'Price Sets'!$C30*H$37*24*365/1000000 -> -0.1643197283 | I127: =-I$24*'Price Sets'!$C30*I$37*24*365/1000000 -> -295.8713641 | J127: =-J$24*'Price Sets'!$C30*J$37*24*365/1000000 -> 0 | K127: =-K$24*'Price Sets'!$C30*K$37*24*365/1000000 -> 0 | L127: =-L$24*'Price Sets'!$C30*L$37*24*365/1000000 -> 0 | M127: =-M$24*'Price Sets'!$C30*M$37*24*365/1000000 -> 0 | N127: =-N$24*'Price Sets'!$C30*N$37*24*365/1000000 -> -252.4457132 | O127: =-O$24*'Price Sets'!$C30*O$37*24*365/1000000 -> -415.1866575 | P127: =-P$24*'Price Sets'!$C30*P$37*24*365/1000000 -> 0 | Q127: =-Q$24*'Price Sets'!$C30*Q$37*24*365/1000000 -> 0 | R127: =-R$24*'Price Sets'!$C30*R$37*24*365/1000000 -> 0 | S127: =-S$24*'Price Sets'!$C30*S$37*24*365/1000000 -> 0
B128: 2040 | E128: 16 | F128: =-F$24*'Price Sets'!$C31*F$37*24*365/1000000 -> -329.4468635 | G128: =-G$24*'Price Sets'!$C31*G$37*24*365/1000000 -> -318.8195453 | H128: =-H$24*'Price Sets'!$C31*H$37*24*365/1000000 -> -0.1643197283 | I128: =-I$24*'Price Sets'!$C31*I$37*24*365/1000000 -> -295.8713641 | J128: =-J$24*'Price Sets'!$C31*J$37*24*365/1000000 -> 0 | K128: =-K$24*'Price Sets'!$C31*K$37*24*365/1000000 -> 0 | L128: =-L$24*'Price Sets'!$C31*L$37*24*365/1000000 -> 0 | M128: =-M$24*'Price Sets'!$C31*M$37*24*365/1000000 -> 0 | N128: =-N$24*'Price Sets'!$C31*N$37*24*365/1000000 -> -252.4457132 | O128: =-O$24*'Price Sets'!$C31*O$37*24*365/1000000 -> -415.1866575 | P128: =-P$24*'Price Sets'!$C31*P$37*24*365/1000000 -> 0 | Q128: =-Q$24*'Price Sets'!$C31*Q$37*24*365/1000000 -> 0 | R128: =-R$24*'Price Sets'!$C31*R$37*24*365/1000000 -> 0 | S128: =-S$24*'Price Sets'!$C31*S$37*24*365/1000000 -> 0
B129: 2041 | E129: 17 | F129: =-F$24*'Price Sets'!$C32*F$37*24*365/1000000 -> -328.2067524 | G129: =-G$24*'Price Sets'!$C32*G$37*24*365/1000000 -> -317.6194378 | H129: =-H$24*'Price Sets'!$C32*H$37*24*365/1000000 -> -0.1637011924 | I129: =-I$24*'Price Sets'!$C32*I$37*24*365/1000000 -> -294.7576386 | J129: =-J$24*'Price Sets'!$C32*J$37*24*365/1000000 -> 0 | K129: =-K$24*'Price Sets'!$C32*K$37*24*365/1000000 -> 0 | L129: =-L$24*'Price Sets'!$C32*L$37*24*365/1000000 -> 0 | M129: =-M$24*'Price Sets'!$C32*M$37*24*365/1000000 -> 0 | N129: =-N$24*'Price Sets'!$C32*N$37*24*365/1000000 -> -251.4954515 | O129: =-O$24*'Price Sets'!$C32*O$37*24*365/1000000 -> -413.6238028 | P129: =-P$24*'Price Sets'!$C32*P$37*24*365/1000000 -> 0 | Q129: =-Q$24*'Price Sets'!$C32*Q$37*24*365/1000000 -> 0 | R129: =-R$24*'Price Sets'!$C32*R$37*24*365/1000000 -> 0 | S129: =-S$24*'Price Sets'!$C32*S$37*24*365/1000000 -> 0
B130: 2042 | E130: 18 | F130: =-F$24*'Price Sets'!$C33*F$37*24*365/1000000 -> -328.2067524 | G130: =-G$24*'Price Sets'!$C33*G$37*24*365/1000000 -> -317.6194378 | H130: =-H$24*'Price Sets'!$C33*H$37*24*365/1000000 -> -0.1637011924 | I130: =-I$24*'Price Sets'!$C33*I$37*24*365/1000000 -> -294.7576386 | J130: =-J$24*'Price Sets'!$C33*J$37*24*365/1000000 -> 0 | K130: =-K$24*'Price Sets'!$C33*K$37*24*365/1000000 -> 0 | L130: =-L$24*'Price Sets'!$C33*L$37*24*365/1000000 -> 0 | M130: =-M$24*'Price Sets'!$C33*M$37*24*365/1000000 -> 0 | N130: =-N$24*'Price Sets'!$C33*N$37*24*365/1000000 -> -251.4954515 | O130: =-O$24*'Price Sets'!$C33*O$37*24*365/1000000 -> -413.6238028 | P130: =-P$24*'Price Sets'!$C33*P$37*24*365/1000000 -> 0 | Q130: =-Q$24*'Price Sets'!$C33*Q$37*24*365/1000000 -> 0 | R130: =-R$24*'Price Sets'!$C33*R$37*24*365/1000000 -> 0 | S130: =-S$24*'Price Sets'!$C33*S$37*24*365/1000000 -> 0
B131: 2043 | E131: 19 | F131: =-F$24*'Price Sets'!$C34*F$37*24*365/1000000 -> -328.2067524 | G131: =-G$24*'Price Sets'!$C34*G$37*24*365/1000000 -> -317.6194378 | H131: =-H$24*'Price Sets'!$C34*H$37*24*365/1000000 -> -0.1637011924 | I131: =-I$24*'Price Sets'!$C34*I$37*24*365/1000000 -> -294.7576386 | J131: =-J$24*'Price Sets'!$C34*J$37*24*365/1000000 -> 0 | K131: =-K$24*'Price Sets'!$C34*K$37*24*365/1000000 -> 0 | L131: =-L$24*'Price Sets'!$C34*L$37*24*365/1000000 -> 0 | M131: =-M$24*'Price Sets'!$C34*M$37*24*365/1000000 -> 0 | N131: =-N$24*'Price Sets'!$C34*N$37*24*365/1000000 -> -251.4954515 | O131: =-O$24*'Price Sets'!$C34*O$37*24*365/1000000 -> -413.6238028 | P131: =-P$24*'Price Sets'!$C34*P$37*24*365/1000000 -> 0 | Q131: =-Q$24*'Price Sets'!$C34*Q$37*24*365/1000000 -> 0 | R131: =-R$24*'Price Sets'!$C34*R$37*24*365/1000000 -> 0 | S131: =-S$24*'Price Sets'!$C34*S$37*24*365/1000000 -> 0
B132: 2044 | E132: 20 | F132: =-F$24*'Price Sets'!$C35*F$37*24*365/1000000 -> -328.2067524 | G132: =-G$24*'Price Sets'!$C35*G$37*24*365/1000000 -> -317.6194378 | H132: =-H$24*'Price Sets'!$C35*H$37*24*365/1000000 -> -0.1637011924 | I132: =-I$24*'Price Sets'!$C35*I$37*24*365/1000000 -> -294.7576386 | J132: =-J$24*'Price Sets'!$C35*J$37*24*365/1000000 -> 0 | K132: =-K$24*'Price Sets'!$C35*K$37*24*365/1000000 -> 0 | L132: =-L$24*'Price Sets'!$C35*L$37*24*365/1000000 -> 0 | M132: =-M$24*'Price Sets'!$C35*M$37*24*365/1000000 -> 0 | N132: =-N$24*'Price Sets'!$C35*N$37*24*365/1000000 -> -251.4954515 | O132: =-O$24*'Price Sets'!$C35*O$37*24*365/1000000 -> -413.6238028 | P132: =-P$24*'Price Sets'!$C35*P$37*24*365/1000000 -> 0 | Q132: =-Q$24*'Price Sets'!$C35*Q$37*24*365/1000000 -> 0 | R132: =-R$24*'Price Sets'!$C35*R$37*24*365/1000000 -> 0 | S132: =-S$24*'Price Sets'!$C35*S$37*24*365/1000000 -> 0
B133: 2045 | E133: 21 | F133: =-F$24*'Price Sets'!$C36*F$37*24*365/1000000 -> -328.2067524 | G133: =-G$24*'Price Sets'!$C36*G$37*24*365/1000000 -> -317.6194378 | H133: =-H$24*'Price Sets'!$C36*H$37*24*365/1000000 -> -0.1637011924 | I133: =-I$24*'Price Sets'!$C36*I$37*24*365/1000000 -> -294.7576386 | J133: =-J$24*'Price Sets'!$C36*J$37*24*365/1000000 -> 0 | K133: =-K$24*'Price Sets'!$C36*K$37*24*365/1000000 -> 0 | L133: =-L$24*'Price Sets'!$C36*L$37*24*365/1000000 -> 0 | M133: =-M$24*'Price Sets'!$C36*M$37*24*365/1000000 -> 0 | N133: =-N$24*'Price Sets'!$C36*N$37*24*365/1000000 -> -251.4954515 | O133: =-O$24*'Price Sets'!$C36*O$37*24*365/1000000 -> -413.6238028 | P133: =-P$24*'Price Sets'!$C36*P$37*24*365/1000000 -> 0 | Q133: =-Q$24*'Price Sets'!$C36*Q$37*24*365/1000000 -> 0 | R133: =-R$24*'Price Sets'!$C36*R$37*24*365/1000000 -> 0 | S133: =-S$24*'Price Sets'!$C36*S$37*24*365/1000000 -> 0
B134: 2046 | E134: 22 | F134: =-F$24*'Price Sets'!$C37*F$37*24*365/1000000 -> -328.2067524 | G134: =-G$24*'Price Sets'!$C37*G$37*24*365/1000000 -> -317.6194378 | H134: =-H$24*'Price Sets'!$C37*H$37*24*365/1000000 -> -0.1637011924 | I134: =-I$24*'Price Sets'!$C37*I$37*24*365/1000000 -> -294.7576386 | J134: =-J$24*'Price Sets'!$C37*J$37*24*365/1000000 -> 0 | K134: =-K$24*'Price Sets'!$C37*K$37*24*365/1000000 -> 0 | L134: =-L$24*'Price Sets'!$C37*L$37*24*365/1000000 -> 0 | M134: =-M$24*'Price Sets'!$C37*M$37*24*365/1000000 -> 0 | N134: =-N$24*'Price Sets'!$C37*N$37*24*365/1000000 -> -251.4954515 | O134: =-O$24*'Price Sets'!$C37*O$37*24*365/1000000 -> -413.6238028 | P134: =-P$24*'Price Sets'!$C37*P$37*24*365/1000000 -> 0 | Q134: =-Q$24*'Price Sets'!$C37*Q$37*24*365/1000000 -> 0 | R134: =-R$24*'Price Sets'!$C37*R$37*24*365/1000000 -> 0 | S134: =-S$24*'Price Sets'!$C37*S$37*24*365/1000000 -> 0
B135: 2047 | E135: 23 | F135: =-F$24*'Price Sets'!$C38*F$37*24*365/1000000 -> -328.2067524 | G135: =-G$24*'Price Sets'!$C38*G$37*24*365/1000000 -> -317.6194378 | H135: =-H$24*'Price Sets'!$C38*H$37*24*365/1000000 -> -0.1637011924 | I135: =-I$24*'Price Sets'!$C38*I$37*24*365/1000000 -> -294.7576386 | J135: =-J$24*'Price Sets'!$C38*J$37*24*365/1000000 -> 0 | K135: =-K$24*'Price Sets'!$C38*K$37*24*365/1000000 -> 0 | L135: =-L$24*'Price Sets'!$C38*L$37*24*365/1000000 -> 0 | M135: =-M$24*'Price Sets'!$C38*M$37*24*365/1000000 -> 0 | N135: =-N$24*'Price Sets'!$C38*N$37*24*365/1000000 -> -251.4954515 | O135: =-O$24*'Price Sets'!$C38*O$37*24*365/1000000 -> -413.6238028 | P135: =-P$24*'Price Sets'!$C38*P$37*24*365/1000000 -> 0 | Q135: =-Q$24*'Price Sets'!$C38*Q$37*24*365/1000000 -> 0 | R135: =-R$24*'Price Sets'!$C38*R$37*24*365/1000000 -> 0 | S135: =-S$24*'Price Sets'!$C38*S$37*24*365/1000000 -> 0
B136: 2048 | E136: 24 | F136: =-F$24*'Price Sets'!$C39*F$37*24*365/1000000 -> -328.2067524 | G136: =-G$24*'Price Sets'!$C39*G$37*24*365/1000000 -> -317.6194378 | H136: =-H$24*'Price Sets'!$C39*H$37*24*365/1000000 -> -0.1637011924 | I136: =-I$24*'Price Sets'!$C39*I$37*24*365/1000000 -> -294.7576386 | J136: =-J$24*'Price Sets'!$C39*J$37*24*365/1000000 -> 0 | K136: =-K$24*'Price Sets'!$C39*K$37*24*365/1000000 -> 0 | L136: =-L$24*'Price Sets'!$C39*L$37*24*365/1000000 -> 0 | M136: =-M$24*'Price Sets'!$C39*M$37*24*365/1000000 -> 0 | N136: =-N$24*'Price Sets'!$C39*N$37*24*365/1000000 -> -251.4954515 | O136: =-O$24*'Price Sets'!$C39*O$37*24*365/1000000 -> -413.6238028 | P136: =-P$24*'Price Sets'!$C39*P$37*24*365/1000000 -> 0 | Q136: =-Q$24*'Price Sets'!$C39*Q$37*24*365/1000000 -> 0 | R136: =-R$24*'Price Sets'!$C39*R$37*24*365/1000000 -> 0 | S136: =-S$24*'Price Sets'!$C39*S$37*24*365/1000000 -> 0
B137: 2049 | D137: Final Year of Operation | E137: 25 | F137: =-F$24*'Price Sets'!$C40*F$37*24*365/1000000 -> -328.2067524 | G137: =-G$24*'Price Sets'!$C40*G$37*24*365/1000000 -> -317.6194378 | H137: =-H$24*'Price Sets'!$C40*H$37*24*365/1000000 -> -0.1637011924 | I137: =-I$24*'Price Sets'!$C40*I$37*24*365/1000000 -> -294.7576386 | J137: =-J$24*'Price Sets'!$C40*J$37*24*365/1000000 -> 0 | K137: =-K$24*'Price Sets'!$C40*K$37*24*365/1000000 -> 0 | L137: =-L$24*'Price Sets'!$C40*L$37*24*365/1000000 -> 0 | M137: =-M$24*'Price Sets'!$C40*M$37*24*365/1000000 -> 0 | N137: =-N$24*'Price Sets'!$C40*N$37*24*365/1000000 -> -251.4954515 | O137: =-O$24*'Price Sets'!$C40*O$37*24*365/1000000 -> -413.6238028 | P137: =-P$24*'Price Sets'!$C40*P$37*24*365/1000000 -> 0 | Q137: =-Q$24*'Price Sets'!$C40*Q$37*24*365/1000000 -> 0 | R137: =-R$24*'Price Sets'!$C40*R$37*24*365/1000000 -> 0 | S137: =-S$24*'Price Sets'!$C40*S$37*24*365/1000000 -> 0
D138: Total | E138: £ M | F138: =SUM(F109:F137) -> -7906.949048 | G138: -7652.561979 | H138: =SUM(H109:H137) -> -3.944133676 | I138: =SUM(I109:I137) -> -7102.885007 | J138: 0 | K138: =SUM(K109:K137) -> 0 | L138: 0 | M138: =SUM(M109:M137) -> 0 | N138: -6059.40412 | O138: -9965.642559 | P138: 0 | Q138: =SUM(Q109:Q137) -> 0 | R138: =SUM(R109:R137) -> 0 | S138: 0
D139: Average | E139: £ M pa | F139: =AVERAGE(F113:F137) -> -315.4399655 | G139: =AVERAGE(G113:G137) -> -305.2644828 | H139: -0.1573334433 | I139: -283.2919758 | J139: 0 | K139: =AVERAGE(K113:K137) -> 0 | L139: 0 | M139: 0 | N139: -241.7126277 | O139: -397.5344113 | P139: 0 | Q139: 0 | R139: 0 | S139: 0
B141: Fuel Cost - Coal (£ M)
E142: year of Operation
B143: 2021 | E143: -4
B144: 2022 | E144: -3
B145: 2023 | E145: -2
B146: 2024 | D146: Start-up Fuel | E146: -1 | F146: =-F$20/1000*'Price Sets'!$E15*F$93/12*24*365/1000000 -> 0 | G146: =-G$20/1000*'Price Sets'!$E15*G$93/12*24*365/1000000 -> 0 | H146: =-H$20/1000*'Price Sets'!$E15*H$93/12*24*365/1000000 -> 0 | I146: =-I$20/1000*'Price Sets'!$E15*I$93/12*24*365/1000000 -> 0 | J146: =-J$20/1000*'Price Sets'!$E15*J$93/12*24*365/1000000 -> -9.666156432 | K146: =-K$20/1000*'Price Sets'!$E15*K$93/12*24*365/1000000 -> -2.974201979e-05 | L146: =-L$20/1000*'Price Sets'!$E15*L$93/12*24*365/1000000 -> -9.666156432 | M146: =-M$20/1000*'Price Sets'!$E15*M$93/12*24*365/1000000 -> -9.365738238 | N146: =-N$20/1000*'Price Sets'!$E15*N$93/12*24*365/1000000 -> 0 | O146: =-O$20/1000*'Price Sets'!$E15*O$93/12*24*365/1000000 -> 0 | P146: =-P$20/1000*'Price Sets'!$E15*P$93/12*24*365/1000000 -> 0 | Q146: =-Q$20/1000*'Price Sets'!$E15*Q$93/12*24*365/1000000 -> 0 | R146: =-R$20/1000*'Price Sets'!$E15*R$93/12*24*365/1000000 -> 0 | S146: =-S$20/1000*'Price Sets'!$E15*S$93/12*24*365/1000000 -> 0
B147: 2025 | D147: First year of Operation (reduced rate) | E147: 1 | F147: =-F$20/1000*'Price Sets'!$E16*F$37*F$39*24*365/1000000 -> 0 | G147: =-G$20/1000*'Price Sets'!$E16*G$37*G$39*24*365/1000000 -> 0 | H147: =-H$20/1000*'Price Sets'!$E16*H$37*H$39*24*365/1000000 -> 0 | I147: =-I$20/1000*'Price Sets'!$E16*I$37*I$39*24*365/1000000 -> 0 | J147: =-J$20/1000*'Price Sets'!$E16*J$37*J$39*24*365/1000000 -> -67.11074323 | K147: =-K$20/1000*'Price Sets'!$E16*K$37*K$39*24*365/1000000 -> -0.0002064945945 | L147: =-L$20/1000*'Price Sets'!$E16*L$37*L$39*24*365/1000000 -> -67.11074323 | M147: =-M$20/1000*'Price Sets'!$E16*M$37*M$39*24*365/1000000 -> -61.41248359 | N147: =-N$20/1000*'Price Sets'!$E16*N$37*N$39*24*365/1000000 -> 0 | O147: =-O$20/1000*'Price Sets'!$E16*O$37*O$39*24*365/1000000 -> 0 | P147: =-P$20/1000*'Price Sets'!$E16*P$37*P$39*24*365/1000000 -> 0 | Q147: =-Q$20/1000*'Price Sets'!$E16*Q$37*Q$39*24*365/1000000 -> 0 | R147: =-R$20/1000*'Price Sets'!$E16*R$37*R$39*24*365/1000000 -> 0 | S147: =-S$20/1000*'Price Sets'!$E16*S$37*S$39*24*365/1000000 -> 0
B148: 2026 | D148: Full availability from second year | E148: 2 | F148: =-F$20/1000*'Price Sets'!$E17*F$37*24*365/1000000 -> 0 | G148: =-G$20/1000*'Price Sets'!$E17*G$37*24*365/1000000 -> 0 | H148: =-H$20/1000*'Price Sets'!$E17*H$37*24*365/1000000 -> 0 | I148: =-I$20/1000*'Price Sets'!$E17*I$37*24*365/1000000 -> 0 | J148: =-J$20/1000*'Price Sets'!$E17*J$37*24*365/1000000 -> -119.307988 | K148: =-K$20/1000*'Price Sets'!$E17*K$37*24*365/1000000 -> -0.0003671015014 | L148: =-L$20/1000*'Price Sets'!$E17*L$37*24*365/1000000 -> -119.307988 | M148: =-M$20/1000*'Price Sets'!$E17*M$37*24*365/1000000 -> -109.1777486 | N148: =-N$20/1000*'Price Sets'!$E17*N$37*24*365/1000000 -> 0 | O148: =-O$20/1000*'Price Sets'!$E17*O$37*24*365/1000000 -> 0 | P148: =-P$20/1000*'Price Sets'!$E17*P$37*24*365/1000000 -> 0 | Q148: =-Q$20/1000*'Price Sets'!$E17*Q$37*24*365/1000000 -> 0 | R148: =-R$20/1000*'Price Sets'!$E17*R$37*24*365/1000000 -> 0 | S148: =-S$20/1000*'Price Sets'!$E17*S$37*24*365/1000000 -> 0
B149: 2027 | E149: 3 | F149: =-F$20/1000*'Price Sets'!$E18*F$37*24*365/1000000 -> 0 | G149: =-G$20/1000*'Price Sets'!$E18*G$37*24*365/1000000 -> 0 | H149: =-H$20/1000*'Price Sets'!$E18*H$37*24*365/1000000 -> 0 | I149: =-I$20/1000*'Price Sets'!$E18*I$37*24*365/1000000 -> 0 | J149: =-J$20/1000*'Price Sets'!$E18*J$37*24*365/1000000 -> -126.7647372 | K149: =-K$20/1000*'Price Sets'!$E18*K$37*24*365/1000000 -> -0.0003900453452 | L149: =-L$20/1000*'Price Sets'!$E18*L$37*24*365/1000000 -> -126.7647372 | M149: =-M$20/1000*'Price Sets'!$E18*M$37*24*365/1000000 -> -116.0013579 | N149: =-N$20/1000*'Price Sets'!$E18*N$37*24*365/1000000 -> 0 | O149: =-O$20/1000*'Price Sets'!$E18*O$37*24*365/1000000 -> 0 | P149: =-P$20/1000*'Price Sets'!$E18*P$37*24*365/1000000 -> 0 | Q149: =-Q$20/1000*'Price Sets'!$E18*Q$37*24*365/1000000 -> 0 | R149: =-R$20/1000*'Price Sets'!$E18*R$37*24*365/1000000 -> 0 | S149: =-S$20/1000*'Price Sets'!$E18*S$37*24*365/1000000 -> 0
B150: 2028 | E150: 4 | F150: =-F$20/1000*'Price Sets'!$E19*F$37*24*365/1000000 -> 0 | G150: =-G$20/1000*'Price Sets'!$E19*G$37*24*365/1000000 -> 0 | H150: =-H$20/1000*'Price Sets'!$E19*H$37*24*365/1000000 -> 0 | I150: =-I$20/1000*'Price Sets'!$E19*I$37*24*365/1000000 -> 0 | J150: =-J$20/1000*'Price Sets'!$E19*J$37*24*365/1000000 -> -134.2214865 | K150: =-K$20/1000*'Price Sets'!$E19*K$37*24*365/1000000 -> -0.0004129891891 | L150: =-L$20/1000*'Price Sets'!$E19*L$37*24*365/1000000 -> -134.2214865 | M150: =-M$20/1000*'Price Sets'!$E19*M$37*24*365/1000000 -> -122.8249672 | N150: =-N$20/1000*'Price Sets'!$E19*N$37*24*365/1000000 -> 0 | O150: =-O$20/1000*'Price Sets'!$E19*O$37*24*365/1000000 -> 0 | P150: =-P$20/1000*'Price Sets'!$E19*P$37*24*365/1000000 -> 0 | Q150: =-Q$20/1000*'Price Sets'!$E19*Q$37*24*365/1000000 -> 0 | R150: =-R$20/1000*'Price Sets'!$E19*R$37*24*365/1000000 -> 0 | S150: =-S$20/1000*'Price Sets'!$E19*S$37*24*365/1000000 -> 0
B151: 2029 | E151: 5 | F151: =-F$20/1000*'Price Sets'!$E20*F$37*24*365/1000000 -> 0 | G151: =-G$20/1000*'Price Sets'!$E20*G$37*24*365/1000000 -> 0 | H151: =-H$20/1000*'Price Sets'!$E20*H$37*24*365/1000000 -> 0 | I151: =-I$20/1000*'Price Sets'!$E20*I$37*24*365/1000000 -> 0 | J151: =-J$20/1000*'Price Sets'!$E20*J$37*24*365/1000000 -> -141.6782357 | K151: =-K$20/1000*'Price Sets'!$E20*K$37*24*365/1000000 -> -0.0004359330329 | L151: =-L$20/1000*'Price Sets'!$E20*L$37*24*365/1000000 -> -141.6782357 | M151: =-M$20/1000*'Price Sets'!$E20*M$37*24*365/1000000 -> -129.6485765 | N151: =-N$20/1000*'Price Sets'!$E20*N$37*24*365/1000000 -> 0 | O151: =-O$20/1000*'Price Sets'!$E20*O$37*24*365/1000000 -> 0 | P151: =-P$20/1000*'Price Sets'!$E20*P$37*24*365/1000000 -> 0 | Q151: =-Q$20/1000*'Price Sets'!$E20*Q$37*24*365/1000000 -> 0 | R151: =-R$20/1000*'Price Sets'!$E20*R$37*24*365/1000000 -> 0 | S151: =-S$20/1000*'Price Sets'!$E20*S$37*24*365/1000000 -> 0
B152: 2030 | E152: 6 | F152: =-F$20/1000*'Price Sets'!$E21*F$37*24*365/1000000 -> 0 | G152: =-G$20/1000*'Price Sets'!$E21*G$37*24*365/1000000 -> 0 | H152: =-H$20/1000*'Price Sets'!$E21*H$37*24*365/1000000 -> 0 | I152: =-I$20/1000*'Price Sets'!$E21*I$37*24*365/1000000 -> 0 | J152: =-J$20/1000*'Price Sets'!$E21*J$37*24*365/1000000 -> -149.1349849 | K152: =-K$20/1000*'Price Sets'!$E21*K$37*24*365/1000000 -> -0.0004588768768 | L152: =-L$20/1000*'Price Sets'!$E21*L$37*24*365/1000000 -> -149.1349849 | M152: =-M$20/1000*'Price Sets'!$E21*M$37*24*365/1000000 -> -136.4721858 | N152: =-N$20/1000*'Price Sets'!$E21*N$37*24*365/1000000 -> 0 | O152: =-O$20/1000*'Price Sets'!$E21*O$37*24*365/1000000 -> 0 | P152: =-P$20/1000*'Price Sets'!$E21*P$37*24*365/1000000 -> 0 | Q152: =-Q$20/1000*'Price Sets'!$E21*Q$37*24*365/1000000 -> 0 | R152: =-R$20/1000*'Price Sets'!$E21*R$37*24*365/1000000 -> 0 | S152: =-S$20/1000*'Price Sets'!$E21*S$37*24*365/1000000 -> 0
B153: 2031 | E153: 7 | F153: =-F$20/1000*'Price Sets'!$E22*F$37*24*365/1000000 -> 0 | G153: =-G$20/1000*'Price Sets'!$E22*G$37*24*365/1000000 -> 0 | H153: =-H$20/1000*'Price Sets'!$E22*H$37*24*365/1000000 -> 0 | I153: =-I$20/1000*'Price Sets'!$E22*I$37*24*365/1000000 -> 0 | J153: =-J$20/1000*'Price Sets'!$E22*J$37*24*365/1000000 -> -149.1349849 | K153: =-K$20/1000*'Price Sets'!$E22*K$37*24*365/1000000 -> -0.0004588768768 | L153: =-L$20/1000*'Price Sets'!$E22*L$37*24*365/1000000 -> -149.1349849 | M153: =-M$20/1000*'Price Sets'!$E22*M$37*24*365/1000000 -> -136.4721858 | N153: =-N$20/1000*'Price Sets'!$E22*N$37*24*365/1000000 -> 0 | O153: =-O$20/1000*'Price Sets'!$E22*O$37*24*365/1000000 -> 0 | P153: =-P$20/1000*'Price Sets'!$E22*P$37*24*365/1000000 -> 0 | Q153: =-Q$20/1000*'Price Sets'!$E22*Q$37*24*365/1000000 -> 0 | R153: =-R$20/1000*'Price Sets'!$E22*R$37*24*365/1000000 -> 0 | S153: =-S$20/1000*'Price Sets'!$E22*S$37*24*365/1000000 -> 0
B154: 2032 | E154: 8 | F154: =-F$20/1000*'Price Sets'!$E23*F$37*24*365/1000000 -> 0 | G154: =-G$20/1000*'Price Sets'!$E23*G$37*24*365/1000000 -> 0 | H154: =-H$20/1000*'Price Sets'!$E23*H$37*24*365/1000000 -> 0 | I154: =-I$20/1000*'Price Sets'!$E23*I$37*24*365/1000000 -> 0 | J154: =-J$20/1000*'Price Sets'!$E23*J$37*24*365/1000000 -> -149.1349849 | K154: =-K$20/1000*'Price Sets'!$E23*K$37*24*365/1000000 -> -0.0004588768768 | L154: =-L$20/1000*'Price Sets'!$E23*L$37*24*365/1000000 -> -149.1349849 | M154: =-M$20/1000*'Price Sets'!$E23*M$37*24*365/1000000 -> -136.4721858 | N154: =-N$20/1000*'Price Sets'!$E23*N$37*24*365/1000000 -> 0 | O154: =-O$20/1000*'Price Sets'!$E23*O$37*24*365/1000000 -> 0 | P154: =-P$20/1000*'Price Sets'!$E23*P$37*24*365/1000000 -> 0 | Q154: =-Q$20/1000*'Price Sets'!$E23*Q$37*24*365/1000000 -> 0 | R154: =-R$20/1000*'Price Sets'!$E23*R$37*24*365/1000000 -> 0 | S154: =-S$20/1000*'Price Sets'!$E23*S$37*24*365/1000000 -> 0
B155: 2033 | E155: 9 | F155: =-F$20/1000*'Price Sets'!$E24*F$37*24*365/1000000 -> 0 | G155: =-G$20/1000*'Price Sets'!$E24*G$37*24*365/1000000 -> 0 | H155: =-H$20/1000*'Price Sets'!$E24*H$37*24*365/1000000 -> 0 | I155: =-I$20/1000*'Price Sets'!$E24*I$37*24*365/1000000 -> 0 | J155: =-J$20/1000*'Price Sets'!$E24*J$37*24*365/1000000 -> -149.1349849 | K155: =-K$20/1000*'Price Sets'!$E24*K$37*24*365/1000000 -> -0.0004588768768 | L155: =-L$20/1000*'Price Sets'!$E24*L$37*24*365/1000000 -> -149.1349849 | M155: =-M$20/1000*'Price Sets'!$E24*M$37*24*365/1000000 -> -136.4721858 | N155: =-N$20/1000*'Price Sets'!$E24*N$37*24*365/1000000 -> 0 | O155: =-O$20/1000*'Price Sets'!$E24*O$37*24*365/1000000 -> 0 | P155: =-P$20/1000*'Price Sets'!$E24*P$37*24*365/1000000 -> 0 | Q155: =-Q$20/1000*'Price Sets'!$E24*Q$37*24*365/1000000 -> 0 | R155: =-R$20/1000*'Price Sets'!$E24*R$37*24*365/1000000 -> 0 | S155: =-S$20/1000*'Price Sets'!$E24*S$37*24*365/1000000 -> 0
B156: 2034 | E156: 10 | F156: =-F$20/1000*'Price Sets'!$E25*F$37*24*365/1000000 -> 0 | G156: =-G$20/1000*'Price Sets'!$E25*G$37*24*365/1000000 -> 0 | H156: =-H$20/1000*'Price Sets'!$E25*H$37*24*365/1000000 -> 0 | I156: =-I$20/1000*'Price Sets'!$E25*I$37*24*365/1000000 -> 0 | J156: =-J$20/1000*'Price Sets'!$E25*J$37*24*365/1000000 -> -149.1349849 | K156: =-K$20/1000*'Price Sets'!$E25*K$37*24*365/1000000 -> -0.0004588768768 | L156: =-L$20/1000*'Price Sets'!$E25*L$37*24*365/1000000 -> -149.1349849 | M156: =-M$20/1000*'Price Sets'!$E25*M$37*24*365/1000000 -> -136.4721858 | N156: =-N$20/1000*'Price Sets'!$E25*N$37*24*365/1000000 -> 0 | O156: =-O$20/1000*'Price Sets'!$E25*O$37*24*365/1000000 -> 0 | P156: =-P$20/1000*'Price Sets'!$E25*P$37*24*365/1000000 -> 0 | Q156: =-Q$20/1000*'Price Sets'!$E25*Q$37*24*365/1000000 -> 0 | R156: =-R$20/1000*'Price Sets'!$E25*R$37*24*365/1000000 -> 0 | S156: =-S$20/1000*'Price Sets'!$E25*S$37*24*365/1000000 -> 0
B157: 2035 | E157: 11 | F157: =-F$20/1000*'Price Sets'!$E26*F$37*24*365/1000000 -> 0 | G157: =-G$20/1000*'Price Sets'!$E26*G$37*24*365/1000000 -> 0 | H157: =-H$20/1000*'Price Sets'!$E26*H$37*24*365/1000000 -> 0 | I157: =-I$20/1000*'Price Sets'!$E26*I$37*24*365/1000000 -> 0 | J157: =-J$20/1000*'Price Sets'!$E26*J$37*24*365/1000000 -> -149.1349849 | K157: =-K$20/1000*'Price Sets'!$E26*K$37*24*365/1000000 -> -0.0004588768768 | L157: =-L$20/1000*'Price Sets'!$E26*L$37*24*365/1000000 -> -149.1349849 | M157: =-M$20/1000*'Price Sets'!$E26*M$37*24*365/1000000 -> -136.4721858 | N157: =-N$20/1000*'Price Sets'!$E26*N$37*24*365/1000000 -> 0 | O157: =-O$20/1000*'Price Sets'!$E26*O$37*24*365/1000000 -> 0 | P157: =-P$20/1000*'Price Sets'!$E26*P$37*24*365/1000000 -> 0 | Q157: =-Q$20/1000*'Price Sets'!$E26*Q$37*24*365/1000000 -> 0 | R157: =-R$20/1000*'Price Sets'!$E26*R$37*24*365/1000000 -> 0 | S157: =-S$20/1000*'Price Sets'!$E26*S$37*24*365/1000000 -> 0
B158: 2036 | E158: 12 | F158: =-F$20/1000*'Price Sets'!$E27*F$37*24*365/1000000 -> 0 | G158: =-G$20/1000*'Price Sets'!$E27*G$37*24*365/1000000 -> 0 | H158: =-H$20/1000*'Price Sets'!$E27*H$37*24*365/1000000 -> 0 | I158: =-I$20/1000*'Price Sets'!$E27*I$37*24*365/1000000 -> 0 | J158: =-J$20/1000*'Price Sets'!$E27*J$37*24*365/1000000 -> -149.1349849 | K158: =-K$20/1000*'Price Sets'!$E27*K$37*24*365/1000000 -> -0.0004588768768 | L158: =-L$20/1000*'Price Sets'!$E27*L$37*24*365/1000000 -> -149.1349849 | M158: =-M$20/1000*'Price Sets'!$E27*M$37*24*365/1000000 -> -136.4721858 | N158: =-N$20/1000*'Price Sets'!$E27*N$37*24*365/1000000 -> 0 | O158: =-O$20/1000*'Price Sets'!$E27*O$37*24*365/1000000 -> 0 | P158: =-P$20/1000*'Price Sets'!$E27*P$37*24*365/1000000 -> 0 | Q158: =-Q$20/1000*'Price Sets'!$E27*Q$37*24*365/1000000 -> 0 | R158: =-R$20/1000*'Price Sets'!$E27*R$37*24*365/1000000 -> 0 | S158: =-S$20/1000*'Price Sets'!$E27*S$37*24*365/1000000 -> 0
B159: 2037 | E159: 13 | F159: =-F$20/1000*'Price Sets'!$E28*F$37*24*365/1000000 -> 0 | G159: =-G$20/1000*'Price Sets'!$E28*G$37*24*365/1000000 -> 0 | H159: =-H$20/1000*'Price Sets'!$E28*H$37*24*365/1000000 -> 0 | I159: =-I$20/1000*'Price Sets'!$E28*I$37*24*365/1000000 -> 0 | J159: =-J$20/1000*'Price Sets'!$E28*J$37*24*365/1000000 -> -149.1349849 | K159: =-K$20/1000*'Price Sets'!$E28*K$37*24*365/1000000 -> -0.0004588768768 | L159: =-L$20/1000*'Price Sets'!$E28*L$37*24*365/1000000 -> -149.1349849 | M159: =-M$20/1000*'Price Sets'!$E28*M$37*24*365/1000000 -> -136.4721858 | N159: =-N$20/1000*'Price Sets'!$E28*N$37*24*365/1000000 -> 0 | O159: =-O$20/1000*'Price Sets'!$E28*O$37*24*365/1000000 -> 0 | P159: =-P$20/1000*'Price Sets'!$E28*P$37*24*365/1000000 -> 0 | Q159: =-Q$20/1000*'Price Sets'!$E28*Q$37*24*365/1000000 -> 0 | R159: =-R$20/1000*'Price Sets'!$E28*R$37*24*365/1000000 -> 0 | S159: =-S$20/1000*'Price Sets'!$E28*S$37*24*365/1000000 -> 0
B160: 2038 | E160: 14 | F160: =-F$20/1000*'Price Sets'!$E29*F$37*24*365/1000000 -> 0 | G160: =-G$20/1000*'Price Sets'!$E29*G$37*24*365/1000000 -> 0 | H160: =-H$20/1000*'Price Sets'!$E29*H$37*24*365/1000000 -> 0 | I160: =-I$20/1000*'Price Sets'!$E29*I$37*24*365/1000000 -> 0 | J160: =-J$20/1000*'Price Sets'!$E29*J$37*24*365/1000000 -> -149.1349849 | K160: =-K$20/1000*'Price Sets'!$E29*K$37*24*365/1000000 -> -0.0004588768768 | L160: =-L$20/1000*'Price Sets'!$E29*L$37*24*365/1000000 -> -149.1349849 | M160: =-M$20/1000*'Price Sets'!$E29*M$37*24*365/1000000 -> -136.4721858 | N160: =-N$20/1000*'Price Sets'!$E29*N$37*24*365/1000000 -> 0 | O160: =-O$20/1000*'Price Sets'!$E29*O$37*24*365/1000000 -> 0 | P160: =-P$20/1000*'Price Sets'!$E29*P$37*24*365/1000000 -> 0 | Q160: =-Q$20/1000*'Price Sets'!$E29*Q$37*24*365/1000000 -> 0 | R160: =-R$20/1000*'Price Sets'!$E29*R$37*24*365/1000000 -> 0 | S160: =-S$20/1000*'Price Sets'!$E29*S$37*24*365/1000000 -> 0
B161: 2039 | E161: 15 | F161: =-F$20/1000*'Price Sets'!$E30*F$37*24*365/1000000 -> 0 | G161: =-G$20/1000*'Price Sets'!$E30*G$37*24*365/1000000 -> 0 | H161: =-H$20/1000*'Price Sets'!$E30*H$37*24*365/1000000 -> 0 | I161: =-I$20/1000*'Price Sets'!$E30*I$37*24*365/1000000 -> 0 | J161: =-J$20/1000*'Price Sets'!$E30*J$37*24*365/1000000 -> -149.1349849 | K161: =-K$20/1000*'Price Sets'!$E30*K$37*24*365/1000000 -> -0.0004588768768 | L161: =-L$20/1000*'Price Sets'!$E30*L$37*24*365/1000000 -> -149.1349849 | M161: =-M$20/1000*'Price Sets'!$E30*M$37*24*365/1000000 -> -136.4721858 | N161: =-N$20/1000*'Price Sets'!$E30*N$37*24*365/1000000 -> 0 | O161: =-O$20/1000*'Price Sets'!$E30*O$37*24*365/1000000 -> 0 | P161: =-P$20/1000*'Price Sets'!$E30*P$37*24*365/1000000 -> 0 | Q161: =-Q$20/1000*'Price Sets'!$E30*Q$37*24*365/1000000 -> 0 | R161: =-R$20/1000*'Price Sets'!$E30*R$37*24*365/1000000 -> 0 | S161: =-S$20/1000*'Price Sets'!$E30*S$37*24*365/1000000 -> 0
B162: 2040 | E162: 16 | F162: =-F$20/1000*'Price Sets'!$E31*F$37*24*365/1000000 -> 0 | G162: =-G$20/1000*'Price Sets'!$E31*G$37*24*365/1000000 -> 0 | H162: =-H$20/1000*'Price Sets'!$E31*H$37*24*365/1000000 -> 0 | I162: =-I$20/1000*'Price Sets'!$E31*I$37*24*365/1000000 -> 0 | J162: =-J$20/1000*'Price Sets'!$E31*J$37*24*365/1000000 -> -149.1349849 | K162: =-K$20/1000*'Price Sets'!$E31*K$37*24*365/1000000 -> -0.0004588768768 | L162: =-L$20/1000*'Price Sets'!$E31*L$37*24*365/1000000 -> -149.1349849 | M162: =-M$20/1000*'Price Sets'!$E31*M$37*24*365/1000000 -> -136.4721858 | N162: =-N$20/1000*'Price Sets'!$E31*N$37*24*365/1000000 -> 0 | O162: =-O$20/1000*'Price Sets'!$E31*O$37*24*365/1000000 -> 0 | P162: =-P$20/1000*'Price Sets'!$E31*P$37*24*365/1000000 -> 0 | Q162: =-Q$20/1000*'Price Sets'!$E31*Q$37*24*365/1000000 -> 0 | R162: =-R$20/1000*'Price Sets'!$E31*R$37*24*365/1000000 -> 0 | S162: =-S$20/1000*'Price Sets'!$E31*S$37*24*365/1000000 -> 0
B163: 2041 | E163: 17 | F163: =-F$20/1000*'Price Sets'!$E32*F$37*24*365/1000000 -> 0 | G163: =-G$20/1000*'Price Sets'!$E32*G$37*24*365/1000000 -> 0 | H163: =-H$20/1000*'Price Sets'!$E32*H$37*24*365/1000000 -> 0 | I163: =-I$20/1000*'Price Sets'!$E32*I$37*24*365/1000000 -> 0 | J163: =-J$20/1000*'Price Sets'!$E32*J$37*24*365/1000000 -> -148.702514 | K163: =-K$20/1000*'Price Sets'!$E32*K$37*24*365/1000000 -> -0.0004575461968 | L163: =-L$20/1000*'Price Sets'!$E32*L$37*24*365/1000000 -> -148.702514 | M163: =-M$20/1000*'Price Sets'!$E32*M$37*24*365/1000000 -> -136.0764352 | N163: =-N$20/1000*'Price Sets'!$E32*N$37*24*365/1000000 -> 0 | O163: =-O$20/1000*'Price Sets'!$E32*O$37*24*365/1000000 -> 0 | P163: =-P$20/1000*'Price Sets'!$E32*P$37*24*365/1000000 -> 0 | Q163: =-Q$20/1000*'Price Sets'!$E32*Q$37*24*365/1000000 -> 0 | R163: =-R$20/1000*'Price Sets'!$E32*R$37*24*365/1000000 -> 0 | S163: =-S$20/1000*'Price Sets'!$E32*S$37*24*365/1000000 -> 0
B164: 2042 | E164: 18 | F164: =-F$20/1000*'Price Sets'!$E33*F$37*24*365/1000000 -> 0 | G164: =-G$20/1000*'Price Sets'!$E33*G$37*24*365/1000000 -> 0 | H164: =-H$20/1000*'Price Sets'!$E33*H$37*24*365/1000000 -> 0 | I164: =-I$20/1000*'Price Sets'!$E33*I$37*24*365/1000000 -> 0 | J164: =-J$20/1000*'Price Sets'!$E33*J$37*24*365/1000000 -> -148.702514 | K164: =-K$20/1000*'Price Sets'!$E33*K$37*24*365/1000000 -> -0.0004575461968 | L164: =-L$20/1000*'Price Sets'!$E33*L$37*24*365/1000000 -> -148.702514 | M164: =-M$20/1000*'Price Sets'!$E33*M$37*24*365/1000000 -> -136.0764352 | N164: =-N$20/1000*'Price Sets'!$E33*N$37*24*365/1000000 -> 0 | O164: =-O$20/1000*'Price Sets'!$E33*O$37*24*365/1000000 -> 0 | P164: =-P$20/1000*'Price Sets'!$E33*P$37*24*365/1000000 -> 0 | Q164: =-Q$20/1000*'Price Sets'!$E33*Q$37*24*365/1000000 -> 0 | R164: =-R$20/1000*'Price Sets'!$E33*R$37*24*365/1000000 -> 0 | S164: =-S$20/1000*'Price Sets'!$E33*S$37*24*365/1000000 -> 0
B165: 2043 | E165: 19 | F165: =-F$20/1000*'Price Sets'!$E34*F$37*24*365/1000000 -> 0 | G165: =-G$20/1000*'Price Sets'!$E34*G$37*24*365/1000000 -> 0 | H165: =-H$20/1000*'Price Sets'!$E34*H$37*24*365/1000000 -> 0 | I165: =-I$20/1000*'Price Sets'!$E34*I$37*24*365/1000000 -> 0 | J165: =-J$20/1000*'Price Sets'!$E34*J$37*24*365/1000000 -> -148.702514 | K165: =-K$20/1000*'Price Sets'!$E34*K$37*24*365/1000000 -> -0.0004575461968 | L165: =-L$20/1000*'Price Sets'!$E34*L$37*24*365/1000000 -> -148.702514 | M165: =-M$20/1000*'Price Sets'!$E34*M$37*24*365/1000000 -> -136.0764352 | N165: =-N$20/1000*'Price Sets'!$E34*N$37*24*365/1000000 -> 0 | O165: =-O$20/1000*'Price Sets'!$E34*O$37*24*365/1000000 -> 0 | P165: =-P$20/1000*'Price Sets'!$E34*P$37*24*365/1000000 -> 0 | Q165: =-Q$20/1000*'Price Sets'!$E34*Q$37*24*365/1000000 -> 0 | R165: =-R$20/1000*'Price Sets'!$E34*R$37*24*365/1000000 -> 0 | S165: =-S$20/1000*'Price Sets'!$E34*S$37*24*365/1000000 -> 0
B166: 2044 | E166: 20 | F166: =-F$20/1000*'Price Sets'!$E35*F$37*24*365/1000000 -> 0 | G166: =-G$20/1000*'Price Sets'!$E35*G$37*24*365/1000000 -> 0 | H166: =-H$20/1000*'Price Sets'!$E35*H$37*24*365/1000000 -> 0 | I166: =-I$20/1000*'Price Sets'!$E35*I$37*24*365/1000000 -> 0 | J166: =-J$20/1000*'Price Sets'!$E35*J$37*24*365/1000000 -> -148.702514 | K166: =-K$20/1000*'Price Sets'!$E35*K$37*24*365/1000000 -> -0.0004575461968 | L166: =-L$20/1000*'Price Sets'!$E35*L$37*24*365/1000000 -> -148.702514 | M166: =-M$20/1000*'Price Sets'!$E35*M$37*24*365/1000000 -> -136.0764352 | N166: =-N$20/1000*'Price Sets'!$E35*N$37*24*365/1000000 -> 0 | O166: =-O$20/1000*'Price Sets'!$E35*O$37*24*365/1000000 -> 0 | P166: =-P$20/1000*'Price Sets'!$E35*P$37*24*365/1000000 -> 0 | Q166: =-Q$20/1000*'Price Sets'!$E35*Q$37*24*365/1000000 -> 0 | R166: =-R$20/1000*'Price Sets'!$E35*R$37*24*365/1000000 -> 0 | S166: =-S$20/1000*'Price Sets'!$E35*S$37*24*365/1000000 -> 0
B167: 2045 | E167: 21 | F167: =-F$20/1000*'Price Sets'!$E36*F$37*24*365/1000000 -> 0 | G167: =-G$20/1000*'Price Sets'!$E36*G$37*24*365/1000000 -> 0 | H167: =-H$20/1000*'Price Sets'!$E36*H$37*24*365/1000000 -> 0 | I167: =-I$20/1000*'Price Sets'!$E36*I$37*24*365/1000000 -> 0 | J167: =-J$20/1000*'Price Sets'!$E36*J$37*24*365/1000000 -> -148.702514 | K167: =-K$20/1000*'Price Sets'!$E36*K$37*24*365/1000000 -> -0.0004575461968 | L167: =-L$20/1000*'Price Sets'!$E36*L$37*24*365/1000000 -> -148.702514 | M167: =-M$20/1000*'Price Sets'!$E36*M$37*24*365/1000000 -> -136.0764352 | N167: =-N$20/1000*'Price Sets'!$E36*N$37*24*365/1000000 -> 0 | O167: =-O$20/1000*'Price Sets'!$E36*O$37*24*365/1000000 -> 0 | P167: =-P$20/1000*'Price Sets'!$E36*P$37*24*365/1000000 -> 0 | Q167: =-Q$20/1000*'Price Sets'!$E36*Q$37*24*365/1000000 -> 0 | R167: =-R$20/1000*'Price Sets'!$E36*R$37*24*365/1000000 -> 0 | S167: =-S$20/1000*'Price Sets'!$E36*S$37*24*365/1000000 -> 0
B168: 2046 | E168: 22 | F168: =-F$20/1000*'Price Sets'!$E37*F$37*24*365/1000000 -> 0 | G168: =-G$20/1000*'Price Sets'!$E37*G$37*24*365/1000000 -> 0 | H168: =-H$20/1000*'Price Sets'!$E37*H$37*24*365/1000000 -> 0 | I168: =-I$20/1000*'Price Sets'!$E37*I$37*24*365/1000000 -> 0 | J168: =-J$20/1000*'Price Sets'!$E37*J$37*24*365/1000000 -> -148.702514 | K168: =-K$20/1000*'Price Sets'!$E37*K$37*24*365/1000000 -> -0.0004575461968 | L168: =-L$20/1000*'Price Sets'!$E37*L$37*24*365/1000000 -> -148.702514 | M168: =-M$20/1000*'Price Sets'!$E37*M$37*24*365/1000000 -> -136.0764352 | N168: =-N$20/1000*'Price Sets'!$E37*N$37*24*365/1000000 -> 0 | O168: =-O$20/1000*'Price Sets'!$E37*O$37*24*365/1000000 -> 0 | P168: =-P$20/1000*'Price Sets'!$E37*P$37*24*365/1000000 -> 0 | Q168: =-Q$20/1000*'Price Sets'!$E37*Q$37*24*365/1000000 -> 0 | R168: =-R$20/1000*'Price Sets'!$E37*R$37*24*365/1000000 -> 0 | S168: =-S$20/1000*'Price Sets'!$E37*S$37*24*365/1000000 -> 0
B169: 2047 | E169: 23 | F169: =-F$20/1000*'Price Sets'!$E38*F$37*24*365/1000000 -> 0 | G169: =-G$20/1000*'Price Sets'!$E38*G$37*24*365/1000000 -> 0 | H169: =-H$20/1000*'Price Sets'!$E38*H$37*24*365/1000000 -> 0 | I169: =-I$20/1000*'Price Sets'!$E38*I$37*24*365/1000000 -> 0 | J169: =-J$20/1000*'Price Sets'!$E38*J$37*24*365/1000000 -> -148.702514 | K169: =-K$20/1000*'Price Sets'!$E38*K$37*24*365/1000000 -> -0.0004575461968 | L169: =-L$20/1000*'Price Sets'!$E38*L$37*24*365/1000000 -> -148.702514 | M169: =-M$20/1000*'Price Sets'!$E38*M$37*24*365/1000000 -> -136.0764352 | N169: =-N$20/1000*'Price Sets'!$E38*N$37*24*365/1000000 -> 0 | O169: =-O$20/1000*'Price Sets'!$E38*O$37*24*365/1000000 -> 0 | P169: =-P$20/1000*'Price Sets'!$E38*P$37*24*365/1000000 -> 0 | Q169: =-Q$20/1000*'Price Sets'!$E38*Q$37*24*365/1000000 -> 0 | R169: =-R$20/1000*'Price Sets'!$E38*R$37*24*365/1000000 -> 0 | S169: =-S$20/1000*'Price Sets'!$E38*S$37*24*365/1000000 -> 0
B170: 2048 | E170: 24 | F170: =-F$20/1000*'Price Sets'!$E39*F$37*24*365/1000000 -> 0 | G170: =-G$20/1000*'Price Sets'!$E39*G$37*24*365/1000000 -> 0 | H170: =-H$20/1000*'Price Sets'!$E39*H$37*24*365/1000000 -> 0 | I170: =-I$20/1000*'Price Sets'!$E39*I$37*24*365/1000000 -> 0 | J170: =-J$20/1000*'Price Sets'!$E39*J$37*24*365/1000000 -> -148.702514 | K170: =-K$20/1000*'Price Sets'!$E39*K$37*24*365/1000000 -> -0.0004575461968 | L170: =-L$20/1000*'Price Sets'!$E39*L$37*24*365/1000000 -> -148.702514 | M170: =-M$20/1000*'Price Sets'!$E39*M$37*24*365/1000000 -> -136.0764352 | N170: =-N$20/1000*'Price Sets'!$E39*N$37*24*365/1000000 -> 0 | O170: =-O$20/1000*'Price Sets'!$E39*O$37*24*365/1000000 -> 0 | P170: =-P$20/1000*'Price Sets'!$E39*P$37*24*365/1000000 -> 0 | Q170: =-Q$20/1000*'Price Sets'!$E39*Q$37*24*365/1000000 -> 0 | R170: =-R$20/1000*'Price Sets'!$E39*R$37*24*365/1000000 -> 0 | S170: =-S$20/1000*'Price Sets'!$E39*S$37*24*365/1000000 -> 0
B171: 2049 | D171: Final Year of Operation | E171: 25 | F171: =-F$20/1000*'Price Sets'!$E40*F$37*24*365/1000000 -> 0 | G171: =-G$20/1000*'Price Sets'!$E40*G$37*24*365/1000000 -> 0 | H171: =-H$20/1000*'Price Sets'!$E40*H$37*24*365/1000000 -> 0 | I171: =-I$20/1000*'Price Sets'!$E40*I$37*24*365/1000000 -> 0 | J171: =-J$20/1000*'Price Sets'!$E40*J$37*24*365/1000000 -> -148.702514 | K171: =-K$20/1000*'Price Sets'!$E40*K$37*24*365/1000000 -> -0.0004575461968 | L171: =-L$20/1000*'Price Sets'!$E40*L$37*24*365/1000000 -> -148.702514 | M171: =-M$20/1000*'Price Sets'!$E40*M$37*24*365/1000000 -> -136.0764352 | N171: =-N$20/1000*'Price Sets'!$E40*N$37*24*365/1000000 -> 0 | O171: =-O$20/1000*'Price Sets'!$E40*O$37*24*365/1000000 -> 0 | P171: =-P$20/1000*'Price Sets'!$E40*P$37*24*365/1000000 -> 0 | Q171: =-Q$20/1000*'Price Sets'!$E40*Q$37*24*365/1000000 -> 0 | R171: =-R$20/1000*'Price Sets'!$E40*R$37*24*365/1000000 -> 0 | S171: =-S$20/1000*'Price Sets'!$E40*S$37*24*365/1000000 -> 0
D172: Total | E172: £ M | F172: =SUM(F143:F171) -> 0 | G172: 0 | H172: =SUM(H143:H171) -> 0 | I172: =SUM(I143:I171) -> 0 | J172: -3577.556807 | K172: =SUM(K143:K171) -> -0.0110078671 | L172: -3577.556807 | M172: =SUM(M143:M171) -> -3274.312832 | N172: =SUM(N143:N171) -> 0 | O172: 0 | P172: 0 | Q172: =SUM(Q143:Q171) -> 0 | R172: =SUM(R143:R171) -> 0 | S172: =SUM(S143:S171) -> 0
D173: Average | E173: £ M pa | F173: =AVERAGE(F147:F171) -> 0 | G173: =AVERAGE(G147:G171) -> 0 | H173: 0 | I173: 0 | J173: -142.715626 | K173: =AVERAGE(K147:K171) -> -0.0004391250032 | L173: -142.715626 | M173: -130.5978837 | N173: 0 | O173: 0 | P173: 0 | Q173: 0 | R173: 0 | S173: 0
B175: Fuel Cost - Basic Biomass (£ M)
E176: year of Operation
B177: 2021 | E177: -4
B178: 2022 | E178: -3
B179: 2023 | E179: -2
B180: 2024 | D180: Start-up Fuel | E180: -1 | F180: =-F$26*'Price Sets'!$F15*F$93/12*24*365/1000000 -> 0 | G180: =-G$26*'Price Sets'!$F15*G$93/12*24*365/1000000 -> 0 | H180: =-H$26*'Price Sets'!$F15*H$93/12*24*365/1000000 -> 0 | I180: =-I$26*'Price Sets'!$F15*I$93/12*24*365/1000000 -> 0 | J180: =-J$26*'Price Sets'!$F15*J$93/12*24*365/1000000 -> 0 | K180: =-K$26*'Price Sets'!$F15*K$93/12*24*365/1000000 -> 0 | L180: =-L$26*'Price Sets'!$F15*L$93/12*24*365/1000000 -> 0 | M180: =-M$26*'Price Sets'!$F15*M$93/12*24*365/1000000 -> 0 | N180: =-N$26*'Price Sets'!$F15*N$93/12*24*365/1000000 -> 0 | O180: =-O$26*'Price Sets'!$F15*O$93/12*24*365/1000000 -> 0 | P180: =-P$26*'Price Sets'!$F15*P$93/12*24*365/1000000 -> -17.86456 | Q180: =-Q$26*'Price Sets'!$F15*Q$93/12*24*365/1000000 -> -0.01387 | R180: =-R$26*'Price Sets'!$F15*R$93/12*24*365/1000000 -> -17.86456 | S180: =-S$26*'Price Sets'!$F15*S$93/12*24*365/1000000 -> 0
B181: 2025 | D181: First year of Operation (reduced rate) | E181: 1 | F181: =-F$26*'Price Sets'!$F16*F$37*F$39*24*365/1000000 -> 0 | G181: =-G$26*'Price Sets'!$F16*G$37*G$39*24*365/1000000 -> 0 | H181: =-H$26*'Price Sets'!$F16*H$37*H$39*24*365/1000000 -> 0 | I181: =-I$26*'Price Sets'!$F16*I$37*I$39*24*365/1000000 -> 0 | J181: =-J$26*'Price Sets'!$F16*J$37*J$39*24*365/1000000 -> 0 | K181: =-K$26*'Price Sets'!$F16*K$37*K$39*24*365/1000000 -> 0 | L181: =-L$26*'Price Sets'!$F16*L$37*L$39*24*365/1000000 -> 0 | M181: =-M$26*'Price Sets'!$F16*M$37*M$39*24*365/1000000 -> 0 | N181: =-N$26*'Price Sets'!$F16*N$37*N$39*24*365/1000000 -> 0 | O181: =-O$26*'Price Sets'!$F16*O$37*O$39*24*365/1000000 -> 0 | P181: =-P$26*'Price Sets'!$F16*P$37*P$39*24*365/1000000 -> -115.7623488 | Q181: =-Q$26*'Price Sets'!$F16*Q$37*Q$39*24*365/1000000 -> -0.0898776 | R181: =-R$26*'Price Sets'!$F16*R$37*R$39*24*365/1000000 -> -115.7623488 | S181: =-S$26*'Price Sets'!$F16*S$37*S$39*24*365/1000000 -> 0
B182: 2026 | D182: Full availability from second year | E182: 2 | F182: =-F$26*'Price Sets'!$F17*F$37*24*365/1000000 -> 0 | G182: =-G$26*'Price Sets'!$F17*G$37*24*365/1000000 -> 0 | H182: =-H$26*'Price Sets'!$F17*H$37*24*365/1000000 -> 0 | I182: =-I$26*'Price Sets'!$F17*I$37*24*365/1000000 -> 0 | J182: =-J$26*'Price Sets'!$F17*J$37*24*365/1000000 -> 0 | K182: =-K$26*'Price Sets'!$F17*K$37*24*365/1000000 -> 0 | L182: =-L$26*'Price Sets'!$F17*L$37*24*365/1000000 -> 0 | M182: =-M$26*'Price Sets'!$F17*M$37*24*365/1000000 -> 0 | N182: =-N$26*'Price Sets'!$F17*N$37*24*365/1000000 -> 0 | O182: =-O$26*'Price Sets'!$F17*O$37*24*365/1000000 -> 0 | P182: =-P$26*'Price Sets'!$F17*P$37*24*365/1000000 -> -192.937248 | Q182: =-Q$26*'Price Sets'!$F17*Q$37*24*365/1000000 -> -0.149796 | R182: =-R$26*'Price Sets'!$F17*R$37*24*365/1000000 -> -192.937248 | S182: =-S$26*'Price Sets'!$F17*S$37*24*365/1000000 -> 0
B183: 2027 | E183: 3 | F183: =-F$26*'Price Sets'!$F18*F$37*24*365/1000000 -> 0 | G183: =-G$26*'Price Sets'!$F18*G$37*24*365/1000000 -> 0 | H183: =-H$26*'Price Sets'!$F18*H$37*24*365/1000000 -> 0 | I183: =-I$26*'Price Sets'!$F18*I$37*24*365/1000000 -> 0 | J183: =-J$26*'Price Sets'!$F18*J$37*24*365/1000000 -> 0 | K183: =-K$26*'Price Sets'!$F18*K$37*24*365/1000000 -> 0 | L183: =-L$26*'Price Sets'!$F18*L$37*24*365/1000000 -> 0 | M183: =-M$26*'Price Sets'!$F18*M$37*24*365/1000000 -> 0 | N183: =-N$26*'Price Sets'!$F18*N$37*24*365/1000000 -> 0 | O183: =-O$26*'Price Sets'!$F18*O$37*24*365/1000000 -> 0 | P183: =-P$26*'Price Sets'!$F18*P$37*24*365/1000000 -> -192.937248 | Q183: =-Q$26*'Price Sets'!$F18*Q$37*24*365/1000000 -> -0.149796 | R183: =-R$26*'Price Sets'!$F18*R$37*24*365/1000000 -> -192.937248 | S183: =-S$26*'Price Sets'!$F18*S$37*24*365/1000000 -> 0
B184: 2028 | E184: 4 | F184: =-F$26*'Price Sets'!$F19*F$37*24*365/1000000 -> 0 | G184: =-G$26*'Price Sets'!$F19*G$37*24*365/1000000 -> 0 | H184: =-H$26*'Price Sets'!$F19*H$37*24*365/1000000 -> 0 | I184: =-I$26*'Price Sets'!$F19*I$37*24*365/1000000 -> 0 | J184: =-J$26*'Price Sets'!$F19*J$37*24*365/1000000 -> 0 | K184: =-K$26*'Price Sets'!$F19*K$37*24*365/1000000 -> 0 | L184: =-L$26*'Price Sets'!$F19*L$37*24*365/1000000 -> 0 | M184: =-M$26*'Price Sets'!$F19*M$37*24*365/1000000 -> 0 | N184: =-N$26*'Price Sets'!$F19*N$37*24*365/1000000 -> 0 | O184: =-O$26*'Price Sets'!$F19*O$37*24*365/1000000 -> 0 | P184: =-P$26*'Price Sets'!$F19*P$37*24*365/1000000 -> -192.937248 | Q184: =-Q$26*'Price Sets'!$F19*Q$37*24*365/1000000 -> -0.149796 | R184: =-R$26*'Price Sets'!$F19*R$37*24*365/1000000 -> -192.937248 | S184: =-S$26*'Price Sets'!$F19*S$37*24*365/1000000 -> 0
B185: 2029 | E185: 5 | F185: =-F$26*'Price Sets'!$F20*F$37*24*365/1000000 -> 0 | G185: =-G$26*'Price Sets'!$F20*G$37*24*365/1000000 -> 0 | H185: =-H$26*'Price Sets'!$F20*H$37*24*365/1000000 -> 0 | I185: =-I$26*'Price Sets'!$F20*I$37*24*365/1000000 -> 0 | J185: =-J$26*'Price Sets'!$F20*J$37*24*365/1000000 -> 0 | K185: =-K$26*'Price Sets'!$F20*K$37*24*365/1000000 -> 0 | L185: =-L$26*'Price Sets'!$F20*L$37*24*365/1000000 -> 0 | M185: =-M$26*'Price Sets'!$F20*M$37*24*365/1000000 -> 0 | N185: =-N$26*'Price Sets'!$F20*N$37*24*365/1000000 -> 0 | O185: =-O$26*'Price Sets'!$F20*O$37*24*365/1000000 -> 0 | P185: =-P$26*'Price Sets'!$F20*P$37*24*365/1000000 -> -192.937248 | Q185: =-Q$26*'Price Sets'!$F20*Q$37*24*365/1000000 -> -0.149796 | R185: =-R$26*'Price Sets'!$F20*R$37*24*365/1000000 -> -192.937248 | S185: =-S$26*'Price Sets'!$F20*S$37*24*365/1000000 -> 0
B186: 2030 | E186: 6 | F186: =-F$26*'Price Sets'!$F21*F$37*24*365/1000000 -> 0 | G186: =-G$26*'Price Sets'!$F21*G$37*24*365/1000000 -> 0 | H186: =-H$26*'Price Sets'!$F21*H$37*24*365/1000000 -> 0 | I186: =-I$26*'Price Sets'!$F21*I$37*24*365/1000000 -> 0 | J186: =-J$26*'Price Sets'!$F21*J$37*24*365/1000000 -> 0 | K186: =-K$26*'Price Sets'!$F21*K$37*24*365/1000000 -> 0 | L186: =-L$26*'Price Sets'!$F21*L$37*24*365/1000000 -> 0 | M186: =-M$26*'Price Sets'!$F21*M$37*24*365/1000000 -> 0 | N186: =-N$26*'Price Sets'!$F21*N$37*24*365/1000000 -> 0 | O186: =-O$26*'Price Sets'!$F21*O$37*24*365/1000000 -> 0 | P186: =-P$26*'Price Sets'!$F21*P$37*24*365/1000000 -> -192.937248 | Q186: =-Q$26*'Price Sets'!$F21*Q$37*24*365/1000000 -> -0.149796 | R186: =-R$26*'Price Sets'!$F21*R$37*24*365/1000000 -> -192.937248 | S186: =-S$26*'Price Sets'!$F21*S$37*24*365/1000000 -> 0
B187: 2031 | E187: 7 | F187: =-F$26*'Price Sets'!$F22*F$37*24*365/1000000 -> 0 | G187: =-G$26*'Price Sets'!$F22*G$37*24*365/1000000 -> 0 | H187: =-H$26*'Price Sets'!$F22*H$37*24*365/1000000 -> 0 | I187: =-I$26*'Price Sets'!$F22*I$37*24*365/1000000 -> 0 | J187: =-J$26*'Price Sets'!$F22*J$37*24*365/1000000 -> 0 | K187: =-K$26*'Price Sets'!$F22*K$37*24*365/1000000 -> 0 | L187: =-L$26*'Price Sets'!$F22*L$37*24*365/1000000 -> 0 | M187: =-M$26*'Price Sets'!$F22*M$37*24*365/1000000 -> 0 | N187: =-N$26*'Price Sets'!$F22*N$37*24*365/1000000 -> 0 | O187: =-O$26*'Price Sets'!$F22*O$37*24*365/1000000 -> 0 | P187: =-P$26*'Price Sets'!$F22*P$37*24*365/1000000 -> -192.937248 | Q187: =-Q$26*'Price Sets'!$F22*Q$37*24*365/1000000 -> -0.149796 | R187: =-R$26*'Price Sets'!$F22*R$37*24*365/1000000 -> -192.937248 | S187: =-S$26*'Price Sets'!$F22*S$37*24*365/1000000 -> 0
B188: 2032 | E188: 8 | F188: =-F$26*'Price Sets'!$F23*F$37*24*365/1000000 -> 0 | G188: =-G$26*'Price Sets'!$F23*G$37*24*365/1000000 -> 0 | H188: =-H$26*'Price Sets'!$F23*H$37*24*365/1000000 -> 0 | I188: =-I$26*'Price Sets'!$F23*I$37*24*365/1000000 -> 0 | J188: =-J$26*'Price Sets'!$F23*J$37*24*365/1000000 -> 0 | K188: =-K$26*'Price Sets'!$F23*K$37*24*365/1000000 -> 0 | L188: =-L$26*'Price Sets'!$F23*L$37*24*365/1000000 -> 0 | M188: =-M$26*'Price Sets'!$F23*M$37*24*365/1000000 -> 0 | N188: =-N$26*'Price Sets'!$F23*N$37*24*365/1000000 -> 0 | O188: =-O$26*'Price Sets'!$F23*O$37*24*365/1000000 -> 0 | P188: =-P$26*'Price Sets'!$F23*P$37*24*365/1000000 -> -192.937248 | Q188: =-Q$26*'Price Sets'!$F23*Q$37*24*365/1000000 -> -0.149796 | R188: =-R$26*'Price Sets'!$F23*R$37*24*365/1000000 -> -192.937248 | S188: =-S$26*'Price Sets'!$F23*S$37*24*365/1000000 -> 0
B189: 2033 | E189: 9 | F189: =-F$26*'Price Sets'!$F24*F$37*24*365/1000000 -> 0 | G189: =-G$26*'Price Sets'!$F24*G$37*24*365/1000000 -> 0 | H189: =-H$26*'Price Sets'!$F24*H$37*24*365/1000000 -> 0 | I189: =-I$26*'Price Sets'!$F24*I$37*24*365/1000000 -> 0 | J189: =-J$26*'Price Sets'!$F24*J$37*24*365/1000000 -> 0 | K189: =-K$26*'Price Sets'!$F24*K$37*24*365/1000000 -> 0 | L189: =-L$26*'Price Sets'!$F24*L$37*24*365/1000000 -> 0 | M189: =-M$26*'Price Sets'!$F24*M$37*24*365/1000000 -> 0 | N189: =-N$26*'Price Sets'!$F24*N$37*24*365/1000000 -> 0 | O189: =-O$26*'Price Sets'!$F24*O$37*24*365/1000000 -> 0 | P189: =-P$26*'Price Sets'!$F24*P$37*24*365/1000000 -> -192.937248 | Q189: =-Q$26*'Price Sets'!$F24*Q$37*24*365/1000000 -> -0.149796 | R189: =-R$26*'Price Sets'!$F24*R$37*24*365/1000000 -> -192.937248 | S189: =-S$26*'Price Sets'!$F24*S$37*24*365/1000000 -> 0
B190: 2034 | E190: 10 | F190: =-F$26*'Price Sets'!$F25*F$37*24*365/1000000 -> 0 | G190: =-G$26*'Price Sets'!$F25*G$37*24*365/1000000 -> 0 | H190: =-H$26*'Price Sets'!$F25*H$37*24*365/1000000 -> 0 | I190: =-I$26*'Price Sets'!$F25*I$37*24*365/1000000 -> 0 | J190: =-J$26*'Price Sets'!$F25*J$37*24*365/1000000 -> 0 | K190: =-K$26*'Price Sets'!$F25*K$37*24*365/1000000 -> 0 | L190: =-L$26*'Price Sets'!$F25*L$37*24*365/1000000 -> 0 | M190: =-M$26*'Price Sets'!$F25*M$37*24*365/1000000 -> 0 | N190: =-N$26*'Price Sets'!$F25*N$37*24*365/1000000 -> 0 | O190: =-O$26*'Price Sets'!$F25*O$37*24*365/1000000 -> 0 | P190: =-P$26*'Price Sets'!$F25*P$37*24*365/1000000 -> -192.937248 | Q190: =-Q$26*'Price Sets'!$F25*Q$37*24*365/1000000 -> -0.149796 | R190: =-R$26*'Price Sets'!$F25*R$37*24*365/1000000 -> -192.937248 | S190: =-S$26*'Price Sets'!$F25*S$37*24*365/1000000 -> 0
B191: 2035 | E191: 11 | F191: =-F$26*'Price Sets'!$F26*F$37*24*365/1000000 -> 0 | G191: =-G$26*'Price Sets'!$F26*G$37*24*365/1000000 -> 0 | H191: =-H$26*'Price Sets'!$F26*H$37*24*365/1000000 -> 0 | I191: =-I$26*'Price Sets'!$F26*I$37*24*365/1000000 -> 0 | J191: =-J$26*'Price Sets'!$F26*J$37*24*365/1000000 -> 0 | K191: =-K$26*'Price Sets'!$F26*K$37*24*365/1000000 -> 0 | L191: =-L$26*'Price Sets'!$F26*L$37*24*365/1000000 -> 0 | M191: =-M$26*'Price Sets'!$F26*M$37*24*365/1000000 -> 0 | N191: =-N$26*'Price Sets'!$F26*N$37*24*365/1000000 -> 0 | O191: =-O$26*'Price Sets'!$F26*O$37*24*365/1000000 -> 0 | P191: =-P$26*'Price Sets'!$F26*P$37*24*365/1000000 -> -192.937248 | Q191: =-Q$26*'Price Sets'!$F26*Q$37*24*365/1000000 -> -0.149796 | R191: =-R$26*'Price Sets'!$F26*R$37*24*365/1000000 -> -192.937248 | S191: =-S$26*'Price Sets'!$F26*S$37*24*365/1000000 -> 0
B192: 2036 | E192: 12 | F192: =-F$26*'Price Sets'!$F27*F$37*24*365/1000000 -> 0 | G192: =-G$26*'Price Sets'!$F27*G$37*24*365/1000000 -> 0 | H192: =-H$26*'Price Sets'!$F27*H$37*24*365/1000000 -> 0 | I192: =-I$26*'Price Sets'!$F27*I$37*24*365/1000000 -> 0 | J192: =-J$26*'Price Sets'!$F27*J$37*24*365/1000000 -> 0 | K192: =-K$26*'Price Sets'!$F27*K$37*24*365/1000000 -> 0 | L192: =-L$26*'Price Sets'!$F27*L$37*24*365/1000000 -> 0 | M192: =-M$26*'Price Sets'!$F27*M$37*24*365/1000000 -> 0 | N192: =-N$26*'Price Sets'!$F27*N$37*24*365/1000000 -> 0 | O192: =-O$26*'Price Sets'!$F27*O$37*24*365/1000000 -> 0 | P192: =-P$26*'Price Sets'!$F27*P$37*24*365/1000000 -> -192.937248 | Q192: =-Q$26*'Price Sets'!$F27*Q$37*24*365/1000000 -> -0.149796 | R192: =-R$26*'Price Sets'!$F27*R$37*24*365/1000000 -> -192.937248 | S192: =-S$26*'Price Sets'!$F27*S$37*24*365/1000000 -> 0
B193: 2037 | E193: 13 | F193: =-F$26*'Price Sets'!$F28*F$37*24*365/1000000 -> 0 | G193: =-G$26*'Price Sets'!$F28*G$37*24*365/1000000 -> 0 | H193: =-H$26*'Price Sets'!$F28*H$37*24*365/1000000 -> 0 | I193: =-I$26*'Price Sets'!$F28*I$37*24*365/1000000 -> 0 | J193: =-J$26*'Price Sets'!$F28*J$37*24*365/1000000 -> 0 | K193: =-K$26*'Price Sets'!$F28*K$37*24*365/1000000 -> 0 | L193: =-L$26*'Price Sets'!$F28*L$37*24*365/1000000 -> 0 | M193: =-M$26*'Price Sets'!$F28*M$37*24*365/1000000 -> 0 | N193: =-N$26*'Price Sets'!$F28*N$37*24*365/1000000 -> 0 | O193: =-O$26*'Price Sets'!$F28*O$37*24*365/1000000 -> 0 | P193: =-P$26*'Price Sets'!$F28*P$37*24*365/1000000 -> -192.937248 | Q193: =-Q$26*'Price Sets'!$F28*Q$37*24*365/1000000 -> -0.149796 | R193: =-R$26*'Price Sets'!$F28*R$37*24*365/1000000 -> -192.937248 | S193: =-S$26*'Price Sets'!$F28*S$37*24*365/1000000 -> 0
B194: 2038 | E194: 14 | F194: =-F$26*'Price Sets'!$F29*F$37*24*365/1000000 -> 0 | G194: =-G$26*'Price Sets'!$F29*G$37*24*365/1000000 -> 0 | H194: =-H$26*'Price Sets'!$F29*H$37*24*365/1000000 -> 0 | I194: =-I$26*'Price Sets'!$F29*I$37*24*365/1000000 -> 0 | J194: =-J$26*'Price Sets'!$F29*J$37*24*365/1000000 -> 0 | K194: =-K$26*'Price Sets'!$F29*K$37*24*365/1000000 -> 0 | L194: =-L$26*'Price Sets'!$F29*L$37*24*365/1000000 -> 0 | M194: =-M$26*'Price Sets'!$F29*M$37*24*365/1000000 -> 0 | N194: =-N$26*'Price Sets'!$F29*N$37*24*365/1000000 -> 0 | O194: =-O$26*'Price Sets'!$F29*O$37*24*365/1000000 -> 0 | P194: =-P$26*'Price Sets'!$F29*P$37*24*365/1000000 -> -192.937248 | Q194: =-Q$26*'Price Sets'!$F29*Q$37*24*365/1000000 -> -0.149796 | R194: =-R$26*'Price Sets'!$F29*R$37*24*365/1000000 -> -192.937248 | S194: =-S$26*'Price Sets'!$F29*S$37*24*365/1000000 -> 0
B195: 2039 | E195: 15 | F195: =-F$26*'Price Sets'!$F30*F$37*24*365/1000000 -> 0 | G195: =-G$26*'Price Sets'!$F30*G$37*24*365/1000000 -> 0 | H195: =-H$26*'Price Sets'!$F30*H$37*24*365/1000000 -> 0 | I195: =-I$26*'Price Sets'!$F30*I$37*24*365/1000000 -> 0 | J195: =-J$26*'Price Sets'!$F30*J$37*24*365/1000000 -> 0 | K195: =-K$26*'Price Sets'!$F30*K$37*24*365/1000000 -> 0 | L195: =-L$26*'Price Sets'!$F30*L$37*24*365/1000000 -> 0 | M195: =-M$26*'Price Sets'!$F30*M$37*24*365/1000000 -> 0 | N195: =-N$26*'Price Sets'!$F30*N$37*24*365/1000000 -> 0 | O195: =-O$26*'Price Sets'!$F30*O$37*24*365/1000000 -> 0 | P195: =-P$26*'Price Sets'!$F30*P$37*24*365/1000000 -> -192.937248 | Q195: =-Q$26*'Price Sets'!$F30*Q$37*24*365/1000000 -> -0.149796 | R195: =-R$26*'Price Sets'!$F30*R$37*24*365/1000000 -> -192.937248 | S195: =-S$26*'Price Sets'!$F30*S$37*24*365/1000000 -> 0
B196: 2040 | E196: 16 | F196: =-F$26*'Price Sets'!$F31*F$37*24*365/1000000 -> 0 | G196: =-G$26*'Price Sets'!$F31*G$37*24*365/1000000 -> 0 | H196: =-H$26*'Price Sets'!$F31*H$37*24*365/1000000 -> 0 | I196: =-I$26*'Price Sets'!$F31*I$37*24*365/1000000 -> 0 | J196: =-J$26*'Price Sets'!$F31*J$37*24*365/1000000 -> 0 | K196: =-K$26*'Price Sets'!$F31*K$37*24*365/1000000 -> 0 | L196: =-L$26*'Price Sets'!$F31*L$37*24*365/1000000 -> 0 | M196: =-M$26*'Price Sets'!$F31*M$37*24*365/1000000 -> 0 | N196: =-N$26*'Price Sets'!$F31*N$37*24*365/1000000 -> 0 | O196: =-O$26*'Price Sets'!$F31*O$37*24*365/1000000 -> 0 | P196: =-P$26*'Price Sets'!$F31*P$37*24*365/1000000 -> -192.937248 | Q196: =-Q$26*'Price Sets'!$F31*Q$37*24*365/1000000 -> -0.149796 | R196: =-R$26*'Price Sets'!$F31*R$37*24*365/1000000 -> -192.937248 | S196: =-S$26*'Price Sets'!$F31*S$37*24*365/1000000 -> 0
B197: 2041 | E197: 17 | F197: =-F$26*'Price Sets'!$F32*F$37*24*365/1000000 -> 0 | G197: =-G$26*'Price Sets'!$F32*G$37*24*365/1000000 -> 0 | H197: =-H$26*'Price Sets'!$F32*H$37*24*365/1000000 -> 0 | I197: =-I$26*'Price Sets'!$F32*I$37*24*365/1000000 -> 0 | J197: =-J$26*'Price Sets'!$F32*J$37*24*365/1000000 -> 0 | K197: =-K$26*'Price Sets'!$F32*K$37*24*365/1000000 -> 0 | L197: =-L$26*'Price Sets'!$F32*L$37*24*365/1000000 -> 0 | M197: =-M$26*'Price Sets'!$F32*M$37*24*365/1000000 -> 0 | N197: =-N$26*'Price Sets'!$F32*N$37*24*365/1000000 -> 0 | O197: =-O$26*'Price Sets'!$F32*O$37*24*365/1000000 -> 0 | P197: =-P$26*'Price Sets'!$F32*P$37*24*365/1000000 -> -192.937248 | Q197: =-Q$26*'Price Sets'!$F32*Q$37*24*365/1000000 -> -0.149796 | R197: =-R$26*'Price Sets'!$F32*R$37*24*365/1000000 -> -192.937248 | S197: =-S$26*'Price Sets'!$F32*S$37*24*365/1000000 -> 0
B198: 2042 | E198: 18 | F198: =-F$26*'Price Sets'!$F33*F$37*24*365/1000000 -> 0 | G198: =-G$26*'Price Sets'!$F33*G$37*24*365/1000000 -> 0 | H198: =-H$26*'Price Sets'!$F33*H$37*24*365/1000000 -> 0 | I198: =-I$26*'Price Sets'!$F33*I$37*24*365/1000000 -> 0 | J198: =-J$26*'Price Sets'!$F33*J$37*24*365/1000000 -> 0 | K198: =-K$26*'Price Sets'!$F33*K$37*24*365/1000000 -> 0 | L198: =-L$26*'Price Sets'!$F33*L$37*24*365/1000000 -> 0 | M198: =-M$26*'Price Sets'!$F33*M$37*24*365/1000000 -> 0 | N198: =-N$26*'Price Sets'!$F33*N$37*24*365/1000000 -> 0 | O198: =-O$26*'Price Sets'!$F33*O$37*24*365/1000000 -> 0 | P198: =-P$26*'Price Sets'!$F33*P$37*24*365/1000000 -> -192.937248 | Q198: =-Q$26*'Price Sets'!$F33*Q$37*24*365/1000000 -> -0.149796 | R198: =-R$26*'Price Sets'!$F33*R$37*24*365/1000000 -> -192.937248 | S198: =-S$26*'Price Sets'!$F33*S$37*24*365/1000000 -> 0
B199: 2043 | E199: 19 | F199: =-F$26*'Price Sets'!$F34*F$37*24*365/1000000 -> 0 | G199: =-G$26*'Price Sets'!$F34*G$37*24*365/1000000 -> 0 | H199: =-H$26*'Price Sets'!$F34*H$37*24*365/1000000 -> 0 | I199: =-I$26*'Price Sets'!$F34*I$37*24*365/1000000 -> 0 | J199: =-J$26*'Price Sets'!$F34*J$37*24*365/1000000 -> 0 | K199: =-K$26*'Price Sets'!$F34*K$37*24*365/1000000 -> 0 | L199: =-L$26*'Price Sets'!$F34*L$37*24*365/1000000 -> 0 | M199: =-M$26*'Price Sets'!$F34*M$37*24*365/1000000 -> 0 | N199: =-N$26*'Price Sets'!$F34*N$37*24*365/1000000 -> 0 | O199: =-O$26*'Price Sets'!$F34*O$37*24*365/1000000 -> 0 | P199: =-P$26*'Price Sets'!$F34*P$37*24*365/1000000 -> -192.937248 | Q199: =-Q$26*'Price Sets'!$F34*Q$37*24*365/1000000 -> -0.149796 | R199: =-R$26*'Price Sets'!$F34*R$37*24*365/1000000 -> -192.937248 | S199: =-S$26*'Price Sets'!$F34*S$37*24*365/1000000 -> 0
B200: 2044 | E200: 20 | F200: =-F$26*'Price Sets'!$F35*F$37*24*365/1000000 -> 0 | G200: =-G$26*'Price Sets'!$F35*G$37*24*365/1000000 -> 0 | H200: =-H$26*'Price Sets'!$F35*H$37*24*365/1000000 -> 0 | I200: =-I$26*'Price Sets'!$F35*I$37*24*365/1000000 -> 0 | J200: =-J$26*'Price Sets'!$F35*J$37*24*365/1000000 -> 0 | K200: =-K$26*'Price Sets'!$F35*K$37*24*365/1000000 -> 0 | L200: =-L$26*'Price Sets'!$F35*L$37*24*365/1000000 -> 0 | M200: =-M$26*'Price Sets'!$F35*M$37*24*365/1000000 -> 0 | N200: =-N$26*'Price Sets'!$F35*N$37*24*365/1000000 -> 0 | O200: =-O$26*'Price Sets'!$F35*O$37*24*365/1000000 -> 0 | P200: =-P$26*'Price Sets'!$F35*P$37*24*365/1000000 -> -192.937248 | Q200: =-Q$26*'Price Sets'!$F35*Q$37*24*365/1000000 -> -0.149796 | R200: =-R$26*'Price Sets'!$F35*R$37*24*365/1000000 -> -192.937248 | S200: =-S$26*'Price Sets'!$F35*S$37*24*365/1000000 -> 0
B201: 2045 | E201: 21 | F201: =-F$26*'Price Sets'!$F36*F$37*24*365/1000000 -> 0 | G201: =-G$26*'Price Sets'!$F36*G$37*24*365/1000000 -> 0 | H201: =-H$26*'Price Sets'!$F36*H$37*24*365/1000000 -> 0 | I201: =-I$26*'Price Sets'!$F36*I$37*24*365/1000000 -> 0 | J201: =-J$26*'Price Sets'!$F36*J$37*24*365/1000000 -> 0 | K201: =-K$26*'Price Sets'!$F36*K$37*24*365/1000000 -> 0 | L201: =-L$26*'Price Sets'!$F36*L$37*24*365/1000000 -> 0 | M201: =-M$26*'Price Sets'!$F36*M$37*24*365/1000000 -> 0 | N201: =-N$26*'Price Sets'!$F36*N$37*24*365/1000000 -> 0 | O201: =-O$26*'Price Sets'!$F36*O$37*24*365/1000000 -> 0 | P201: =-P$26*'Price Sets'!$F36*P$37*24*365/1000000 -> -192.937248 | Q201: =-Q$26*'Price Sets'!$F36*Q$37*24*365/1000000 -> -0.149796 | R201: =-R$26*'Price Sets'!$F36*R$37*24*365/1000000 -> -192.937248 | S201: =-S$26*'Price Sets'!$F36*S$37*24*365/1000000 -> 0
B202: 2046 | E202: 22 | F202: =-F$26*'Price Sets'!$F37*F$37*24*365/1000000 -> 0 | G202: =-G$26*'Price Sets'!$F37*G$37*24*365/1000000 -> 0 | H202: =-H$26*'Price Sets'!$F37*H$37*24*365/1000000 -> 0 | I202: =-I$26*'Price Sets'!$F37*I$37*24*365/1000000 -> 0 | J202: =-J$26*'Price Sets'!$F37*J$37*24*365/1000000 -> 0 | K202: =-K$26*'Price Sets'!$F37*K$37*24*365/1000000 -> 0 | L202: =-L$26*'Price Sets'!$F37*L$37*24*365/1000000 -> 0 | M202: =-M$26*'Price Sets'!$F37*M$37*24*365/1000000 -> 0 | N202: =-N$26*'Price Sets'!$F37*N$37*24*365/1000000 -> 0 | O202: =-O$26*'Price Sets'!$F37*O$37*24*365/1000000 -> 0 | P202: =-P$26*'Price Sets'!$F37*P$37*24*365/1000000 -> -192.937248 | Q202: =-Q$26*'Price Sets'!$F37*Q$37*24*365/1000000 -> -0.149796 | R202: =-R$26*'Price Sets'!$F37*R$37*24*365/1000000 -> -192.937248 | S202: =-S$26*'Price Sets'!$F37*S$37*24*365/1000000 -> 0
B203: 2047 | E203: 23 | F203: =-F$26*'Price Sets'!$F38*F$37*24*365/1000000 -> 0 | G203: =-G$26*'Price Sets'!$F38*G$37*24*365/1000000 -> 0 | H203: =-H$26*'Price Sets'!$F38*H$37*24*365/1000000 -> 0 | I203: =-I$26*'Price Sets'!$F38*I$37*24*365/1000000 -> 0 | J203: =-J$26*'Price Sets'!$F38*J$37*24*365/1000000 -> 0 | K203: =-K$26*'Price Sets'!$F38*K$37*24*365/1000000 -> 0 | L203: =-L$26*'Price Sets'!$F38*L$37*24*365/1000000 -> 0 | M203: =-M$26*'Price Sets'!$F38*M$37*24*365/1000000 -> 0 | N203: =-N$26*'Price Sets'!$F38*N$37*24*365/1000000 -> 0 | O203: =-O$26*'Price Sets'!$F38*O$37*24*365/1000000 -> 0 | P203: =-P$26*'Price Sets'!$F38*P$37*24*365/1000000 -> -192.937248 | Q203: =-Q$26*'Price Sets'!$F38*Q$37*24*365/1000000 -> -0.149796 | R203: =-R$26*'Price Sets'!$F38*R$37*24*365/1000000 -> -192.937248 | S203: =-S$26*'Price Sets'!$F38*S$37*24*365/1000000 -> 0
B204: 2048 | E204: 24 | F204: =-F$26*'Price Sets'!$F39*F$37*24*365/1000000 -> 0 | G204: =-G$26*'Price Sets'!$F39*G$37*24*365/1000000 -> 0 | H204: =-H$26*'Price Sets'!$F39*H$37*24*365/1000000 -> 0 | I204: =-I$26*'Price Sets'!$F39*I$37*24*365/1000000 -> 0 | J204: =-J$26*'Price Sets'!$F39*J$37*24*365/1000000 -> 0 | K204: =-K$26*'Price Sets'!$F39*K$37*24*365/1000000 -> 0 | L204: =-L$26*'Price Sets'!$F39*L$37*24*365/1000000 -> 0 | M204: =-M$26*'Price Sets'!$F39*M$37*24*365/1000000 -> 0 | N204: =-N$26*'Price Sets'!$F39*N$37*24*365/1000000 -> 0 | O204: =-O$26*'Price Sets'!$F39*O$37*24*365/1000000 -> 0 | P204: =-P$26*'Price Sets'!$F39*P$37*24*365/1000000 -> -192.937248 | Q204: =-Q$26*'Price Sets'!$F39*Q$37*24*365/1000000 -> -0.149796 | R204: =-R$26*'Price Sets'!$F39*R$37*24*365/1000000 -> -192.937248 | S204: =-S$26*'Price Sets'!$F39*S$37*24*365/1000000 -> 0
... 454 more rows

Sheet LCOH Calculation
B1: This spreadsheet contains macros … please ensure that macros are enabled on your machine.
F3: Reference Case SMR Hydrogen Plant | G3: Benchmark 11 SMR Hydrogen Plant with Cansolv | H3: Novel Technology Hydrogen Plant
E4: Units | F4: H | G4: 11 | H4: 11a
B5: Power Plant Technical Performance
C6: Electrical power production | E6: MWe | F6: =SUM(F7:F8) -> 18.5 | G6: =SUM(G7:G8) -> 12.3 | H6: =SUM(H7:H8) -> 0
D7: Steam Turbine | E7: MWe | F7: 18.5 | G7: 12.3 | H7: 0
D8: Others | E8: MWe | F8: 0 | G8: 0 | H8: 0
C9: Electrical power use | E9: MWe | F9: =SUM(F10:F13) -> 2.83 | G9: =SUM(G10:G13) -> 12.3 | H9: =SUM(H10:H13) -> 0
D10: Syngas Production | E10: MWe | F10: 0.63 | G10: 2.2 | H10: 0
D11: CO2 Capture | E11: MWe | F11: 0 | G11: 7.5 | H11: 0
D12: CO2 Compression | E12: MWe | F12: 0 | G12: 0 | H12: 0
D13: Utilities | E13: MWe | F13: 2.2 | G13: 2.6 | H13: 0
C14: Net Power Import | E14: MWe | F14: =F9-F6 -> -15.67 | G14: =G9-G6 -> 0 | H14: =H9-H6 -> 0
C15: NG Feed Flow Rate | E15: kg/h | F15: =SUM(F16:F17) -> 34578 | G15: =SUM(G16:G17) -> 34578 | H15: 1
D16: Natural Gas | E16: kg/h | F16: 34578 | G16: 34578 | H16: 1
E17: kg/h
C18: NG Feed Flow Rate (LHV) | E18: MWth | F18: =SUM(F19:F20) -> 446.34435 | G18: 446.34435 | H18: 1
D19: Natural Gas | E19: MWth | F19: =(F16/3600)*(46470)/1000 -> 446.34435 | G19: =(G16/3600)*(46470)/1000 -> 446.34435 | H19: 1
E20: MWth
C21: Product Flow Rate | E21: kg/h | F21: =SUM(F22:F23) -> 8994 | G21: =SUM(G22:G23) -> 8994 | H21: =SUM(H22:H23) -> 1
D22: Hydrogen | E22: kg/h | F22: 8994 | G22: 8994 | H22: 1
C24: Product Flow Rate | E24: Nm3/h | F24: =SUM(F25:F26) -> 100000 | G24: =SUM(G25:G26) -> 100000 | H24: 1
D25: Hydrogen | E25: Nm3/h | F25: 100000 | G25: 100000 | H25: 1
C27: Product Flow Rate (LHV) | E27: MWth | F27: =SUM(F28:F29) -> 299.8 | G27: =SUM(G28:G29) -> 299.8 | H27: =SUM(H28:H29) -> 1
D28: Hydrogen | E28: MWth | F28: =(F22/3600)*(120000)/1000 -> 299.8 | G28: =(G22/3600)*(120000)/1000 -> 299.8 | H28: 1
C30: Hydrogen Yield | E30: % | F30: 0.6661 | G30: 0.6661 | H30: 0.865 | J30: moles of hydrogen (H) product per mole of hydrogen (H) in feed gas and net water make-up to process
B31: 0.549 | C31: Net efficiency for power import (%) | E31: kg/h | F31: =$B$31 -> 0.549 | G31: =$B$31 -> 0.549 | H31: 0.549 | J31: Based on efficiency for Benchmark 1 Power Case
C32: Net Efficiency - Year 1 (LHV) | E32: % | F32: =F27/(F18+(F14/F31)) -> 0.7175655611 | G32: =G27/(G18+(G14/G31)) -> 0.6716787162 | H32: =H27/(H18+(H14/H31)) -> 1 | J32: MWth hydrogen / (MWth HPU feedstock + MWth NG used to generate the net electricity imported)
C33: Plant availability | E33: % | F33: 0.93 | G33: =IF(G16=0,0.85,0.9) -> 0.9 | H33: 0.9
C34: Plant load factor | E34: % | F34: 1 | G34: 1 | H34: 1
C35: Overall plant operating factor | E35: % | F35: =F33*F34 -> 0.93 | G35: =G33*G34 -> 0.9 | H35: 0.9
B37: 0.6 | C37: First year reduced production rate | E37: % | F37: =$B$37 -> 0.6 | G37: =$B$37 -> 0.6 | H37: 0.6
B38: Carbon Balance
B39: 0.72284 | C39: Carbon mass fraction in Natural Gas feed | E39: - | F39: =$B39 -> 0.72284 | G39: =$B39 -> 0.72284 | H39: =$B39 -> 0.72284
C40: Total carbon in feeds | E40: kg/h | F40: =F16*F39 -> 24994.36152 | G40: =G16*G39 -> 24994.36152 | H40: =H16*H39 -> 0.72284
C41: Total carbon captured | E41: kg/h | F41: =F42/44.01*12.01 -> 0 | G41: =G42/44.01*12.01 -> 22527.27789 | H41: =H42/44.01*12.01 -> 0
C42: Total CO2 captured | E42: kg/h | F42: 0 | G42: 82550 | H42: 0
C43: Direct CO2 emissions | E43: kg/h | F43: =(F40/12.01*44.01)-F42 -> 91590.49546 | G43: =(G40-G41)/12.01*44.01 -> 9040.495462 | H43: =(H40-H41)/12.01*44.01 -> 2.64880836
C44: Carbon capture rate | E44: % | F44: =F41/F40 -> 0 | G44: =G41/G40 -> 0.9012943929 | H44: =H41/H40 -> 0
B45: 34.3 | C45: Indirect CO2 emissions from power import (kg/MWh) | E45: kg/h | F45: =IF(F14>0,$B45*F14,0) -> 0 | G45: =IF(G14>0,$B45*G14,0) -> 0 | H45: =IF(H14>0,$B45*H14,0) -> 0 | J45: Based on footprint for Benchmark 1 Power Case
C46: Total CO2 emissions | E46: kg/h | F46: =F43+F45 -> 91590.49546 | G46: =G43+G45 -> 9040.495462 | H46: =H43+H45 -> 2.64880836
C47: Carbon Footprint | E47: kg CO2/kNm3 | F47: =F46/F24*1000 -> 915.9049546 | G47: =G46/G24*1000 -> 90.40495462 | H47: =H46/H24*1000 -> 2648.80836
B48: Capital Costs (2017 basis)
C49: Total Project Cost | E49: £M | F49: =F51+F52+F53+F59+F60 -> 144.073 | G49: =G51+G52+G53+G59+G60 -> 237.276 | H49: =H51+H52+H53+H59+H60 -> 0
C50: Pre-Development Costs
D51: Pre-Licensing, Technical & Design | E51: £M | F51: 1.274 | G51: 2.071 | H51: 0
D52: Regulatory, Licensing & Public Enquiry | E52: £M | F52: 2.7 | G52: 4.501 | H52: 0
C53: EPC Contract Cost | E53: £M | F53: =SUM(F54:F57) -> 127.381 | G53: 207.201 | H53: =SUM(H54:H57) -> 0
D54: Syngas Production | E54: £M | F54: 91.25 | H54: 0
D55: CO2 Capture | E55: £M | F55: 0 | H55: 0
D56: CO2 Compression | E56: £M | F56: 0 | H56: 0
D57: Utilities | E57: £M | F57: 36.131 | H57: 0
C58: Other Costs
D59: Infrastructure Connections | E59: £M | F59: 3.8 | G59: 9 | H59: 0
D60: Owner's Costs | E60: £M | F60: 8.918 | G60: 14.503 | H60: 0
C61: Overall CAPEX Impact (vs Reference Case) | E61: £M | F61: - | G61: =(G49-$F$49) -> 93.203 | H61: =(H49-$F$49) -> -144.073
C62: Overall CAPEX Impact (vs Reference Case) | E62: % | F62: - | G62: =G61/$F$49 -> 0.6469151055 | H62: =H61/$F$49 -> -1
B63: Operating Costs (2017 basis)
C64: Total Operating Cost (excl. Feed & Carbon) | E64: £M pa | F64: =F65+F73 -> 8.025649191 | G64: =G65+G73 -> 25.0283177 | H64: =H65+H73 -> 0
C65: Total Fixed OPEX | E65: £M pa | F65: =SUM(F68:F72) -> 7.37152 | G65: =SUM(G68:G72) -> 10.703175 | H65: =SUM(H68:H72) -> 0
D66: Number of personnel | E66: # | F66: 13 | G66: 15 | H66: 0
C67: 53700 | D67: Average Salary £ pa | F67: =$C67 -> 53700 | G67: =$C67 -> 53700 | H67: =$C$67 -> 53700
D68: Direct Labour | E68: £M pa | F68: =(F66*F67)*1.3/1000000 -> 0.90753 | G68: =(G66*G67)*1.3/1000000 -> 1.04715 | H68: 0 | J68: Includes allowance for 30% payroll burden
C69: 0.005 | D69: General Overheads | E69: £M pa | F69: =F53*$C69 -> 0.636905 | G69: =G53*$C69 -> 1.036005 | H69: =H53*$C69 -> 0
C70: 0.02 | D70: Insurance and Local Taxes | E70: £M pa | F70: =F53*$C70 -> 2.54762 | G70: =G53*$C70 -> 4.14402 | H70: =H53*$C70 -> 0
C71: 0.03 | D71: Syngas Unit Maintenance | E71: £M pa | F71: =$C71*F54 -> 2.7375 | G71: 2.737 | H71: =$C71*H54 -> 0
C72: 0.015 | D72: Other Units Maintenance | E72: £M pa | F72: =$C72*SUM(F55:F57) -> 0.541965 | G72: 1.739 | H72: =$C72*SUM(H55:H57) -> 0
C73: Total Variable OPEX (excl. Feed) | E73: £M pa | F73: =SUM(F76:F79) -> 0.6541291905 | G73: =SUM(G76:G79) -> 14.3251427 | H73: =SUM(H76:H79) -> 0
C74: Central | D74: NG Feed Price Set | F74: =$C$74 -> Central | G74: =$C$74 -> Central | H74: =$C$74 -> Central
C75: 71.7 | D75: Electricity Import Cost £/MWh | E75: £M pa | F75: =$C$75*F14*24*365*F35/1000000 -> -9.153247525 | G75: =$C$75*G14*24*365*G35/1000000 -> 0 | H75: =$C$76*H43*24*365*H36/1000/1000000 -> 0 | J75: Price based on LCOE for Benchmark 1 Power Case
C76: 19 | D76: CO2 Storage Cost £/tonne CO2 | E76: £M pa | F76: =$C$76*F42*24*365*F35/1000/1000000 -> 0 | G76: =$C$76*G42*24*365*G35/1000/1000000 -> 12.3656598 | H76: =$C$76*H42*24*365*H35/1000/1000000 -> 0 | J76: Based on Leigh-Fisher Renewables Report 2016
D77: Solvent Make-up Cost | E77: £M pa | F77: 0 | G77: =1.7/'Price Sets'!N6 -> 1.255353714 | H77: 0
D78: Cats & Chems Consumption | E78: £M pa | F78: =(3.2/1.223/4) -> 0.6541291905 | G78: =0.05+(3.2/1.223/4) -> 0.7041291905 | H78: 0 | J78: Reformer & WGS catalyst replacement
D79: Other | E79: £M pa | F79: 0 | G79: 0 | H79: 0
B80: Income Estimates (2017 basis) | J80: 2.7 | K80: £Mpa solvent make-up in Case 5
D81: Income from Hydrogen Export | E81: £M pa | F81: =F25*24*365*F35*F95/1000/1000000 -> 158.7685639 | G81: =G25*24*365*G35*G95/1000/1000000 -> 130.7219934 | H81: =H25*24*365*H35*H95/1000/1000000 -> 0.0013071672 | J81: 0.1293180042 | K81: scaling factor from Case 5 (CO2 product rate)
B82: Start-up Costs & Working Capital (2017 basis)
C83: Total Start-up Cost (excl. Fuel) | E83: £M | F83: =(F84*F68+F85*SUM(F72:F72)+F86*SUM(F77:F79))/12 -> 0.5259060476 | G83: =(G84*G68+G85*SUM(G72:G72)+G86*SUM(G77:G79))/12 -> 1.186408226 | H83: =(H84*H68+H85*SUM(H72:H72)+H86*SUM(H77:H79))/12 -> 0
D84: Start-up Labour | E84: Months | F84: 3 | G84: 3 | H84: 3 | J84: 3 months (simple); 4 months (complex)
C85: 3 | D85: Start-up Maintenance | E85: Months | F85: =$C85 -> 3 | G85: =$C85 -> 3 | H85: 3
C86: 3 | D86: Start-up Consumables | E86: Months | F86: =$C86 -> 3 | G86: 3 | H86: 3
C87: 1 | D87: Start-up Fuel | E87: Months | F87: 1 | G87: 1 | H87: 1
C88: 1 | D88: Working Capital Allowance | E88: Months | F88: =$C88 -> 1 | G88: =$C88 -> 1 | H88: 1 | J88: Applies to Fuel & Consumables
B89: Simplified NPV Estimate
D90: Annual Cash Flow Income | E90: £M pa | F90: =SUM(F81:F81)-F64 -> 150.7429147 | G90: =SUM(G81:G81)-G64 -> 105.6936757 | H90: =SUM(H81:H81)-H64 -> 0.0013071672
C91: 25 | D91: Project Life | E91: years | F91: =$C91 -> 25 | G91: =$C91 -> 25 | H91: 25
C92: 0 | D92: Cost Escalation Rate | E92: % / year | F92: =$C92 -> 0 | G92: =$C92 -> 0 | H92: 0
C93: 0.089 | D93: Discount Rate | E93: % / year | F93: 0.078 | G93: 0.089 | H93: 0.089
D94: NPV | E94: £M | F94: =F429 -> 2.09610107e-13 | G94: =G429 -> -1.527666882e-13 | H94: =H429 -> -0.830592415 | J94: Use "Update LCOH" button to Goal Seek this row to zero by varying LCOH in the line below
B95: Levelised Cost of Hydrogen | E95: £/kNm3 | F95: 194.8845729 | G95: 165.8066887 | H95: 165.8 | J95: Hydrogen sales price is set in order to achieve an NPV=0 over the lifetime of the project
B96: Cost of CO2 Avoided | E96: £/tCO2 | F96: 0 | G96: =(G95-$F$95)/(($F$47-G47)/1000) -> -35.22457199 | H96: =(H95-$F$95)/(($F$47-H47)/1000) -> 16.78372426 | J96: Consistent with definition on P145 (section 11.1.3) of IEAGHG 2012 report:
B97: Levelised Cost of Hydrogen | E97: £/kWth | F97: =F95*F25/F28/1000 -> 65.00486088 | G97: =G95*G25/G28/1000 -> 55.30576676 | H97: 0.1658
B99: Feed Cost - Natural Gas (£ M)
E100: year of Operation
B101: 2021 | E101: -4
B102: 2022 | E102: -3
B103: 2023 | E103: -2
B104: 2024 | D104: Start-up Feedstock | E104: -1 | F104: =-F$19*'Price Sets'!$D15*F$87/12*24*365/1000000 -> -4.819444478 | G104: =-G$19*'Price Sets'!$D15*G$87/12*24*365/1000000 -> -4.819444478 | H104: =-H$19*'Price Sets'!$D15*H$87/12*24*365/1000000 -> -0.01079759266
B105: 2025 | D105: First year of Operation (reduced rate) | E105: 1 | F105: =-F$19*'Price Sets'!$D16*F$35*F$37*24*365/1000000 -> -34.47129569 | G105: =-G$19*'Price Sets'!$D16*G$35*G$37*24*365/1000000 -> -33.35931841 | H105: =-H$19*'Price Sets'!$D16*H$35*H$37*24*365/1000000 -> -0.0747389732
B106: 2026 | D106: Full availability from second year | E106: 2 | F106: =-F$19*'Price Sets'!$D17*F$35*24*365/1000000 -> -61.11931861 | G106: =-G$19*'Price Sets'!$D17*G$35*24*365/1000000 -> -59.14772768 | H106: =-H$19*'Price Sets'!$D17*H$35*24*365/1000000 -> -0.1325159099
B107: 2027 | E107: 3 | F107: =-F$19*'Price Sets'!$D18*F$35*24*365/1000000 -> -64.78647772 | G107: =-G$19*'Price Sets'!$D18*G$35*24*365/1000000 -> -62.69659134 | H107: =-H$19*'Price Sets'!$D18*H$35*24*365/1000000 -> -0.1404668645
B108: 2028 | E108: 4 | F108: =-F$19*'Price Sets'!$D19*F$35*24*365/1000000 -> -68.45363684 | G108: =-G$19*'Price Sets'!$D19*G$35*24*365/1000000 -> -66.24545501 | H108: =-H$19*'Price Sets'!$D19*H$35*24*365/1000000 -> -0.1484178191
B109: 2029 | E109: 5 | F109: =-F$19*'Price Sets'!$D20*F$35*24*365/1000000 -> -72.12079596 | G109: =-G$19*'Price Sets'!$D20*G$35*24*365/1000000 -> -69.79431867 | H109: =-H$19*'Price Sets'!$D20*H$35*24*365/1000000 -> -0.1563687737
B110: 2030 | E110: 6 | F110: =-F$19*'Price Sets'!$D21*F$35*24*365/1000000 -> -75.78795507 | G110: =-G$19*'Price Sets'!$D21*G$35*24*365/1000000 -> -73.34318233 | H110: =-H$19*'Price Sets'!$D21*H$35*24*365/1000000 -> -0.1643197283
B111: 2031 | E111: 7 | F111: =-F$19*'Price Sets'!$D22*F$35*24*365/1000000 -> -75.78795507 | G111: =-G$19*'Price Sets'!$D22*G$35*24*365/1000000 -> -73.34318233 | H111: =-H$19*'Price Sets'!$D22*H$35*24*365/1000000 -> -0.1643197283
B112: 2032 | E112: 8 | F112: =-F$19*'Price Sets'!$D23*F$35*24*365/1000000 -> -75.78795507 | G112: =-G$19*'Price Sets'!$D23*G$35*24*365/1000000 -> -73.34318233 | H112: =-H$19*'Price Sets'!$D23*H$35*24*365/1000000 -> -0.1643197283
B113: 2033 | E113: 9 | F113: =-F$19*'Price Sets'!$D24*F$35*24*365/1000000 -> -75.78795507 | G113: =-G$19*'Price Sets'!$D24*G$35*24*365/1000000 -> -73.34318233 | H113: =-H$19*'Price Sets'!$D24*H$35*24*365/1000000 -> -0.1643197283
B114: 2034 | E114: 10 | F114: =-F$19*'Price Sets'!$D25*F$35*24*365/1000000 -> -75.78795507 | G114: =-G$19*'Price Sets'!$D25*G$35*24*365/1000000 -> -73.34318233 | H114: =-H$19*'Price Sets'!$D25*H$35*24*365/1000000 -> -0.1643197283
B115: 2035 | E115: 11 | F115: =-F$19*'Price Sets'!$D26*F$35*24*365/1000000 -> -75.78795507 | G115: =-G$19*'Price Sets'!$D26*G$35*24*365/1000000 -> -73.34318233 | H115: =-H$19*'Price Sets'!$D26*H$35*24*365/1000000 -> -0.1643197283
B116: 2036 | E116: 12 | F116: =-F$19*'Price Sets'!$D27*F$35*24*365/1000000 -> -75.78795507 | G116: =-G$19*'Price Sets'!$D27*G$35*24*365/1000000 -> -73.34318233 | H116: =-H$19*'Price Sets'!$D27*H$35*24*365/1000000 -> -0.1643197283
B117: 2037 | E117: 13 | F117: =-F$19*'Price Sets'!$D28*F$35*24*365/1000000 -> -75.78795507 | G117: =-G$19*'Price Sets'!$D28*G$35*24*365/1000000 -> -73.34318233 | H117: =-H$19*'Price Sets'!$D28*H$35*24*365/1000000 -> -0.1643197283
B118: 2038 | E118: 14 | F118: =-F$19*'Price Sets'!$D29*F$35*24*365/1000000 -> -75.78795507 | G118: =-G$19*'Price Sets'!$D29*G$35*24*365/1000000 -> -73.34318233 | H118: =-H$19*'Price Sets'!$D29*H$35*24*365/1000000 -> -0.1643197283
B119: 2039 | E119: 15 | F119: =-F$19*'Price Sets'!$D30*F$35*24*365/1000000 -> -75.78795507 | G119: =-G$19*'Price Sets'!$D30*G$35*24*365/1000000 -> -73.34318233 | H119: =-H$19*'Price Sets'!$D30*H$35*24*365/1000000 -> -0.1643197283
B120: 2040 | E120: 16 | F120: =-F$19*'Price Sets'!$D31*F$35*24*365/1000000 -> -75.78795507 | G120: =-G$19*'Price Sets'!$D31*G$35*24*365/1000000 -> -73.34318233 | H120: =-H$19*'Price Sets'!$D31*H$35*24*365/1000000 -> -0.1643197283
B121: 2041 | E121: 17 | F121: =-F$19*'Price Sets'!$D32*F$35*24*365/1000000 -> -75.50267238 | G121: =-G$19*'Price Sets'!$D32*G$35*24*365/1000000 -> -73.06710231 | H121: =-H$19*'Price Sets'!$D32*H$35*24*365/1000000 -> -0.1637011924
B122: 2042 | E122: 18 | F122: =-F$19*'Price Sets'!$D33*F$35*24*365/1000000 -> -75.50267238 | G122: =-G$19*'Price Sets'!$D33*G$35*24*365/1000000 -> -73.06710231 | H122: =-H$19*'Price Sets'!$D33*H$35*24*365/1000000 -> -0.1637011924
B123: 2043 | E123: 19 | F123: =-F$19*'Price Sets'!$D34*F$35*24*365/1000000 -> -75.50267238 | G123: =-G$19*'Price Sets'!$D34*G$35*24*365/1000000 -> -73.06710231 | H123: =-H$19*'Price Sets'!$D34*H$35*24*365/1000000 -> -0.1637011924
B124: 2044 | E124: 20 | F124: =-F$19*'Price Sets'!$D35*F$35*24*365/1000000 -> -75.50267238 | G124: =-G$19*'Price Sets'!$D35*G$35*24*365/1000000 -> -73.06710231 | H124: =-H$19*'Price Sets'!$D35*H$35*24*365/1000000 -> -0.1637011924
B125: 2045 | E125: 21 | F125: =-F$19*'Price Sets'!$D36*F$35*24*365/1000000 -> -75.50267238 | G125: =-G$19*'Price Sets'!$D36*G$35*24*365/1000000 -> -73.06710231 | H125: =-H$19*'Price Sets'!$D36*H$35*24*365/1000000 -> -0.1637011924
B126: 2046 | E126: 22 | F126: =-F$19*'Price Sets'!$D37*F$35*24*365/1000000 -> -75.50267238 | G126: =-G$19*'Price Sets'!$D37*G$35*24*365/1000000 -> -73.06710231 | H126: =-H$19*'Price Sets'!$D37*H$35*24*365/1000000 -> -0.1637011924
B127: 2047 | E127: 23 | F127: =-F$19*'Price Sets'!$D38*F$35*24*365/1000000 -> -75.50267238 | G127: =-G$19*'Price Sets'!$D38*G$35*24*365/1000000 -> -73.06710231 | H127: =-H$19*'Price Sets'!$D38*H$35*24*365/1000000 -> -0.1637011924
B128: 2048 | E128: 24 | F128: =-F$19*'Price Sets'!$D39*F$35*24*365/1000000 -> -75.50267238 | G128: =-G$19*'Price Sets'!$D39*G$35*24*365/1000000 -> -73.06710231 | H128: =-H$19*'Price Sets'!$D39*H$35*24*365/1000000 -> -0.1637011924
B129: 2049 | D129: Final Year of Operation | E129: 25 | F129: =-F$19*'Price Sets'!$D40*F$35*24*365/1000000 -> -75.50267238 | G129: =-G$19*'Price Sets'!$D40*G$35*24*365/1000000 -> -73.06710231 | H129: =-H$19*'Price Sets'!$D40*H$35*24*365/1000000 -> -0.1637011924
D130: Total | E130: £ M | F130: =SUM(F101:F129) -> -1818.962527 | G130: -1760.441782 | H130: =SUM(H101:H129) -> -3.944133676
D131: Average | E131: £ M pa | F131: =AVERAGE(F105:F129) -> -72.56572328 | G131: =AVERAGE(G105:G129) -> -70.2248935 | H131: -0.1573334433
B133: Carbon Price (£ M)
E134: year of Operation
B135: 2021 | E135: -4
B136: 2022 | E136: -3
B137: 2023 | E137: -2
B138: 2024 | E138: -1
B139: 2025 | D139: First year of Operation (reduced rate) | E139: 1 | F139: =-F$43/1000*24*365*F$35*F$37*'Price Sets'!$H16/1000000 -> -10.09578965 | G139: =-G$43/1000*24*365*G$35*G$37*'Price Sets'!$H16/1000000 -> -0.9643655296 | H139: =-H$43/1000*24*365*H$35*H$37*'Price Sets'!$H16/1000000 -> -0.0002825530401
B140: 2026 | D140: Full availability from second year | E140: 2 | F140: =-F$43/1000*24*365*F$35*'Price Sets'!$H17/1000000 -> -17.29005372 | G140: =-G$43/1000*24*365*G$35*'Price Sets'!$H17/1000000 -> -1.651572822 | H140: =-H$43/1000*24*365*H$35*'Price Sets'!$H17/1000000 -> -0.0004839004584
B141: 2027 | E141: 3 | F141: =-F$43/1000*24*365*F$35*'Price Sets'!$H18/1000000 -> -22.98101165 | G141: =-G$43/1000*24*365*G$35*'Price Sets'!$H18/1000000 -> -2.195181974 | H141: =-H$43/1000*24*365*H$35*'Price Sets'!$H18/1000000 -> -0.000643174524
B142: 2028 | E142: 4 | F142: =-F$43/1000*24*365*F$35*'Price Sets'!$H19/1000000 -> -24.30865752 | G142: =-G$43/1000*24*365*G$35*'Price Sets'!$H19/1000000 -> -2.322000773 | H142: =-H$43/1000*24*365*H$35*'Price Sets'!$H19/1000000 -> -0.000680331635
B143: 2029 | E143: 5 | F143: =-F$43/1000*24*365*F$35*'Price Sets'!$H20/1000000 -> -24.76075311 | G143: =-G$43/1000*24*365*G$35*'Price Sets'!$H20/1000000 -> -2.365185647 | H143: =-H$43/1000*24*365*H$35*'Price Sets'!$H20/1000000 -> -0.0006929845318
B144: 2030 | E144: 6 | F144: =-F$43/1000*24*365*F$35*'Price Sets'!$H21/1000000 -> -26.92555038 | G144: =-G$43/1000*24*365*G$35*'Price Sets'!$H21/1000000 -> -2.57197045 | H144: =-H$43/1000*24*365*H$35*'Price Sets'!$H21/1000000 -> -0.0007535711794
B145: 2031 | E145: 7 | F145: =-F$43/1000*24*365*F$35*'Price Sets'!$H22/1000000 -> -35.47815047 | G145: =-G$43/1000*24*365*G$35*'Price Sets'!$H22/1000000 -> -3.388928111 | H145: =-H$43/1000*24*365*H$35*'Price Sets'!$H22/1000000 -> -0.0009929346406
B146: 2032 | E146: 8 | F146: =-F$43/1000*24*365*F$35*'Price Sets'!$H23/1000000 -> -44.03075055 | G146: =-G$43/1000*24*365*G$35*'Price Sets'!$H23/1000000 -> -4.205885773 | H146: =-H$43/1000*24*365*H$35*'Price Sets'!$H23/1000000 -> -0.001232298102
B147: 2033 | E147: 9 | F147: =-F$43/1000*24*365*F$35*'Price Sets'!$H24/1000000 -> -52.58335064 | G147: =-G$43/1000*24*365*G$35*'Price Sets'!$H24/1000000 -> -5.022843435 | H147: =-H$43/1000*24*365*H$35*'Price Sets'!$H24/1000000 -> -0.001471661563
B148: 2034 | E148: 10 | F148: =-F$43/1000*24*365*F$35*'Price Sets'!$H25/1000000 -> -61.13595072 | G148: =-G$43/1000*24*365*G$35*'Price Sets'!$H25/1000000 -> -5.839801097 | H148: =-H$43/1000*24*365*H$35*'Price Sets'!$H25/1000000 -> -0.001711025024
B149: 2035 | E149: 11 | F149: =-F$43/1000*24*365*F$35*'Price Sets'!$H26/1000000 -> -69.6885508 | G149: =-G$43/1000*24*365*G$35*'Price Sets'!$H26/1000000 -> -6.656758758 | H149: =-H$43/1000*24*365*H$35*'Price Sets'!$H26/1000000 -> -0.001950388485
B150: 2036 | E150: 12 | F150: =-F$43/1000*24*365*F$35*'Price Sets'!$H27/1000000 -> -78.24115089 | G150: =-G$43/1000*24*365*G$35*'Price Sets'!$H27/1000000 -> -7.47371642 | H150: =-H$43/1000*24*365*H$35*'Price Sets'!$H27/1000000 -> -0.002189751946
B151: 2037 | E151: 13 | F151: =-F$43/1000*24*365*F$35*'Price Sets'!$H28/1000000 -> -86.79375097 | G151: =-G$43/1000*24*365*G$35*'Price Sets'!$H28/1000000 -> -8.290674082 | H151: =-H$43/1000*24*365*H$35*'Price Sets'!$H28/1000000 -> -0.002429115407
B152: 2038 | E152: 14 | F152: =-F$43/1000*24*365*F$35*'Price Sets'!$H29/1000000 -> -95.34635106 | G152: =-G$43/1000*24*365*G$35*'Price Sets'!$H29/1000000 -> -9.107631744 | H152: =-H$43/1000*24*365*H$35*'Price Sets'!$H29/1000000 -> -0.002668478868
B153: 2039 | E153: 15 | F153: =-F$43/1000*24*365*F$35*'Price Sets'!$H30/1000000 -> -103.8989511 | G153: =-G$43/1000*24*365*G$35*'Price Sets'!$H30/1000000 -> -9.924589406 | H153: =-H$43/1000*24*365*H$35*'Price Sets'!$H30/1000000 -> -0.00290784233
B154: 2040 | E154: 16 | F154: =-F$43/1000*24*365*F$35*'Price Sets'!$H31/1000000 -> -112.4515512 | G154: =-G$43/1000*24*365*G$35*'Price Sets'!$H31/1000000 -> -10.74154707 | H154: =-H$43/1000*24*365*H$35*'Price Sets'!$H31/1000000 -> -0.003147205791
B155: 2041 | E155: 17 | F155: =-F$43/1000*24*365*F$35*'Price Sets'!$H32/1000000 -> -117.8658852 | G155: =-G$43/1000*24*365*G$35*'Price Sets'!$H32/1000000 -> -11.25873267 | H155: =-H$43/1000*24*365*H$35*'Price Sets'!$H32/1000000 -> -0.003298737921
B156: 2042 | E156: 18 | F156: =-F$43/1000*24*365*F$35*'Price Sets'!$H33/1000000 -> -123.2802191 | G156: =-G$43/1000*24*365*G$35*'Price Sets'!$H33/1000000 -> -11.77591827 | H156: =-H$43/1000*24*365*H$35*'Price Sets'!$H33/1000000 -> -0.003450270052
B157: 2043 | E157: 19 | F157: =-F$43/1000*24*365*F$35*'Price Sets'!$H34/1000000 -> -128.6945531 | G157: =-G$43/1000*24*365*G$35*'Price Sets'!$H34/1000000 -> -12.29310387 | H157: =-H$43/1000*24*365*H$35*'Price Sets'!$H34/1000000 -> -0.003601802183
B158: 2044 | E158: 20 | F158: =-F$43/1000*24*365*F$35*'Price Sets'!$H35/1000000 -> -134.108887 | G158: =-G$43/1000*24*365*G$35*'Price Sets'!$H35/1000000 -> -12.81028947 | H158: =-H$43/1000*24*365*H$35*'Price Sets'!$H35/1000000 -> -0.003753334313
B159: 2045 | E159: 21 | F159: =-F$43/1000*24*365*F$35*'Price Sets'!$H36/1000000 -> -139.523221 | G159: =-G$43/1000*24*365*G$35*'Price Sets'!$H36/1000000 -> -13.32747507 | H159: =-H$43/1000*24*365*H$35*'Price Sets'!$H36/1000000 -> -0.003904866444
B160: 2046 | E160: 22 | F160: =-F$43/1000*24*365*F$35*'Price Sets'!$H37/1000000 -> -144.9375549 | G160: =-G$43/1000*24*365*G$35*'Price Sets'!$H37/1000000 -> -13.84466066 | H160: =-H$43/1000*24*365*H$35*'Price Sets'!$H37/1000000 -> -0.004056398575
B161: 2047 | E161: 23 | F161: =-F$43/1000*24*365*F$35*'Price Sets'!$H38/1000000 -> -150.3518889 | G161: =-G$43/1000*24*365*G$35*'Price Sets'!$H38/1000000 -> -14.36184626 | H161: =-H$43/1000*24*365*H$35*'Price Sets'!$H38/1000000 -> -0.004207930705
B162: 2048 | E162: 24 | F162: =-F$43/1000*24*365*F$35*'Price Sets'!$H39/1000000 -> -155.7662228 | G162: =-G$43/1000*24*365*G$35*'Price Sets'!$H39/1000000 -> -14.87903186 | H162: =-H$43/1000*24*365*H$35*'Price Sets'!$H39/1000000 -> -0.004359462836
B163: 2049 | D163: Final Year of Operation | E163: 25 | F163: =-F$43/1000*24*365*F$35*'Price Sets'!$H40/1000000 -> -161.1805568 | G163: =-G$43/1000*24*365*G$35*'Price Sets'!$H40/1000000 -> -15.39621746 | H163: =-H$43/1000*24*365*H$35*'Price Sets'!$H40/1000000 -> -0.004510994967
E164: £ M | F164: =SUM(F135:F163) -> -2121.719313 | G164: =SUM(G135:G163) -> -202.6699287 | H164: -0.05938101552
D165: Average | E165: £ M pa | F165: =AVERAGE(F139:F163) -> -84.86877253 | G165: =AVERAGE(G139:G163) -> -8.106797147 | H165: -0.002375240621
B167: Sales of Hydrogen (£ M)
C168: 2017 | E168: year of Operation
B169: 2021 | E169: -4
B170: 2022 | E170: -3
B171: 2023 | E171: -2
B172: 2024 | E172: -1
B173: 2025 | D173: First year of Operation (reduced rate) | E173: 1 | F173: =F$81*F$37*(1+F$92)^($B173-$C$168) -> 95.26113832 | G173: =G$81*G$37*(1+G$92)^($B173-$C$168) -> 78.43319604 | H173: =H$81*H$37*(1+H$92)^($B173-$C$168) -> 0.00078430032
B174: 2026 | D174: Full availability from second year | E174: 2 | F174: =F$81*(1+F$92)^($B174-$C$168) -> 158.7685639 | G174: 130.7219934 | H174: 0.0013071672
B175: 2027 | E175: 3 | F175: 158.7685639 | G175: 130.7219934 | H175: 0.0013071672
B176: 2028 | E176: 4 | F176: 158.7685639 | G176: 130.7219934 | H176: 0.0013071672
B177: 2029 | E177: 5 | F177: 158.7685639 | G177: 130.7219934 | H177: 0.0013071672
B178: 2030 | E178: 6 | F178: 158.7685639 | G178: 130.7219934 | H178: 0.0013071672
B179: 2031 | E179: 7 | F179: 158.7685639 | G179: 130.7219934 | H179: 0.0013071672
B180: 2032 | E180: 8 | F180: 158.7685639 | G180: 130.7219934 | H180: 0.0013071672
B181: 2033 | E181: 9 | F181: 158.7685639 | G181: 130.7219934 | H181: 0.0013071672
B182: 2034 | E182: 10 | F182: 158.7685639 | G182: 130.7219934 | H182: 0.0013071672
B183: 2035 | E183: 11 | F183: 158.7685639 | G183: 130.7219934 | H183: 0.0013071672
B184: 2036 | E184: 12 | F184: 158.7685639 | G184: 130.7219934 | H184: 0.0013071672
B185: 2037 | E185: 13 | F185: 158.7685639 | G185: 130.7219934 | H185: 0.0013071672
B186: 2038 | E186: 14 | F186: 158.7685639 | G186: 130.7219934 | H186: 0.0013071672
B187: 2039 | E187: 15 | F187: 158.7685639 | G187: 130.7219934 | H187: 0.0013071672
B188: 2040 | E188: 16 | F188: 158.7685639 | G188: 130.7219934 | H188: 0.0013071672
B189: 2041 | E189: 17 | F189: 158.7685639 | G189: 130.7219934 | H189: 0.0013071672
B190: 2042 | E190: 18 | F190: 158.7685639 | G190: 130.7219934 | H190: 0.0013071672
B191: 2043 | E191: 19 | F191: 158.7685639 | G191: 130.7219934 | H191: 0.0013071672
B192: 2044 | E192: 20 | F192: 158.7685639 | G192: 130.7219934 | H192: 0.0013071672
B193: 2045 | E193: 21 | F193: 158.7685639 | G193: 130.7219934 | H193: 0.0013071672
B194: 2046 | E194: 22 | F194: 158.7685639 | G194: 130.7219934 | H194: 0.0013071672
B195: 2047 | E195: 23 | F195: 158.7685639 | G195: 130.7219934 | H195: 0.0013071672
B196: 2048 | E196: 24 | F196: 158.7685639 | G196: 130.7219934 | H196: 0.0013071672
B197: 2049 | D197: Final Year of Operation | E197: 25 | F197: 158.7685639 | G197: 130.7219934 | H197: 0.0013071672
E198: £ M | F198: =SUM(F169:F197) -> 3905.706671 | G198: =SUM(G169:G197) -> 3215.761038 | H198: 0.03215631312
B200: Fixed Operating Costs - Escalated Forwards (£ M)
B201: Base Year | C201: 2017 | E201: year of Operation
B202: 2021 | E202: -4
B203: 2022 | E203: -3
B204: 2023 | E204: -2
B205: 2024 | E205: -1 | J205: Year 0 includes Start-up Costs and Working Capital Allowance
B206: 2025 | D206: First year of Operation | E206: 1 | F206: =-F$65*(1+F$92)^($B206-$C$201) -> -7.37152 | G206: -10.703175 | H206: 0
B207: 2026 | E207: 2 | F207: -7.37152 | G207: -10.703175 | H207: 0
B208: 2027 | E208: 3 | F208: -7.37152 | G208: -10.703175 | H208: 0
B209: 2028 | E209: 4 | F209: -7.37152 | G209: -10.703175 | H209: 0
... 214 more rows

Sheet Price Sets
C3: Gas Price (Power) | D3: Gas Price (Hydrogen) | E3: Coal Price | F3: Biomass Price | G3: Torrefied Price | H3: Carbon Price | J3: Natural Gas Price (pence / therm) | M3: Coal Price (USD / tonne) | P3: Basic Biomass Price (GBP / MWh) | S3: Torrefied Wood Price (GBP / MWh) | V3: Carbon Price (GBP / tonne CO2)
C4: (£ / MWh) | D4: (£ / MWh) | E4: (£ / tonne) | F4: (£ / MWh) | G4: (£ / MWh) | H4: (£ / tonne) | I4: Profile | J4: Low | K4: Central | L4: High | M4: Low | N4: Central | O4: High | P4: Low | Q4: Central | R4: High | S4: Low | T4: Central | U4: High | V4: Central
X5: Assuming
B6: Feedstock Cost | N6: 1.3542 | O6: USD / GBP | X6: =1/1.2233 -> 0.8174609662 | Y6: Euro to GBP
B7: Selected Profile | C7: ='LCOE Calculation'!$C$81 -> Central | D7: ='LCOH Calculation'!$C$74 -> Central | E7: ='LCOE Calculation'!$C$81 -> Central | F7: ='LCOE Calculation'!$C$81 -> Central | G7: ='LCOE Calculation'!$C$81 -> Central | H7: -
B8: 2017 | C8: =IF(C$7="Low",J8,IF(C$7="High",L8,K8))*3412*1000/100000/100 -> 10.75725296 | D8: =IF(D$7="Low",J8,IF(D$7="High",L8,K8))*3412*1000/100000/100 -> 10.75725296 | E8: =IF(E$7="Low",M8,IF(E$7="High",O8,N8))/$N$6 -> 29.10178062 | F8: =IF(F$7="Low",P8,IF(F$7="High",R8,Q8)) -> 19 | G8: =IF(G$7="Low",S8,IF(G$7="High",U8,T8)) -> 23.7 | H8: =V8 -> 21.5568685 | J8: 22.660538 | K8: 31.52770505 | L8: 43.35059444 | M8: 34.4834274 | N8: 39.40963131 | O8: 50.24727992 | P8: =Q8*0.8 -> 15.2 | Q8: 19 | R8: =Q8*1.5 -> 28.5 | S8: =T8*0.8 -> 18.96 | T8: 23.7 | U8: =T8*1.5 -> 35.55 | V8: 21.5568685
B9: 2018 | C9: =IF(C$7="Low",J9,IF(C$7="High",L9,K9))*3412*1000/100000/100 -> 10.75725296 | D9: =IF(D$7="Low",J9,IF(D$7="High",L9,K9))*3412*1000/100000/100 -> 10.75725296 | E9: =IF(E$7="Low",M9,IF(E$7="High",O9,N9))/$N$6 -> 29.10178062 | F9: =IF(F$7="Low",P9,IF(F$7="High",R9,Q9)) -> 19 | G9: 23.7 | H9: =V9 -> 21.25246373 | J9: 22.660538 | K9: 31.52770505 | L9: 45.32107601 | M9: 34.4834274 | N9: 39.40963131 | O9: 55.17348383 | P9: =P$8*(1+'LCOE Calculation'!$C$98)^('Price Sets'!$B9-'Price Sets'!$B$8) -> 15.2 | Q9: =Q$8*(1+'LCOE Calculation'!$C$98)^('Price Sets'!$B9-'Price Sets'!$B$8) -> 19 | R9: =R$8*(1+'LCOE Calculation'!$C$98)^('Price Sets'!$B9-'Price Sets'!$B$8) -> 28.5 | S9: =S$8*(1+'LCOE Calculation'!$C$98)^('Price Sets'!$B9-'Price Sets'!$B$8) -> 18.96 | T9: =T$8*(1+'LCOE Calculation'!$C$98)^('Price Sets'!$B9-'Price Sets'!$B$8) -> 23.7 | U9: =U$8*(1+'LCOE Calculation'!$C$98)^('Price Sets'!$B9-'Price Sets'!$B$8) -> 35.55 | V9: 21.25246373
B10: 2019 | C10: 10.75725296 | D10: 10.75725296 | E10: 29.10178062 | F10: 19 | G10: 23.7 | H10: 21.09354432 | J10: 22.660538 | K10: 31.52770505 | L10: 47.29155757 | M10: 34.4834274 | N10: 39.40963131 | O10: 61.08492853 | P10: =P$8*(1+'LCOE Calculation'!$C$98)^('Price Sets'!$B10-'Price Sets'!$B$8) -> 15.2 | Q10: =Q$8*(1+'LCOE Calculation'!$C$98)^('Price Sets'!$B10-'Price Sets'!$B$8) -> 19 | R10: =R$8*(1+'LCOE Calculation'!$C$98)^('Price Sets'!$B10-'Price Sets'!$B$8) -> 28.5 | S10: =S$8*(1+'LCOE Calculation'!$C$98)^('Price Sets'!$B10-'Price Sets'!$B$8) -> 18.96 | T10: =T$8*(1+'LCOE Calculation'!$C$98)^('Price Sets'!$B10-'Price Sets'!$B$8) -> 23.7 | U10: =U$8*(1+'LCOE Calculation'!$C$98)^('Price Sets'!$B10-'Price Sets'!$B$8) -> 35.55 | V10: 21.09354432
B11: 2020 | C11: =IF(C$7="Low",J11,IF(C$7="High",L11,K11))*3412*1000/100000/100 -> 10.75725296 | D11: 10.75725296 | E11: =IF(E$7="Low",M11,IF(E$7="High",O11,N11))/$N$6 -> 29.10178062 | F11: 19 | G11: 23.7 | H11: 21.45580803 | J11: 22.660538 | K11: 31.52770505 | L11: 49.26203914 | M11: 34.4834274 | N11: 39.40963131 | O11: 66.01113245 | P11: =P$8*(1+'LCOE Calculation'!$C$98)^('Price Sets'!$B11-'Price Sets'!$B$8) -> 15.2 | Q11: =Q$8*(1+'LCOE Calculation'!$C$98)^('Price Sets'!$B11-'Price Sets'!$B$8) -> 19 | R11: =R$8*(1+'LCOE Calculation'!$C$98)^('Price Sets'!$B11-'Price Sets'!$B$8) -> 28.5 | S11: =S$8*(1+'LCOE Calculation'!$C$98)^('Price Sets'!$B11-'Price Sets'!$B$8) -> 18.96 | T11: =T$8*(1+'LCOE Calculation'!$C$98)^('Price Sets'!$B11-'Price Sets'!$B$8) -> 23.7 | U11: =U$8*(1+'LCOE Calculation'!$C$98)^('Price Sets'!$B11-'Price Sets'!$B$8) -> 35.55 | V11: 21.45580803
B12: 2021 | C12: 11.76574543 | D12: 11.76574543 | E12: 32.01195868 | F12: 19 | G12: 23.7 | H12: 21.68719419 | J12: 23.64577879 | K12: 34.4834274 | L12: 51.2325207 | M12: 36.45390896 | N12: 43.35059444 | O12: 70.93733636 | P12: =P$8*(1+'LCOE Calculation'!$C$98)^('Price Sets'!$B12-'Price Sets'!$B$8) -> 15.2 | Q12: =Q$8*(1+'LCOE Calculation'!$C$98)^('Price Sets'!$B12-'Price Sets'!$B$8) -> 19 | R12: =R$8*(1+'LCOE Calculation'!$C$98)^('Price Sets'!$B12-'Price Sets'!$B$8) -> 28.5 | S12: =S$8*(1+'LCOE Calculation'!$C$98)^('Price Sets'!$B12-'Price Sets'!$B$8) -> 18.96 | T12: =T$8*(1+'LCOE Calculation'!$C$98)^('Price Sets'!$B12-'Price Sets'!$B$8) -> 23.7 | U12: =U$8*(1+'LCOE Calculation'!$C$98)^('Price Sets'!$B12-'Price Sets'!$B$8) -> 35.55 | V12: 21.68719419
B13: 2022 | C13: 12.77423789 | D13: 12.77423789 | E13: 34.92213674 | F13: 19 | G13: 23.7 | H13: 21.89981374 | J13: 25.61626035 | K13: 37.43914974 | L13: 54.18824305 | M13: 39.40963131 | N13: 47.29155757 | O13: 76.84878106 | P13: =P$8*(1+'LCOE Calculation'!$C$98)^('Price Sets'!$B13-'Price Sets'!$B$8) -> 15.2 | Q13: =Q$8*(1+'LCOE Calculation'!$C$98)^('Price Sets'!$B13-'Price Sets'!$B$8) -> 19 | R13: =R$8*(1+'LCOE Calculation'!$C$98)^('Price Sets'!$B13-'Price Sets'!$B$8) -> 28.5 | S13: =S$8*(1+'LCOE Calculation'!$C$98)^('Price Sets'!$B13-'Price Sets'!$B$8) -> 18.96 | T13: =T$8*(1+'LCOE Calculation'!$C$98)^('Price Sets'!$B13-'Price Sets'!$B$8) -> 23.7 | U13: =U$8*(1+'LCOE Calculation'!$C$98)^('Price Sets'!$B13-'Price Sets'!$B$8) -> 35.55 | V13: 21.89981374
B14: 2023 | C14: 13.78273036 | D14: 13.78273036 | E14: 37.8323148 | F14: 19 | G14: 23.7 | H14: 22.1145178 | J14: 26.60150113 | K14: 40.39487209 | L14: 56.15872462 | M14: 42.36535366 | N14: 51.2325207 | O14: 81.77498497 | P14: =P$8*(1+'LCOE Calculation'!$C$98)^('Price Sets'!$B14-'Price Sets'!$B$8) -> 15.2 | Q14: =Q$8*(1+'LCOE Calculation'!$C$98)^('Price Sets'!$B14-'Price Sets'!$B$8) -> 19 | R14: =R$8*(1+'LCOE Calculation'!$C$98)^('Price Sets'!$B14-'Price Sets'!$B$8) -> 28.5 | S14: =S$8*(1+'LCOE Calculation'!$C$98)^('Price Sets'!$B14-'Price Sets'!$B$8) -> 18.96 | T14: =T$8*(1+'LCOE Calculation'!$C$98)^('Price Sets'!$B14-'Price Sets'!$B$8) -> 23.7 | U14: =U$8*(1+'LCOE Calculation'!$C$98)^('Price Sets'!$B14-'Price Sets'!$B$8) -> 35.55 | V14: 22.1145178
B15: 2024 | C15: 14.79122282 | D15: 14.79122282 | E15: 40.74249286 | F15: 19 | G15: 23.7 | H15: 22.3313268 | J15: 28.5719827 | K15: 43.35059444 | L15: 58.12920618 | M15: 45.32107601 | N15: 55.17348383 | O15: 87.68642967 | P15: =P$8*(1+'LCOE Calculation'!$C$98)^('Price Sets'!$B15-'Price Sets'!$B$8) -> 15.2 | Q15: =Q$8*(1+'LCOE Calculation'!$C$98)^('Price Sets'!$B15-'Price Sets'!$B$8) -> 19 | R15: =R$8*(1+'LCOE Calculation'!$C$98)^('Price Sets'!$B15-'Price Sets'!$B$8) -> 28.5 | S15: =S$8*(1+'LCOE Calculation'!$C$98)^('Price Sets'!$B15-'Price Sets'!$B$8) -> 18.96 | T15: =T$8*(1+'LCOE Calculation'!$C$98)^('Price Sets'!$B15-'Price Sets'!$B$8) -> 23.7 | U15: =U$8*(1+'LCOE Calculation'!$C$98)^('Price Sets'!$B15-'Price Sets'!$B$8) -> 35.55 | V15: 22.3313268
B16: 2025 | C16: 15.79971529 | D16: 15.79971529 | E16: 43.65267092 | F16: 19 | G16: 23.7 | H16: 22.55026137 | J16: 29.55722348 | K16: 46.30631679 | L16: 60.09968775 | M16: 47.29155757 | N16: 59.11444697 | O16: 92.61263358 | P16: =P$8*(1+'LCOE Calculation'!$C$98)^('Price Sets'!$B16-'Price Sets'!$B$8) -> 15.2 | Q16: =Q$8*(1+'LCOE Calculation'!$C$98)^('Price Sets'!$B16-'Price Sets'!$B$8) -> 19 | R16: =R$8*(1+'LCOE Calculation'!$C$98)^('Price Sets'!$B16-'Price Sets'!$B$8) -> 28.5 | S16: =S$8*(1+'LCOE Calculation'!$C$98)^('Price Sets'!$B16-'Price Sets'!$B$8) -> 18.96 | T16: =T$8*(1+'LCOE Calculation'!$C$98)^('Price Sets'!$B16-'Price Sets'!$B$8) -> 23.7 | U16: =U$8*(1+'LCOE Calculation'!$C$98)^('Price Sets'!$B16-'Price Sets'!$B$8) -> 35.55 | V16: 22.55026137
B17: 2026 | C17: 16.80820775 | D17: 16.80820775 | E17: 46.56284899 | F17: 19 | G17: 23.7 | H17: 23.17175242 | J17: 31.52770505 | K17: 49.26203914 | L17: 62.07016931 | M17: 50.24727992 | N17: 63.0554101 | O17: 97.53883749 | P17: =P$8*(1+'LCOE Calculation'!$C$98)^('Price Sets'!$B17-'Price Sets'!$B$8) -> 15.2 | Q17: =Q$8*(1+'LCOE Calculation'!$C$98)^('Price Sets'!$B17-'Price Sets'!$B$8) -> 19 | R17: =R$8*(1+'LCOE Calculation'!$C$98)^('Price Sets'!$B17-'Price Sets'!$B$8) -> 28.5 | S17: =S$8*(1+'LCOE Calculation'!$C$98)^('Price Sets'!$B17-'Price Sets'!$B$8) -> 18.96 | T17: =T$8*(1+'LCOE Calculation'!$C$98)^('Price Sets'!$B17-'Price Sets'!$B$8) -> 23.7 | U17: =U$8*(1+'LCOE Calculation'!$C$98)^('Price Sets'!$B17-'Price Sets'!$B$8) -> 35.55 | V17: 23.17175242
B18: 2027 | C18: 17.81670022 | D18: 17.81670022 | E18: 49.47302705 | F18: 19 | G18: 23.7 | H18: 30.79864995 | J18: 32.51294583 | K18: 52.21776149 | L18: 64.04065088 | M18: 53.20300227 | N18: 66.99637323 | O18: 103.4502822 | P18: =P$8*(1+'LCOE Calculation'!$C$98)^('Price Sets'!$B18-'Price Sets'!$B$8) -> 15.2 | Q18: =Q$8*(1+'LCOE Calculation'!$C$98)^('Price Sets'!$B18-'Price Sets'!$B$8) -> 19 | R18: =R$8*(1+'LCOE Calculation'!$C$98)^('Price Sets'!$B18-'Price Sets'!$B$8) -> 28.5 | S18: =S$8*(1+'LCOE Calculation'!$C$98)^('Price Sets'!$B18-'Price Sets'!$B$8) -> 18.96 | T18: =T$8*(1+'LCOE Calculation'!$C$98)^('Price Sets'!$B18-'Price Sets'!$B$8) -> 23.7 | U18: =U$8*(1+'LCOE Calculation'!$C$98)^('Price Sets'!$B18-'Price Sets'!$B$8) -> 35.55 | V18: 30.79864995
B19: 2028 | C19: 18.82519268 | D19: 18.82519268 | E19: 52.38320511 | F19: 19 | G19: 23.7 | H19: 32.57793196 | J19: 34.4834274 | K19: 55.17348383 | L19: 66.99637323 | M19: 56.15872462 | N19: 70.93733636 | O19: 108.3764861 | P19: =P$8*(1+'LCOE Calculation'!$C$98)^('Price Sets'!$B19-'Price Sets'!$B$8) -> 15.2 | Q19: =Q$8*(1+'LCOE Calculation'!$C$98)^('Price Sets'!$B19-'Price Sets'!$B$8) -> 19 | R19: =R$8*(1+'LCOE Calculation'!$C$98)^('Price Sets'!$B19-'Price Sets'!$B$8) -> 28.5 | S19: =S$8*(1+'LCOE Calculation'!$C$98)^('Price Sets'!$B19-'Price Sets'!$B$8) -> 18.96 | T19: =T$8*(1+'LCOE Calculation'!$C$98)^('Price Sets'!$B19-'Price Sets'!$B$8) -> 23.7 | U19: =U$8*(1+'LCOE Calculation'!$C$98)^('Price Sets'!$B19-'Price Sets'!$B$8) -> 35.55 | V19: 32.57793196
B20: 2029 | C20: 19.83368515 | D20: 19.83368515 | E20: 55.29338317 | F20: 19 | G20: 23.7 | H20: 33.1838206 | J20: 35.46866818 | K20: 58.12920618 | L20: 68.96685479 | M20: 58.12920618 | N20: 74.87829949 | O20: 114.2879308 | P20: =P$8*(1+'LCOE Calculation'!$C$98)^('Price Sets'!$B20-'Price Sets'!$B$8) -> 15.2 | Q20: =Q$8*(1+'LCOE Calculation'!$C$98)^('Price Sets'!$B20-'Price Sets'!$B$8) -> 19 | R20: =R$8*(1+'LCOE Calculation'!$C$98)^('Price Sets'!$B20-'Price Sets'!$B$8) -> 28.5 | S20: =S$8*(1+'LCOE Calculation'!$C$98)^('Price Sets'!$B20-'Price Sets'!$B$8) -> 18.96 | T20: =T$8*(1+'LCOE Calculation'!$C$98)^('Price Sets'!$B20-'Price Sets'!$B$8) -> 23.7 | U20: =U$8*(1+'LCOE Calculation'!$C$98)^('Price Sets'!$B20-'Price Sets'!$B$8) -> 35.55 | V20: 33.1838206
B21: 2030 | C21: 20.84217761 | D21: 20.84217761 | E21: 58.20356123 | F21: 19 | G21: 23.7 | H21: 36.08503463 | J21: 37.43914974 | K21: 61.08492853 | L21: 70.93733636 | M21: 61.08492853 | N21: 78.81926262 | O21: 119.2141347 | P21: =P$8*(1+'LCOE Calculation'!$C$98)^('Price Sets'!$B21-'Price Sets'!$B$8) -> 15.2 | Q21: =Q$8*(1+'LCOE Calculation'!$C$98)^('Price Sets'!$B21-'Price Sets'!$B$8) -> 19 | R21: =R$8*(1+'LCOE Calculation'!$C$98)^('Price Sets'!$B21-'Price Sets'!$B$8) -> 28.5 | S21: =S$8*(1+'LCOE Calculation'!$C$98)^('Price Sets'!$B21-'Price Sets'!$B$8) -> 18.96 | T21: =T$8*(1+'LCOE Calculation'!$C$98)^('Price Sets'!$B21-'Price Sets'!$B$8) -> 23.7 | U21: =U$8*(1+'LCOE Calculation'!$C$98)^('Price Sets'!$B21-'Price Sets'!$B$8) -> 35.55 | V21: 36.08503463
B22: 2031 | C22: 20.84217761 | D22: 20.84217761 | E22: 58.20356123 | F22: 19 | G22: 23.7 | H22: 47.54704249 | J22: 37.43914974 | K22: 61.08492853 | L22: 70.93733636 | M22: 61.08492853 | N22: 78.81926262 | O22: 119.2141347 | P22: =P$8*(1+'LCOE Calculation'!$C$98)^('Price Sets'!$B22-'Price Sets'!$B$8) -> 15.2 | Q22: =Q$8*(1+'LCOE Calculation'!$C$98)^('Price Sets'!$B22-'Price Sets'!$B$8) -> 19 | R22: =R$8*(1+'LCOE Calculation'!$C$98)^('Price Sets'!$B22-'Price Sets'!$B$8) -> 28.5 | S22: =S$8*(1+'LCOE Calculation'!$C$98)^('Price Sets'!$B22-'Price Sets'!$B$8) -> 18.96 | T22: =T$8*(1+'LCOE Calculation'!$C$98)^('Price Sets'!$B22-'Price Sets'!$B$8) -> 23.7 | U22: =U$8*(1+'LCOE Calculation'!$C$98)^('Price Sets'!$B22-'Price Sets'!$B$8) -> 35.55 | V22: 47.54704249
B23: 2032 | C23: 20.84217761 | D23: 20.84217761 | E23: 58.20356123 | F23: 19 | G23: 23.7 | H23: 59.00905035 | J23: 37.43914974 | K23: 61.08492853 | L23: 70.93733636 | M23: 61.08492853 | N23: 78.81926262 | O23: 119.2141347 | P23: =P$8*(1+'LCOE Calculation'!$C$98)^('Price Sets'!$B23-'Price Sets'!$B$8) -> 15.2 | Q23: =Q$8*(1+'LCOE Calculation'!$C$98)^('Price Sets'!$B23-'Price Sets'!$B$8) -> 19 | R23: =R$8*(1+'LCOE Calculation'!$C$98)^('Price Sets'!$B23-'Price Sets'!$B$8) -> 28.5 | S23: =S$8*(1+'LCOE Calculation'!$C$98)^('Price Sets'!$B23-'Price Sets'!$B$8) -> 18.96 | T23: =T$8*(1+'LCOE Calculation'!$C$98)^('Price Sets'!$B23-'Price Sets'!$B$8) -> 23.7 | U23: =U$8*(1+'LCOE Calculation'!$C$98)^('Price Sets'!$B23-'Price Sets'!$B$8) -> 35.55 | V23: 59.00905035
B24: 2033 | C24: 20.84217761 | D24: 20.84217761 | E24: 58.20356123 | F24: 19 | G24: 23.7 | H24: 70.47105821 | J24: 37.43914974 | K24: 61.08492853 | L24: 70.93733636 | M24: 61.08492853 | N24: 78.81926262 | O24: 119.2141347 | P24: =P$8*(1+'LCOE Calculation'!$C$98)^('Price Sets'!$B24-'Price Sets'!$B$8) -> 15.2 | Q24: =Q$8*(1+'LCOE Calculation'!$C$98)^('Price Sets'!$B24-'Price Sets'!$B$8) -> 19 | R24: =R$8*(1+'LCOE Calculation'!$C$98)^('Price Sets'!$B24-'Price Sets'!$B$8) -> 28.5 | S24: =S$8*(1+'LCOE Calculation'!$C$98)^('Price Sets'!$B24-'Price Sets'!$B$8) -> 18.96 | T24: =T$8*(1+'LCOE Calculation'!$C$98)^('Price Sets'!$B24-'Price Sets'!$B$8) -> 23.7 | U24: =U$8*(1+'LCOE Calculation'!$C$98)^('Price Sets'!$B24-'Price Sets'!$B$8) -> 35.55 | V24: 70.47105821
B25: 2034 | C25: 20.84217761 | D25: 20.84217761 | E25: 58.20356123 | F25: 19 | G25: 23.7 | H25: 81.93306607 | J25: 37.43914974 | K25: 61.08492853 | L25: 70.93733636 | M25: 61.08492853 | N25: 78.81926262 | O25: 119.2141347 | P25: =P$8*(1+'LCOE Calculation'!$C$98)^('Price Sets'!$B25-'Price Sets'!$B$8) -> 15.2 | Q25: =Q$8*(1+'LCOE Calculation'!$C$98)^('Price Sets'!$B25-'Price Sets'!$B$8) -> 19 | R25: =R$8*(1+'LCOE Calculation'!$C$98)^('Price Sets'!$B25-'Price Sets'!$B$8) -> 28.5 | S25: =S$8*(1+'LCOE Calculation'!$C$98)^('Price Sets'!$B25-'Price Sets'!$B$8) -> 18.96 | T25: =T$8*(1+'LCOE Calculation'!$C$98)^('Price Sets'!$B25-'Price Sets'!$B$8) -> 23.7 | U25: =U$8*(1+'LCOE Calculation'!$C$98)^('Price Sets'!$B25-'Price Sets'!$B$8) -> 35.55 | V25: 81.93306607
B26: 2035 | C26: 20.84217761 | D26: 20.84217761 | E26: 58.20356123 | F26: 19 | G26: 23.7 | H26: 93.39507394 | J26: 37.43914974 | K26: 61.08492853 | L26: 70.93733636 | M26: 61.08492853 | N26: 78.81926262 | O26: 119.2141347 | P26: =P$8*(1+'LCOE Calculation'!$C$98)^('Price Sets'!$B26-'Price Sets'!$B$8) -> 15.2 | Q26: =Q$8*(1+'LCOE Calculation'!$C$98)^('Price Sets'!$B26-'Price Sets'!$B$8) -> 19 | R26: =R$8*(1+'LCOE Calculation'!$C$98)^('Price Sets'!$B26-'Price Sets'!$B$8) -> 28.5 | S26: =S$8*(1+'LCOE Calculation'!$C$98)^('Price Sets'!$B26-'Price Sets'!$B$8) -> 18.96 | T26: =T$8*(1+'LCOE Calculation'!$C$98)^('Price Sets'!$B26-'Price Sets'!$B$8) -> 23.7 | U26: =U$8*(1+'LCOE Calculation'!$C$98)^('Price Sets'!$B26-'Price Sets'!$B$8) -> 35.55 | V26: 93.39507394
B27: 2036 | C27: 20.84217761 | D27: 20.84217761 | E27: 58.20356123 | F27: 19 | G27: 23.7 | H27: 104.8570818 | J27: 37.43914974 | K27: 61.08492853 | L27: 70.93733636 | M27: 61.08492853 | N27: 78.81926262 | O27: 119.2141347 | P27: =P$8*(1+'LCOE Calculation'!$C$98)^('Price Sets'!$B27-'Price Sets'!$B$8) -> 15.2 | Q27: =Q$8*(1+'LCOE Calculation'!$C$98)^('Price Sets'!$B27-'Price Sets'!$B$8) -> 19 | R27: =R$8*(1+'LCOE Calculation'!$C$98)^('Price Sets'!$B27-'Price Sets'!$B$8) -> 28.5 | S27: =S$8*(1+'LCOE Calculation'!$C$98)^('Price Sets'!$B27-'Price Sets'!$B$8) -> 18.96 | T27: =T$8*(1+'LCOE Calculation'!$C$98)^('Price Sets'!$B27-'Price Sets'!$B$8) -> 23.7 | U27: =U$8*(1+'LCOE Calculation'!$C$98)^('Price Sets'!$B27-'Price Sets'!$B$8) -> 35.55 | V27: 104.8570818
B28: 2037 | C28: 20.84217761 | D28: 20.84217761 | E28: 58.20356123 | F28: 19 | G28: 23.7 | H28: 116.3190897 | J28: 37.43914974 | K28: 61.08492853 | L28: 70.93733636 | M28: 61.08492853 | N28: 78.81926262 | O28: 119.2141347 | P28: =P$8*(1+'LCOE Calculation'!$C$98)^('Price Sets'!$B28-'Price Sets'!$B$8) -> 15.2 | Q28: =Q$8*(1+'LCOE Calculation'!$C$98)^('Price Sets'!$B28-'Price Sets'!$B$8) -> 19 | R28: =R$8*(1+'LCOE Calculation'!$C$98)^('Price Sets'!$B28-'Price Sets'!$B$8) -> 28.5 | S28: =S$8*(1+'LCOE Calculation'!$C$98)^('Price Sets'!$B28-'Price Sets'!$B$8) -> 18.96 | T28: =T$8*(1+'LCOE Calculation'!$C$98)^('Price Sets'!$B28-'Price Sets'!$B$8) -> 23.7 | U28: =U$8*(1+'LCOE Calculation'!$C$98)^('Price Sets'!$B28-'Price Sets'!$B$8) -> 35.55 | V28: 116.3190897
B29: 2038 | C29: 20.84217761 | D29: 20.84217761 | E29: 58.20356123 | F29: 19 | G29: 23.7 | H29: 127.7810975 | J29: 37.43914974 | K29: 61.08492853 | L29: 70.93733636 | M29: 61.08492853 | N29: 78.81926262 | O29: 119.2141347 | P29: =P$8*(1+'LCOE Calculation'!$C$98)^('Price Sets'!$B29-'Price Sets'!$B$8) -> 15.2 | Q29: =Q$8*(1+'LCOE Calculation'!$C$98)^('Price Sets'!$B29-'Price Sets'!$B$8) -> 19 | R29: =R$8*(1+'LCOE Calculation'!$C$98)^('Price Sets'!$B29-'Price Sets'!$B$8) -> 28.5 | S29: =S$8*(1+'LCOE Calculation'!$C$98)^('Price Sets'!$B29-'Price Sets'!$B$8) -> 18.96 | T29: =T$8*(1+'LCOE Calculation'!$C$98)^('Price Sets'!$B29-'Price Sets'!$B$8) -> 23.7 | U29: =U$8*(1+'LCOE Calculation'!$C$98)^('Price Sets'!$B29-'Price Sets'!$B$8) -> 35.55 | V29: 127.7810975
B30: 2039 | C30: 20.84217761 | D30: 20.84217761 | E30: 58.20356123 | F30: 19 | G30: 23.7 | H30: 139.2431054 | J30: 37.43914974 | K30: 61.08492853 | L30: 70.93733636 | M30: 61.08492853 | N30: 78.81926262 | O30: 119.2141347 | P30: =P$8*(1+'LCOE Calculation'!$C$98)^('Price Sets'!$B30-'Price Sets'!$B$8) -> 15.2 | Q30: =Q$8*(1+'LCOE Calculation'!$C$98)^('Price Sets'!$B30-'Price Sets'!$B$8) -> 19 | R30: =R$8*(1+'LCOE Calculation'!$C$98)^('Price Sets'!$B30-'Price Sets'!$B$8) -> 28.5 | S30: =S$8*(1+'LCOE Calculation'!$C$98)^('Price Sets'!$B30-'Price Sets'!$B$8) -> 18.96 | T30: =T$8*(1+'LCOE Calculation'!$C$98)^('Price Sets'!$B30-'Price Sets'!$B$8) -> 23.7 | U30: =U$8*(1+'LCOE Calculation'!$C$98)^('Price Sets'!$B30-'Price Sets'!$B$8) -> 35.55 | V30: 139.2431054
B31: 2040 | C31: 20.84217761 | D31: 20.84217761 | E31: 58.20356123 | F31: 19 | G31: 23.7 | H31: 150.7051132 | J31: 37.43914974 | K31: 61.08492853 | L31: 70.93733636 | M31: 61.08492853 | N31: 78.81926262 | O31: 119.2141347 | P31: =P$8*(1+'LCOE Calculation'!$C$98)^('Price Sets'!$B31-'Price Sets'!$B$8) -> 15.2 | Q31: =Q$8*(1+'LCOE Calculation'!$C$98)^('Price Sets'!$B31-'Price Sets'!$B$8) -> 19 | R31: =R$8*(1+'LCOE Calculation'!$C$98)^('Price Sets'!$B31-'Price Sets'!$B$8) -> 28.5 | S31: =S$8*(1+'LCOE Calculation'!$C$98)^('Price Sets'!$B31-'Price Sets'!$B$8) -> 18.96 | T31: =T$8*(1+'LCOE Calculation'!$C$98)^('Price Sets'!$B31-'Price Sets'!$B$8) -> 23.7 | U31: =U$8*(1+'LCOE Calculation'!$C$98)^('Price Sets'!$B31-'Price Sets'!$B$8) -> 35.55 | V31: 150.7051132
B32: 2041 | C32: 20.76372303 | D32: 20.76372303 | E32: 58.03477889 | F32: 19 | G32: 23.7 | H32: 157.9612854 | J32: 36.98440394 | K32: 60.8549913 | L32: 70.83367945 | M32: 61.09816444 | N32: 78.59069758 | O32: 119.267454 | P32: =P$8*(1+'LCOE Calculation'!$C$98)^('Price Sets'!$B32-'Price Sets'!$B$8) -> 15.2 | Q32: =Q$8*(1+'LCOE Calculation'!$C$98)^('Price Sets'!$B32-'Price Sets'!$B$8) -> 19 | R32: =R$8*(1+'LCOE Calculation'!$C$98)^('Price Sets'!$B32-'Price Sets'!$B$8) -> 28.5 | S32: =S$8*(1+'LCOE Calculation'!$C$98)^('Price Sets'!$B32-'Price Sets'!$B$8) -> 18.96 | T32: =T$8*(1+'LCOE Calculation'!$C$98)^('Price Sets'!$B32-'Price Sets'!$B$8) -> 23.7 | U32: =U$8*(1+'LCOE Calculation'!$C$98)^('Price Sets'!$B32-'Price Sets'!$B$8) -> 35.55 | V32: 157.9612854
B33: 2042 | C33: 20.76372303 | D33: 20.76372303 | E33: 58.03477889 | F33: 19 | G33: 23.7 | H33: 165.2174575 | J33: 36.98440394 | K33: 60.8549913 | L33: 70.83367945 | M33: 61.09816444 | N33: 78.59069758 | O33: 119.267454 | P33: =P$8*(1+'LCOE Calculation'!$C$98)^('Price Sets'!$B33-'Price Sets'!$B$8) -> 15.2 | Q33: =Q$8*(1+'LCOE Calculation'!$C$98)^('Price Sets'!$B33-'Price Sets'!$B$8) -> 19 | R33: =R$8*(1+'LCOE Calculation'!$C$98)^('Price Sets'!$B33-'Price Sets'!$B$8) -> 28.5 | S33: =S$8*(1+'LCOE Calculation'!$C$98)^('Price Sets'!$B33-'Price Sets'!$B$8) -> 18.96 | T33: =T$8*(1+'LCOE Calculation'!$C$98)^('Price Sets'!$B33-'Price Sets'!$B$8) -> 23.7 | U33: =U$8*(1+'LCOE Calculation'!$C$98)^('Price Sets'!$B33-'Price Sets'!$B$8) -> 35.55 | V33: 165.2174575
B34: 2043 | C34: 20.76372303 | D34: 20.76372303 | E34: 58.03477889 | F34: 19 | G34: 23.7 | H34: 172.4736296 | J34: 36.98440394 | K34: 60.8549913 | L34: 70.83367945 | M34: 61.09816444 | N34: 78.59069758 | O34: 119.267454 | P34: =P$8*(1+'LCOE Calculation'!$C$98)^('Price Sets'!$B34-'Price Sets'!$B$8) -> 15.2 | Q34: =Q$8*(1+'LCOE Calculation'!$C$98)^('Price Sets'!$B34-'Price Sets'!$B$8) -> 19 | R34: =R$8*(1+'LCOE Calculation'!$C$98)^('Price Sets'!$B34-'Price Sets'!$B$8) -> 28.5 | S34: =S$8*(1+'LCOE Calculation'!$C$98)^('Price Sets'!$B34-'Price Sets'!$B$8) -> 18.96 | T34: =T$8*(1+'LCOE Calculation'!$C$98)^('Price Sets'!$B34-'Price Sets'!$B$8) -> 23.7 | U34: =U$8*(1+'LCOE Calculation'!$C$98)^('Price Sets'!$B34-'Price Sets'!$B$8) -> 35.55 | V34: 172.4736296
B35: 2044 | C35: 20.76372303 | D35: 20.76372303 | E35: 58.03477889 | F35: 19 | G35: 23.7 | H35: 179.7298017 | J35: 36.98440394 | K35: 60.8549913 | L35: 70.83367945 | M35: 61.09816444 | N35: 78.59069758 | O35: 119.267454 | P35: =P$8*(1+'LCOE Calculation'!$C$98)^('Price Sets'!$B35-'Price Sets'!$B$8) -> 15.2 | Q35: =Q$8*(1+'LCOE Calculation'!$C$98)^('Price Sets'!$B35-'Price Sets'!$B$8) -> 19 | R35: =R$8*(1+'LCOE Calculation'!$C$98)^('Price Sets'!$B35-'Price Sets'!$B$8) -> 28.5 | S35: =S$8*(1+'LCOE Calculation'!$C$98)^('Price Sets'!$B35-'Price Sets'!$B$8) -> 18.96 | T35: =T$8*(1+'LCOE Calculation'!$C$98)^('Price Sets'!$B35-'Price Sets'!$B$8) -> 23.7 | U35: =U$8*(1+'LCOE Calculation'!$C$98)^('Price Sets'!$B35-'Price Sets'!$B$8) -> 35.55 | V35: 179.7298017
B36: 2045 | C36: 20.76372303 | D36: 20.76372303 | E36: 58.03477889 | F36: 19 | G36: 23.7 | H36: 186.9859738 | J36: 36.98440394 | K36: 60.8549913 | L36: 70.83367945 | M36: 61.09816444 | N36: 78.59069758 | O36: 119.267454 | P36: =P$8*(1+'LCOE Calculation'!$C$98)^('Price Sets'!$B36-'Price Sets'!$B$8) -> 15.2 | Q36: =Q$8*(1+'LCOE Calculation'!$C$98)^('Price Sets'!$B36-'Price Sets'!$B$8) -> 19 | R36: =R$8*(1+'LCOE Calculation'!$C$98)^('Price Sets'!$B36-'Price Sets'!$B$8) -> 28.5 | S36: =S$8*(1+'LCOE Calculation'!$C$98)^('Price Sets'!$B36-'Price Sets'!$B$8) -> 18.96 | T36: =T$8*(1+'LCOE Calculation'!$C$98)^('Price Sets'!$B36-'Price Sets'!$B$8) -> 23.7 | U36: =U$8*(1+'LCOE Calculation'!$C$98)^('Price Sets'!$B36-'Price Sets'!$B$8) -> 35.55 | V36: 186.9859738
B37: 2046 | C37: 20.76372303 | D37: 20.76372303 | E37: 58.03477889 | F37: 19 | G37: 23.7 | H37: 194.242146 | J37: 36.98440394 | K37: 60.8549913 | L37: 70.83367945 | M37: 61.09816444 | N37: 78.59069758 | O37: 119.267454 | P37: =P$8*(1+'LCOE Calculation'!$C$98)^('Price Sets'!$B37-'Price Sets'!$B$8) -> 15.2 | Q37: =Q$8*(1+'LCOE Calculation'!$C$98)^('Price Sets'!$B37-'Price Sets'!$B$8) -> 19 | R37: =R$8*(1+'LCOE Calculation'!$C$98)^('Price Sets'!$B37-'Price Sets'!$B$8) -> 28.5 | S37: =S$8*(1+'LCOE Calculation'!$C$98)^('Price Sets'!$B37-'Price Sets'!$B$8) -> 18.96 | T37: =T$8*(1+'LCOE Calculation'!$C$98)^('Price Sets'!$B37-'Price Sets'!$B$8) -> 23.7 | U37: =U$8*(1+'LCOE Calculation'!$C$98)^('Price Sets'!$B37-'Price Sets'!$B$8) -> 35.55 | V37: 194.242146
B38: 2047 | C38: 20.76372303 | D38: 20.76372303 | E38: 58.03477889 | F38: 19 | G38: 23.7 | H38: 201.4983181 | J38: 36.98440394 | K38: 60.8549913 | L38: 70.83367945 | M38: 61.09816444 | N38: 78.59069758 | O38: 119.267454 | P38: =P$8*(1+'LCOE Calculation'!$C$98)^('Price Sets'!$B38-'Price Sets'!$B$8) -> 15.2 | Q38: =Q$8*(1+'LCOE Calculation'!$C$98)^('Price Sets'!$B38-'Price Sets'!$B$8) -> 19 | R38: =R$8*(1+'LCOE Calculation'!$C$98)^('Price Sets'!$B38-'Price Sets'!$B$8) -> 28.5 | S38: =S$8*(1+'LCOE Calculation'!$C$98)^('Price Sets'!$B38-'Price Sets'!$B$8) -> 18.96 | T38: =T$8*(1+'LCOE Calculation'!$C$98)^('Price Sets'!$B38-'Price Sets'!$B$8) -> 23.7 | U38: =U$8*(1+'LCOE Calculation'!$C$98)^('Price Sets'!$B38-'Price Sets'!$B$8) -> 35.55 | V38: 201.4983181
B39: 2048 | C39: 20.76372303 | D39: 20.76372303 | E39: 58.03477889 | F39: 19 | G39: 23.7 | H39: 208.7544902 | J39: 36.98440394 | K39: 60.8549913 | L39: 70.83367945 | M39: 61.09816444 | N39: 78.59069758 | O39: 119.267454 | P39: =P$8*(1+'LCOE Calculation'!$C$98)^('Price Sets'!$B39-'Price Sets'!$B$8) -> 15.2 | Q39: =Q$8*(1+'LCOE Calculation'!$C$98)^('Price Sets'!$B39-'Price Sets'!$B$8) -> 19 | R39: =R$8*(1+'LCOE Calculation'!$C$98)^('Price Sets'!$B39-'Price Sets'!$B$8) -> 28.5 | S39: =S$8*(1+'LCOE Calculation'!$C$98)^('Price Sets'!$B39-'Price Sets'!$B$8) -> 18.96 | T39: =T$8*(1+'LCOE Calculation'!$C$98)^('Price Sets'!$B39-'Price Sets'!$B$8) -> 23.7 | U39: =U$8*(1+'LCOE Calculation'!$C$98)^('Price Sets'!$B39-'Price Sets'!$B$8) -> 35.55 | V39: 208.7544902
B40: 2049 | C40: 20.76372303 | D40: 20.76372303 | E40: 58.03477889 | F40: 19 | G40: 23.7 | H40: 216.0106623 | J40: 36.98440394 | K40: 60.8549913 | L40: 70.83367945 | M40: 61.09816444 | N40: 78.59069758 | O40: 119.267454 | P40: =P$8*(1+'LCOE Calculation'!$C$98)^('Price Sets'!$B40-'Price Sets'!$B$8) -> 15.2 | Q40: =Q$8*(1+'LCOE Calculation'!$C$98)^('Price Sets'!$B40-'Price Sets'!$B$8) -> 19 | R40: =R$8*(1+'LCOE Calculation'!$C$98)^('Price Sets'!$B40-'Price Sets'!$B$8) -> 28.5 | S40: =S$8*(1+'LCOE Calculation'!$C$98)^('Price Sets'!$B40-'Price Sets'!$B$8) -> 18.96 | T40: =T$8*(1+'LCOE Calculation'!$C$98)^('Price Sets'!$B40-'Price Sets'!$B$8) -> 23.7 | U40: =U$8*(1+'LCOE Calculation'!$C$98)^('Price Sets'!$B40-'Price Sets'!$B$8) -> 35.55 | V40: 216.0106623
B41: 2050 | C41: 20.76372303 | D41: 20.76372303 | E41: 58.03477889 | F41: 19 | G41: 23.7 | H41: 223.2668344 | J41: 36.98440394 | K41: 60.8549913 | L41: 70.83367945 | M41: 61.09816444 | N41: 78.59069758 | O41: 119.267454 | P41: =P$8*(1+'LCOE Calculation'!$C$98)^('Price Sets'!$B41-'Price Sets'!$B$8) -> 15.2 | Q41: =Q$8*(1+'LCOE Calculation'!$C$98)^('Price Sets'!$B41-'Price Sets'!$B$8) -> 19 | R41: =R$8*(1+'LCOE Calculation'!$C$98)^('Price Sets'!$B41-'Price Sets'!$B$8) -> 28.5 | S41: =S$8*(1+'LCOE Calculation'!$C$98)^('Price Sets'!$B41-'Price Sets'!$B$8) -> 18.96 | T41: =T$8*(1+'LCOE Calculation'!$C$98)^('Price Sets'!$B41-'Price Sets'!$B$8) -> 23.7 | U41: =U$8*(1+'LCOE Calculation'!$C$98)^('Price Sets'!$B41-'Price Sets'!$B$8) -> 35.55 | V41: 223.2668344

Sheet Efficiency Degradation
C2: As New | D2: CCGT H-Class | E2: Oxy-Coal | I2: Ensure profiles are arranged alphabetically
B3: Year 1 | C3: 1 | D3: 1 | E3: 1
B4: Year 2 | C4: 1 | D4: 0.982 | E4: 1
B5: Year 3 | C5: 1 | D5: 0.965 | E5: 0.995
B6: Year 4 | C6: 1 | D6: 0.948 | E6: 0.995
B7: Year 5 | C7: 1 | D7: 0.931 | E7: 0.985
B8: Year 6 | C8: 1 | D8: 0.992 | E8: 1
B9: Year 7 | C9: 1 | D9: 0.975 | E9: 1
B10: Year 8 | C10: 1 | D10: 0.957 | E10: 0.995
B11: Year 9 | C11: 1 | D11: 0.941 | E11: 0.995
B12: Year 10 | C12: 1 | D12: 0.923 | E12: 0.985
B13: Year 11 | C13: 1 | D13: 0.906 | E13: 1
B14: Year 12 | C14: 1 | D14: 0.984 | E14: 1
B15: Year 13 | C15: 1 | D15: 0.967 | E15: 0.995
B16: Year 14 | C16: 1 | D16: 0.95 | E16: 0.995
B17: Year 15 | C17: 1 | D17: 0.933 | E17: 0.985
B18: Year 16 | C18: 1 | D18: 0.916 | E18: 1
B19: Year 17 | C19: 1 | D19: 0.899 | E19: 1
B20: Year 18 | C20: 1 | D20: 0.976 | E20: 0.995
B21: Year 19 | C21: 1 | D21: 0.959 | E21: 0.995
B22: Year 20 | C22: 1 | D22: 0.942 | E22: 0.985
B23: Year 21 | C23: 1 | D23: 0.926 | E23: 1
B24: Year 22 | C24: 1 | D24: 0.909 | E24: 1
B25: Year 23 | C25: 1 | D25: 0.892 | E25: 0.995
B26: Year 24 | C26: 1 | D26: 0.968 | E26: 0.995
B27: Year 25 | C27: 1 | D27: 0.951 | E27: 0.985
B28: Average | C28: =AVERAGE(C3:C27) -> 1 | D28: =AVERAGE(D3:D27) -> 0.94768 | E28: 0.995
